account_party,address,code,date,document_number,expense_code_name,expense_code_name_short,id,party_cell,party_cell_code,party_cell_geoobject,purpose,source_bank_account_number,source_bank_account_type,sum,target_legal_personality,target_legal_personality_code,target_type
УГП,"Львівська область, Львів, вулиця Сербська, 1",70,2018-12-29,586314,Банківські послуги,Інші витрати,253170,Львівська обласна організація,40014820,Львівська область,Комісія за ведення функціонуючого рахунку за період 01.12.18-31.12.18 зг. договору. №N40.00.002425/РКО вiд 17.09.2015,2600477437,current,100.00,"АТ ""АКБ ""Львів""",09801546,юридична особа
УГП,"Львівська область, Львів, вулиця Сербська, 1",70,2018-12-29,586317,Банківські послуги,Інші витрати,253169,Львівська обласна організація,40014820,Львівська область,"Комісія за pозрахункове обслуговування Клієнтів по системі ""Клієнт-Банк"" за період 01.12.18-31.12.18 зг. договору. №N40.00.002425/РКО вiд 17.09.2015",2600477437,current,50.00,"АТ ""АКБ ""Львів""",09801546,юридична особа
УГП,"Львівська область, Львів, вулиця Сербська, 1",70,2018-12-29,585399,Банківські послуги,Інші витрати,252841,Центральний офіс,39481037,Україна,Комісія за ведення функціонуючого рахунку за період 01.12.18-31.12.18 зг. договору. №N40.00.002175/РКО вiд 10.12.2014,2600671275,current,100.00,"АТ ""АКБ ""Львів""",09801546,юридична особа
УГП,"Львівська область, Львів, вулиця Сербська, 1",70,2018-12-29,585400,Банківські послуги,Інші витрати,252840,Центральний офіс,39481037,Україна,"Комісія за pозрахункове обслуговування Клієнтів по системі ""Клієнт-Банк"" за період 01.12.18-31.12.18 зг. договору. N40.00.002175/ РКО вiд 10.12.2014",2600671275,current,50.00,"АТ ""АКБ ""Львів""",09801546,юридична особа
УГП,"Тернопільська область, Чортківський район, Чортків, вулиця Зелена, 3",49,2018-12-28,334,Публікування матеріалів у друкованих ЗМІ,Реклама в друкованих ЗМІ,253314,Тернопільська обласна організація,40011526,Тернопільська область,Оплата згiдно рах. N 312 вiд 02.11.2018р. Без ПДВ,26006055117228,current,1692.00,"РГ ""Голос народу""",02475345,юридична особа
УГП,"Тернопільська область, Чортківський район, Чортків, вулиця Зелена, 3",49,2018-12-28,333,Публікування матеріалів у друкованих ЗМІ,Реклама в друкованих ЗМІ,253313,Тернопільська обласна організація,40011526,Тернопільська область,Оплата згiдно рах.286 вiд 12.10.2018р. Без ПДВ,26006055117228,current,1444.00,"РГ ""Голос народу""",02475345,юридична особа
УГП,"Тернопільська область, Тернопіль, проспект Степана Бандери, 38",70,2018-12-28,CSO1OHQ23Y,Банківські послуги,Інші витрати,253312,Тернопільська обласна організація,40011526,Тернопільська область,"Комiсiя за виконання платежiв в нацiональнiй валютi, згiдно з вiдкритою офертою банку N б/н вiд 21.09.2015 та тарифiв банку, без ПДВ",26006055117228,current,3.00,"ПАТ КБ ""Приватбанк""",14360570,юридична особа
УГП,"Тернопільська область, Тернопіль, проспект Степана Бандери, 38",70,2018-12-28,CSO1OHQ1SY,Банківські послуги,Інші витрати,253311,Тернопільська обласна організація,40011526,Тернопільська область,"Комiсiя за виконання платежiв в нацiональнiй валютi, згiдно з вiдкритою офертою банку N б/н вiд 21.09.2015 та тарифiв банку, без ПДВ",26006055117228,current,3.00,"ПАТ КБ ""Приватбанк""",14360570,юридична особа
УГП,"Тернопільська область, Тернопіль, вулиця Листопадова, 3",61,2018-12-28,332,Військовий збір,Податкові платежі,253310,Тернопільська обласна організація,40011526,Тернопільська область,Вiйськовий збiр вiд зарплати за грудень 2018р.,26006055117228,current,159.00,УДКСУ у м. Тернопіль,37977726,юридична особа
УГП,"Тернопільська область, Тернопіль, проспект Степана Бандери, 38",70,2018-12-28,330,Банківські послуги,Інші витрати,253309,Тернопільська обласна організація,40011526,Тернопільська область,Комiсiя РКО вiд зарплати за грудень 2018р.,26006055117228,current,21.33,"ПАТ КБ ""Приватбанк""",14360570,юридична особа
УГП,"Тернопільська область, Тернопіль, проспект Степана Бандери, 38",70,2018-12-28,CSO1OHG03Y,Банківські послуги,Інші витрати,253308,Тернопільська обласна організація,40011526,Тернопільська область,"Комiсiя за виконання платежiв в нацiональнiй валютi, згiдно з вiдкритою офертою банку N б/н вiд 21.09.2015 та тарифiв банку, без ПДВ",26006055117228,current,3.00,"ПАТ КБ ""Приватбанк""",14360570,юридична особа
УГП,"Тернопільська область, Тернопіль, вулиця Білецька, 1",62,2018-12-28,331,Сплата ЄСВ,Податкові платежі,253307,Тернопільська обласна організація,40011526,Тернопільська область,ЄСВ вiд зарплати за грудень 2018р.,26006055117228,current,2469.06,Тернопільська ОДПІ ГУ ДФС в Тернопільській області,39502025,юридична особа
УГП,"Тернопільська область, Тернопіль, вулиця Листопадова, 3",63,2018-12-28,328,Податок на доходи,Податкові платежі,253306,Тернопільська обласна організація,40011526,Тернопільська область,ПДФО вiд зарплати за грудень 2018р.,26006055117228,current,1908.00,УДКСУ у м. Тернопіль,37977726,юридична особа
УГП,"Тернопільська область, Тернопіль, проспект Степана Бандери, 38",70,2018-12-28,CSO1OHFFVY,Банківські послуги,Інші витрати,253305,Тернопільська обласна організація,40011526,Тернопільська область,"Комiсiя за виконання платежiв в нацiональнiй валютi, згiдно з вiдкритою офертою банку N б/н вiд 21.09.2015 та тарифiв банку, без ПДВ",26006055117228,current,3.00,"ПАТ КБ ""Приватбанк""",14360570,юридична особа
УГП,"Тернопільська область, Тернопіль, проспект Степана Бандери, 38",70,2018-12-28,CSO1OHFFIY,Банківські послуги,Інші витрати,253304,Тернопільська обласна організація,40011526,Тернопільська область,"Комiсiя за виконання платежiв в нацiональнiй валютi, згiдно з вiдкритою офертою банку N б/н вiд 21.09.2015 та тарифiв банку, без ПДВ",26006055117228,current,3.00,"ПАТ КБ ""Приватбанк""",14360570,юридична особа
УГП,"Тернопільська область, Бучацький район",84,2018-12-28,329,"Заробітна плата, премії","Заробітна плата, лікарняні, вагітності, відрядження, компенсації",253206,Тернопільська обласна організація,40011526,Тернопільська область,Заробітна плата за другу половину грудня 2018р.,26006055117228,current,2495.50,Кізюк Іван Йосипович,,фізична особа
УГП,"Тернопільська область, Теребовлянський район",84,2018-12-28,329,"Заробітна плата, премії","Заробітна плата, лікарняні, вагітності, відрядження, компенсації",253205,Тернопільська обласна організація,40011526,Тернопільська область,Заробітна плата за другу половину грудня 2018р.,26006055117228,current,2898.00,Вітвіцький Олег Іванович,,фізична особа
УГП,"Тернопільська область, Тернопіль",84,2018-12-28,329,"Заробітна плата, премії","Заробітна плата, лікарняні, вагітності, відрядження, компенсації",253204,Тернопільська обласна організація,40011526,Тернопільська область,Заробітна плата за другу половину грудня 2018р.,26006055117228,current,1247.75,Войтович Анна Вʼячеславівна,,фізична особа
УГП,"Тернопільська область, Тернопіль",84,2018-12-28,329,"Заробітна плата, премії","Заробітна плата, лікарняні, вагітності, відрядження, компенсації",253203,Тернопільська обласна організація,40011526,Тернопільська область,Заробітна плата за другу половину грудня 2018р.,26006055117228,current,1891.75,Богун Андрій Ігорович,,фізична особа
УГП,"Львівська область, Львів, вулиця Стрийська, 35",62,2018-12-28,137,Сплата ЄСВ,Податкові платежі,253167,Львівська обласна організація,40014820,Львівська область,"*;101;40014820; 22,0% нарах. єдиного внеску на заробітну плату за 2 пол. грудня 2018р.- 1540,00 грн.;;;",2600477437,current,1540.00,Залізнична ОДПІ ГУ ДФС у Львівській області,39554382,юридична особа
УГП,"Львівська область, Львів, вулиця Конотопська, 6",63,2018-12-28,136,Податок на доходи,Податкові платежі,253165,Львівська обласна організація,40014820,Львівська область,"*;101;40014820; податок на доходи фізичних осіб із заробітної плати за 2 пол. грудня 2018р.,18% - 1260,00 грн.;;;",2600477437,current,1260.00,УДКСУ у Франківському районі м. Львова,37965138,юридична особа
УГП,,66,2018-12-28,143,Повернення внесків приватних внесків (донорам),Повернення приватних внесків (донорам),253164,Львівська обласна організація,40014820,Львівська область,"Повернення - членськi внески за 2018 рiк, ШИМУШОВСЬКИЙ ВАСИЛЬ БОГДАНОВИЧ Транз.сч._ DN, DG, DZ №док @2PL800587 вiд 28.12.2018, у звʼяз.з відсутніс.ідентиф.даних",2600477437,current,350.00,"ПАТ КБ ""Приватбанк""",14360570,юридична особа
УГП,,66,2018-12-28,145,Повернення внесків приватних внесків (донорам),Повернення приватних внесків (донорам),253163,Львівська обласна організація,40014820,Львівська область,"Повернення- членськi внески за 2018 рiк, БIЛАС ТАРАС ВОЛОДИМИРОВИЧ Транз.сч._ DN, DG, DZ №док @2PL108388 вiд 17.12.18,у зв.з відсут.ідентиф.даних, ЗУʼПр полiтП",2600477437,current,300.00,"ПАТ КБ ""Приватбанк""",14360570,юридична особа
УГП,,66,2018-12-28,146,Повернення внесків приватних внесків (донорам),Повернення приватних внесків (донорам),253162,Львівська обласна організація,40014820,Львівська область,"Повернення- Платник: Слесь Олег. внески 07 - 12 мiсяцi 2018 року, Слесь Олег Транз.сч._ DN, DG, DZ №док @2PL859404 вiд 27.12.2018,у зв.з відсут.ідентиф.даних",2600477437,current,210.00,"ПАТ КБ ""Приватбанк""",14360570,юридична особа
УГП,"Львівська область, Львів, вулиця Конотопська, 6",61,2018-12-28,135,Військовий збір,Податкові платежі,253161,Львівська обласна організація,40014820,Львівська область,"*;101;40014820; утриманий військовий збір із заробітної плати за 2 пол.грудня 2018р.,1,5% - 105,00 грн.;;;",2600477437,current,105.00,УДКСУ у Франківському районі м. Львова,37965138,юридична особа
УГП,,66,2018-12-28,141,Повернення внесків приватних внесків (донорам),Повернення приватних внесків (донорам),253160,Львівська обласна організація,40014820,Львівська область,"Повернення - членськi внески 11 - 12 мiсяцi 2018 року, ДЬОРКА ОЛЕГ IВАНОВИЧ від Транз.сч._ DN, DG, DZ №док @2PL753156 вiд 14.12.2018,у зв.з відсут.ідентиф.даних",2600477437,current,100.00,"ПАТ КБ ""Приватбанк""",14360570,юридична особа
УГП,,66,2018-12-28,142,Повернення внесків приватних внесків (донорам),Повернення приватних внесків (донорам),253159,Львівська обласна організація,40014820,Львівська область,"Повернення - Членськi внески, листопад-грудень, IВАНИШИН ТАРАС ВIКТОРОВИЧ Транз.сч._ DN, DG, DZ №док @2PL192381 вiд 20.12.2018,у звʼяз.з відсут.ідентиф.даних",2600477437,current,100.00,"ПАТ КБ ""Приватбанк""",14360570,юридична особа
УГП,"Львівська область, Львів, вулиця Сербська, 1",70,2018-12-28,555866,Банківські послуги,Інші витрати,253158,Львівська обласна організація,40014820,Львівська область,"Сплата комісії за зарахуванню коштів на рахунки фізичних осіб підприємства по зарплатному проекту по документу №555865, від 28.12.2018. Без ПДВ",2600477437,current,16.91,"АТ ""АКБ ""Львів""",09801546,юридична особа
УГП,"Львівська область, Львів, вулиця Сербська, 1",70,2018-12-28,552852,Банківські послуги,Інші витрати,253157,Львівська обласна організація,40014820,Львівська область,"Сплата комісії за переказ коштів з поточного рахунку до 17:00 за межі Банку за допомогою системи Клієнт-Банк по документу №137, від 28.12.2018. Без ПДВ",2600477437,current,5.00,"АТ ""АКБ ""Львів""",09801546,юридична особа
УГП,"Львівська область, Львів, вулиця Сербська, 1",70,2018-12-28,552821,Банківські послуги,Інші витрати,253156,Львівська обласна організація,40014820,Львівська область,"Сплата комісії за переказ коштів з поточного рахунку до 17:00 за межі Банку за допомогою системи Клієнт-Банк по документу №135, від 28.12.2018. Без ПДВ",2600477437,current,5.00,"АТ ""АКБ ""Львів""",09801546,юридична особа
УГП,"Львівська область, Львів, вулиця Сербська, 1",70,2018-12-28,559330,Банківські послуги,Інші витрати,253155,Львівська обласна організація,40014820,Львівська область,"Сплата комісії за переказ коштів з поточного рахунку до 17:00 за межі Банку за допомогою системи Клієнт-Банк по документу №146, від 28.12.2018. Без ПДВ",2600477437,current,5.00,"АТ ""АКБ ""Львів""",09801546,юридична особа
УГП,"Львівська область, Львів, вулиця Сербська, 1",70,2018-12-28,552845,Банківські послуги,Інші витрати,253154,Львівська обласна організація,40014820,Львівська область,"Сплата комісії за переказ коштів з поточного рахунку до 17:00 за межі Банку за допомогою системи Клієнт-Банк по документу №136, від 28.12.2018. Без ПДВ",2600477437,current,5.00,"АТ ""АКБ ""Львів""",09801546,юридична особа
УГП,"Львівська область, Львів, вулиця Сербська, 1",70,2018-12-28,559448,Банківські послуги,Інші витрати,253153,Львівська обласна організація,40014820,Львівська область,"Сплата комісії за переказ коштів з поточного рахунку до 17:00 за межі Банку за допомогою системи Клієнт-Банк по документу №147, від 28.12.2018. Без ПДВ",2600477437,current,5.00,"АТ ""АКБ ""Львів""",09801546,юридична особа
УГП,"Львівська область, Львів, вулиця Сербська, 1",70,2018-12-28,559259,Банківські послуги,Інші витрати,253152,Львівська обласна організація,40014820,Львівська область,"Сплата комісії за переказ коштів з поточного рахунку до 17:00 за межі Банку за допомогою системи Клієнт-Банк по документу №145, від 28.12.2018. Без ПДВ",2600477437,current,5.00,"АТ ""АКБ ""Львів""",09801546,юридична особа
УГП,"Львівська область, Львів, вулиця Сербська, 1",70,2018-12-28,559664,Банківські послуги,Інші витрати,253151,Львівська обласна організація,40014820,Львівська область,"Сплата комісії за переказ коштів з поточного рахунку до 17:00 за межі Банку за допомогою системи Клієнт-Банк по документу №148, від 28.12.2018. Без ПДВ",2600477437,current,5.00,"АТ ""АКБ ""Львів""",09801546,юридична особа
УГП,"Львівська область, Львів, вулиця Сербська, 1",70,2018-12-28,558420,Банківські послуги,Інші витрати,253150,Львівська обласна організація,40014820,Львівська область,"Сплата комісії за переказ коштів з поточного рахунку до 17:00 за межі Банку за допомогою системи Клієнт-Банк по документу №142, від 28.12.2018. Без ПДВ",2600477437,current,5.00,"АТ ""АКБ ""Львів""",09801546,юридична особа
УГП,"Львівська область, Львів, вулиця Сербська, 1",70,2018-12-28,558519,Банківські послуги,Інші витрати,253149,Львівська обласна організація,40014820,Львівська область,"Сплата комісії за переказ коштів з поточного рахунку до 17:00 за межі Банку за допомогою системи Клієнт-Банк по документу №143, від 28.12.2018. Без ПДВ",2600477437,current,5.00,"АТ ""АКБ ""Львів""",09801546,юридична особа
УГП,"Львівська область, Львів, вулиця Сербська, 1",70,2018-12-28,558303,Банківські послуги,Інші витрати,253148,Львівська обласна організація,40014820,Львівська область,"Сплата комісії за переказ коштів з поточного рахунку до 17:00 за межі Банку за допомогою системи Клієнт-Банк по документу №141, від 28.12.2018. Без ПДВ",2600477437,current,5.00,"АТ ""АКБ ""Львів""",09801546,юридична особа
УГП,"Львівська область, Львів, вулиця Сербська, 1",70,2018-12-28,554133,Банківські послуги,Інші витрати,253147,Львівська обласна організація,40014820,Львівська область,"Сплата комісії за переказ коштів з поточного рахунку до 17:00 в межах системи Банку за допомогою системи Клієнт-Банк по документу №138, від 28.12.2018. Без ПДВ",2600477437,current,3.00,"АТ ""АКБ ""Львів""",09801546,юридична особа
УГП,"Львівська область, Львів, вулиця Сербська, 1",70,2018-12-28,558560,Банківські послуги,Інші витрати,253146,Львівська обласна організація,40014820,Львівська область,"Сплата комісії за переказ коштів з поточного рахунку до 17:00 в межах системи Банку за допомогою системи Клієнт-Банк по документу №144, від 28.12.2018. Без ПДВ",2600477437,current,3.00,"АТ ""АКБ ""Львів""",09801546,юридична особа
УГП,"Львівська область, Львів, вулиця Сербська, 1",70,2018-12-28,555158,Банківські послуги,Інші витрати,253145,Львівська обласна організація,40014820,Львівська область,"Сплата комісії за переказ коштів з поточного рахунку до 17:00 в межах системи Банку за допомогою системи Клієнт-Банк по документу №140, від 28.12.2018. Без ПДВ",2600477437,current,3.00,"АТ ""АКБ ""Львів""",09801546,юридична особа
УГП,"Львівська область, Пустомитівський район",84,2018-12-28,138,"Заробітна плата, премії","Заробітна плата, лікарняні, вагітності, відрядження, компенсації",253017,Львівська обласна організація,40014820,Львівська область,"Виплата заробітної плати за 2 половину грудня 2018 року, под.сплачено 28.12.18р., термін спл.28.12.18р.",2600477437,current,2817.50,Васильченко Галина Іванівна,,фізична особа
УГП,"Львівська область, Львів",84,2018-12-28,555867,"Заробітна плата, премії","Заробітна плата, лікарняні, вагітності, відрядження, компенсації",253016,Львівська обласна організація,40014820,Львівська область,Заробітна плата за 2 половину грудня 2018 року,2600477437,current,2817.50,Щурко Іван Петрович,,фізична особа
УГП,"Львівська область, Кам'янка-Бузький район",49,2018-12-28,147,Публікування матеріалів у друкованих ЗМІ,Реклама в друкованих ЗМІ,253015,Львівська обласна організація,40014820,Львівська область,"Оплата за розміщення інформаційних матеріалів у грудні 2018р. в газеті ""Медіа Дрогобиччина"" згідно рахунку №78 від 12.12.2018р., без ПДВ",2600477437,current,2000.00,Кульчицька-Волчко Марія Василівна,,фізична особа
УГП,"Львівська область, Мостиський район, Мостиська",53,2018-12-28,148,Витрати на розміщення зовнішньої реклами,Зовнішня реклама,253014,Львівська обласна організація,40014820,Львівська область,"Оплата за оренду рекл.площин і розміщ. матер.у грудні 2018р. в м.Мостиська зг.договору №01/10 від 01.10.2018р., зг.рахунку №12-01 від 10.12.2018р., без ПДВ",2600477437,current,1400.00,Кадикало Олег Михайлович,,фізична особа
УГП,,66,2018-12-28,143,Повернення внесків приватних внесків (донорам),Повернення приватних внесків (донорам),252986,Львівська обласна організація,40014820,Львівська область,"Повернення - членськi внески за 2018 рiк, ШИМУШОВСЬКИЙ ВАСИЛЬ БОГДАНОВИЧ Транз. сч._ DN, DG, DZ №док @2PL800587 вiд 28.12.2018, у звʼяз.з відсутніс. ідентиф. даних",2600477437,current,350.00,"ПАТ КБ ""Приватбанк""",14360570,юридична особа
УГП,,66,2018-12-28,146,Повернення внесків приватних внесків (донорам),Повернення приватних внесків (донорам),252985,Львівська обласна організація,40014820,Львівська область,"Повернення- Платник: Слесь Олег. внески 07 - 12 мiсяцi 2018 року, Слесь Олег Транз.сч._ DN, DG, DZ №док @2PL859404 вiд 27.12.2018, у зв.з відсут. ідентиф. даних",2600477437,current,210.00,"ПАТ КБ ""Приватбанк""",14360570,юридична особа
УГП,,66,2018-12-28,142,Повернення внесків приватних внесків (донорам),Повернення приватних внесків (донорам),252984,Львівська обласна організація,40014820,Львівська область,"Повернення - Членськi внески, листопад-грудень, IВАНИШИН ТАРАС ВIКТОРОВИЧ Транз.сч._ DN, DG, DZ №док @2PL192381 вiд 20.12.2018 у звʼяз.з відсут. ідентиф. даних",2600477437,current,100.00,"ПАТ КБ ""Приватбанк""",14360570,юридична особа
УГП,,66,2018-12-28,145,Повернення внесків приватних внесків (донорам),Повернення приватних внесків (донорам),252983,Львівська обласна організація,40014820,Львівська область,"Повернення- членськi внески за 2018 рiк, БIЛАС ТАРАС ВОЛОДИМИРОВИЧ Транз.сч._ DN, DG, DZ №док @2PL108388 вiд 17.12.18, у зв.з відсут. ідентиф.даних, ЗУ ʼПро полiт. партіїʼ",2600477437,current,300.00,"ПАТ КБ ""Приватбанк""",14360570,юридична особа
УГП,,66,2018-12-28,141,Повернення внесків приватних внесків (донорам),Повернення приватних внесків (донорам),252982,Львівська обласна організація,40014820,Львівська область,"Повернення - членськi внески 11 - 12 мiсяцi 2018 року, ДЬОРКА ОЛЕГ IВАНОВИЧ від Транз. сч._ DN, DG, DZ №док @2PL753156 вiд 14.12.2018, у зв.з відсут. ідентиф. даних",2600477437,current,100.00,"ПАТ КБ ""Приватбанк""",14360570,юридична особа
УГП,"Івано-Франківська область, Івано-Франківськ, вулиця Січових стрільців, 15",70,2018-12-28,CSO1OKJ97Y,Банківські послуги,Інші витрати,252974,Івано-Франківська обласна організація,40026836,Івано-Франківська область,"Комiсiя за виконання платежiв в нацiональнiй валютi, згiдно з вiдкритою офертою банку N б/н вiд 29.09.2015 та тарифiв банку, без ПДВ",26005052517967,current,3.00,"ПАТ КБ ""Приватбанк""",14360570,юридична особа
УГП,"Івано-Франківська область, Івано-Франківськ, вулиця Січових стрільців, 15",70,2018-12-28,CSO1OKJ9GY,Банківські послуги,Інші витрати,252973,Івано-Франківська обласна організація,40026836,Івано-Франківська область,"Комiсiя за виконання платежiв в нацiональнiй валютi, згiдно з вiдкритою офертою банку N б/н вiд 29.09.2015 та тарифiв банку, без ПДВ",26005052517967,current,3.00,"ПАТ КБ ""Приватбанк""",14360570,юридична особа
УГП,"м. Київ, вул. Генерала Алмазова, буд. 18/7",66,2018-12-28,410,Повернення внесків приватних внесків (донорам),Повернення приватних внесків (донорам),252971,Івано-Франківська обласна організація,40026836,Івано-Франківська область,"повернення некоректного платежу членськi внески вiд Бунича Р.М.,N пл.д.О5102_0009вiд 27.12.18 у звʼязку з вiдсут. iдентиф.даних, невiдповiд. ЗУʼПро полiт.партiїʼ",26005052517967,current,200.00,"АКБ ""Індустріалбанк""",13857564,юридична особа
УГП,"Івано-Франківська область, Івано-Франківськ, вулиця Січових стрільців, 15",70,2018-12-28,410,Банківські послуги,Інші витрати,252970,Івано-Франківська обласна організація,40026836,Івано-Франківська область,Комiсiя РКО вiд зарплати за грудень 2018р.,26005052517967,current,40.67,"ПАТ КБ ""Приватбанк""",14360570,юридична особа
УГП,"Івано-Франківська область, Івано-Франківськ, вулиця Михайла Грушевського, 32",63,2018-12-28,408,Податок на доходи,Податкові платежі,252969,Івано-Франківська обласна організація,40026836,Івано-Франківська область,*;101;40026836;Податок з доходiв фiзичних осiб з зарплати за грудень 2018р;;;,26005052517967,current,3640.00,УДКСУ у м. Івано-Франківську,37952250,юридична особа
УГП,"Івано-Франківська область, Івано-Франківськ, вулиця Січових стрільців, 15",70,2018-12-28,CSO1OKG9GY,Банківські послуги,Інші витрати,252968,Івано-Франківська обласна організація,40026836,Івано-Франківська область,"Комiсiя за виконання платежiв в нацiональнiй валютi, згiдно з вiдкритою офертою банку N б/н вiд 29.09.2015 та тарифiв банку, без ПДВ",26005052517967,current,3.00,"ПАТ КБ ""Приватбанк""",14360570,юридична особа
УГП,"Івано-Франківська область, Івано-Франківськ, вулиця Незалежності, 20",62,2018-12-28,408,Сплата ЄСВ,Податкові платежі,252967,Івано-Франківська обласна організація,40026836,Івано-Франківська область,*;101;40026836;Сплата єдиного соцiального внеску з зарплати за грудень 2018р;;;,26005052517967,current,4450.00,ДПІ в м. Івано-Франківську ГУ ДФС в Івано-Франківській області,39508514,юридична особа
УГП,"Івано-Франківська область, Івано-Франківськ, вулиця Січових стрільців, 15",70,2018-12-28,CSO1OKGAGY,Банківські послуги,Інші витрати,252966,Івано-Франківська обласна організація,40026836,Івано-Франківська область,"Комiсiя за виконання платежiв в нацiональнiй валютi, згiдно з вiдкритою офертою банку N б/н вiд 29.09.2015 та тарифiв банку, без ПДВ",26005052517967,current,3.00,"ПАТ КБ ""Приватбанк""",14360570,юридична особа
УГП,"Івано-Франківська область, Івано-Франківськ, вулиця Михайла Грушевського, 32",61,2018-12-28,409,Військовий збір,Податкові платежі,252965,Івано-Франківська обласна організація,40026836,Івано-Франківська область,*;101;40026836;Сплата вiйськового збору з зарплати за грудень 2018р;;;,26005052517967,current,305.00,УДКСУ у м. Івано-Франківську,37952250,юридична особа
УГП,"Івано-Франківська область, Івано-Франківськ, вулиця Січових стрільців, 15",70,2018-12-28,CSO1OKFFKY,Банківські послуги,Інші витрати,252964,Івано-Франківська обласна організація,40026836,Івано-Франківська область,"Комiсiя за виконання платежiв в нацiональнiй валютi, згiдно з вiдкритою офертою банку N б/н вiд 29.09.2015 та тарифiв банку, без ПДВ",26005052517967,current,3.00,"ПАТ КБ ""Приватбанк""",14360570,юридична особа
УГП,"Івано-Франківська область, Івано-Франківськ",84,2018-12-28,411,"Заробітна плата, премії","Заробітна плата, лікарняні, вагітності, відрядження, компенсації",252896,Івано-Франківська обласна організація,40026836,Івано-Франківська область,Заробітна плата за другу половину грудня 2018 року,26005052517967,current,3933.06,Романчук Любомир Петрович,,фізична особа
УГП,Івано-Франківська область,84,2018-12-28,411,"Заробітна плата, премії","Заробітна плата, лікарняні, вагітності, відрядження, компенсації",252895,Івано-Франківська обласна організація,40026836,Івано-Франківська область,Заробітна плата за другу половину грудня 2018 року,26005052517967,current,2495.50,Івасишин Світлана Ярославівна,,фізична особа
УГП,Івано-Франківська область,84,2018-12-28,411,"Заробітна плата, премії","Заробітна плата, лікарняні, вагітності, відрядження, компенсації",252894,Івано-Франківська обласна організація,40026836,Івано-Франківська область,Заробітна плата за другу половину грудня 2018 року,26005052517967,current,2656.50,Сербин Наталія Зіновіївна,,фізична особа
УГП,"Івано-Франківська область, Тисменицький район",84,2018-12-28,411,"Заробітна плата, премії","Заробітна плата, лікарняні, вагітності, відрядження, компенсації",252893,Івано-Франківська обласна організація,40026836,Івано-Франківська область,Заробітна плата за другу половину грудня 2018 року,26005052517967,current,1610.00,Бабак Віталій Михайлович,,фізична особа
УГП,"Львівська область, Львів",84,2018-12-28,411,"Заробітна плата, премії","Заробітна плата, лікарняні, вагітності, відрядження, компенсації",252892,Івано-Франківська обласна організація,40026836,Івано-Франківська область,Заробітна плата за другу половину грудня 2018 року,26005052517967,current,2918.13,Саїк Олег Ігорович,,фізична особа
УГП,"Івано-Франківська область, Івано-Франківськ",84,2018-12-28,411,"Заробітна плата, премії","Заробітна плата, лікарняні, вагітності, відрядження, компенсації",252891,Івано-Франківська обласна організація,40026836,Івано-Франківська область,Заробітна плата за другу половину грудня 2018 року,26005052517967,current,2656.50,Федоляк Наталія Орестівна,,фізична особа
УГП,"м. Київ, вул. Генерала Алмазова, буд. 18/7",66,2018-12-28,410,Повернення внесків приватних внесків (донорам),Повернення приватних внесків (донорам),252849,Івано-Франківська обласна організація,40026836,Івано-Франківська область,"повернення некоректного платежу членськi внески вiд Бунича Р.М.,N пл.д.О5102_0009вiд 27.12.18 у звʼязку з вiдсут.iдентиф.даних, невiдповiд. ЗУʼПро полiт.партiїʼ",26005052517967,current,200.00,"АКБ ""Індустріалбанк""",13857564,юридична особа
УГП,"Львівська область, Львів, вулиця Конотопська, 6",61,2018-12-28,389,Військовий збір,Податкові платежі,252839,Центральний офіс,39481037,Україна,"*;101;39481037; утриманий військовий збір із заробітної плати за 2 пол. грудня 2018р.,1,5% - 305,93 грн.;;;",2600671275,current,305.93,УДКСУ у Франківському районі м. Львова,37965138,юридична особа
УГП,"Львівська область, Львів, вулиця Сербська, 1",70,2018-12-28,548848,Банківські послуги,Інші витрати,252838,Центральний офіс,39481037,Україна,"Сплата комісії за переказ коштів з поточного рахунку до 17:00 за межі Банку за допомогою системи Клієнт-Банк по документу №389, від 28.12.2018. Без ПДВ",2600671275,current,5.00,"АТ ""АКБ ""Львів""",09801546,юридична особа
УГП,"Львівська область, Львів, вулиця Стрийська, 35",62,2018-12-28,391,Сплата ЄСВ,Податкові платежі,252837,Центральний офіс,39481037,Україна,"*;101;39481037; 22,0% нарах. єдиного внеску на заробітну плату за 2 пол.грудня 2018р. - 4486,90 грн.;;;",2600671275,current,4486.90,Залізнична ОДПІ ГУ ДФС у Львівській області,39554382,юридична особа
УГП,"Львівська область, Львів, вулиця Конотопська, 6",63,2018-12-28,390,Податок на доходи,Податкові платежі,252836,Центральний офіс,39481037,Україна,"*;101;39481037; податок на доходи фізичних осіб із заробітної плати за 2 пол. грудня 2018р., 18% - 3671,09 грн.;;;",2600671275,current,3671.09,УДКСУ у Франківському районі м. Львова,37965138,юридична особа
УГП,"Львівська область, Львів, вулиця Сербська, 1",70,2018-12-28,548959,Банківські послуги,Інші витрати,252835,Центральний офіс,39481037,Україна,"Сплата комісії за переказ коштів з поточного рахунку до 17:00 за межі Банку за допомогою системи Клієнт-Банк по документу №390, від 28.12.2018. Без ПДВ",2600671275,current,5.00,"АТ ""АКБ ""Львів""",09801546,юридична особа
УГП,"Львівська область, Львів, вулиця Сербська, 1",70,2018-12-28,548972,Банківські послуги,Інші витрати,252834,Центральний офіс,39481037,Україна,"Сплата комісії за переказ коштів з поточного рахунку до 17:00 за межі Банку за допомогою системи Клієнт-Банк по документу №391, від 28.12.2018. Без ПДВ",2600671275,current,5.00,"АТ ""АКБ ""Львів""",09801546,юридична особа
УГП,"Львівська область, Львів, вулиця Сербська, 1",70,2018-12-28,554940,Банківські послуги,Інші витрати,252833,Центральний офіс,39481037,Україна,"Сплата комісії за зарахуванню коштів на рахунки фізичних осіб підприємства по зарплатному проекту по документу №554939, від 28.12.2018. Без ПДВ",2600671275,current,98.51,"АТ ""АКБ ""Львів""",09801546,юридична особа
УГП,"Львівська область, Львів, вулиця Сербська, 1",70,2018-12-28,555385,Банківські послуги,Інші витрати,252831,Центральний офіс,39481037,Україна,"Сплата комісії за переказ коштів з поточного рахунку до 17:00 в межах системи Банку за допомогою системи Клієнт-Банк по документу №392, від 28.12.2018. Без ПДВ",2600671275,current,3.00,"АТ ""АКБ ""Львів""",09801546,юридична особа
УГП,"Львівська область, Львів, вулиця Сербська, 1",70,2018-12-28,559129,Банківські послуги,Інші витрати,252829,Центральний офіс,39481037,Україна,"Сплата комісії за переказ коштів з поточного рахунку до 17:00 в межах системи Банку за допомогою системи Клієнт-Банк по документу №393, від 28.12.2018. Без ПДВ",2600671275,current,3.00,"АТ ""АКБ ""Львів""",09801546,юридична особа
УГП,"Львівська область, Львів",84,2018-12-28,554942,"Заробітна плата, премії","Заробітна плата, лікарняні, вагітності, відрядження, компенсації",252591,Центральний офіс,39481037,Україна,Заробітна плата за 2 половину грудня 2018 року,2600671275,current,4266.50,Панкевич Богдан Романович,,фізична особа
УГП,"Львівська область, Львів",84,2018-12-28,554943,"Заробітна плата, премії","Заробітна плата, лікарняні, вагітності, відрядження, компенсації",252590,Центральний офіс,39481037,Україна,Заробітна плата за 2 половину грудня 2018 року,2600671275,current,4266.50,Лозинський Роман Михайлович,,фізична особа
УГП,Тернопільська область,84,2018-12-28,554941,"Заробітна плата, премії","Заробітна плата, лікарняні, вагітності, відрядження, компенсації",252589,Центральний офіс,39481037,Україна,Заробітна плата за 2 половину грудня 2018 року,2600671275,current,3260.25,Яремчук Ірина Романівна,,фізична особа
УГП,"Львівська область, Перемишлянський район, Перемишляни",84,2018-12-28,554945,"Заробітна плата, премії","Заробітна плата, лікарняні, вагітності, відрядження, компенсації",252588,Центральний офіс,39481037,Україна,Заробітна плата за 2 половину грудня 2018 року,2600671275,current,2934.22,Моряк Ірина Миколаївна,,фізична особа
УГП,"Львівська область, Львів",84,2018-12-28,554944,"Заробітна плата, премії","Заробітна плата, лікарняні, вагітності, відрядження, компенсації",252587,Центральний офіс,39481037,Україна,Заробітна плата за 2 половину грудня 2018 року,2600671275,current,1690.50,Герич Ганна Вікторівна,,фізична особа
УГП,"Львівська область, Львів, вулиця Кондукторська, 16",79,2018-12-27,386,"Оренда будинків і приміщень та експлуатаційні витрати (прибирання, страхування орендованих будинків, охорона, сигналізація, ремонт, вивіз сміття, тощо)",Оренда нерухомості,252828,Центральний офіс,39481037,Україна,"Оплата за послуги центр.охорони обʼєкта за грудень 2018р., згідно договору № ЦС 040117 від 17.01.2017р.,зг.рахунку №СФ-0001012 від 31.12.2018р.",2600671275,current,500.00,"ПП ""Приватна безпека""",33562906,юридична особа
УГП,"Львівська область, Львів, вулиця Сербська, 1",70,2018-12-27,527803,Банківські послуги,Інші витрати,252827,Центральний офіс,39481037,Україна,"Сплата комісії за переказ коштів з поточного рахунку до 17:00 за межі Банку за допомогою системи Клієнт-Банк по документу №386, від 27.12.2018. Без ПДВ",2600671275,current,5.00,"АТ ""АКБ ""Львів""",09801546,юридична особа
УГП,"Львівська область, Львів, вулиця Сербська, 1",70,2018-12-27,527852,Банківські послуги,Інші витрати,252825,Центральний офіс,39481037,Україна,"Сплата комісії за переказ коштів з поточного рахунку до 17:00 за межі Банку за допомогою системи Клієнт-Банк по документу №387, від 27.12.2018. Без ПДВ",2600671275,current,5.00,"АТ ""АКБ ""Львів""",09801546,юридична особа
УГП,"Львівська область, Львів, вулиця Сербська, 1",70,2018-12-27,527891,Банківські послуги,Інші витрати,252823,Центральний офіс,39481037,Україна,"Сплата комісії за переказ коштів з поточного рахунку до 17:00 за межі Банку за допомогою системи Клієнт-Банк по документу №388, від 27.12.2018. Без ПДВ",2600671275,current,5.00,"АТ ""АКБ ""Львів""",09801546,юридична особа
УГП,"Львівська область, Радехівський район, Радехів, вулиця Богдана Хмельницького, 22",49,2018-12-26,134,Публікування матеріалів у друкованих ЗМІ,Реклама в друкованих ЗМІ,253144,Львівська обласна організація,40014820,Львівська область,"Оплата за розміщення інформ.матеріалів, публікац.у газеті ""Нар.справа""№49 та №50, згідно рах. №1 від 12.12.18р. та рах.№10 від 12.12.18р., без ПДВ",2600477437,current,16058.00,"РГ ""Народна справа""""",02473903,юридична особа
УГП,"Львівська область, Львів, вулиця Сербська, 1",70,2018-12-26,454912,Банківські послуги,Інші витрати,253143,Львівська обласна організація,40014820,Львівська область,"Сплата комісії за переказ коштів з поточного рахунку до 17:00 за межі Банку за допомогою системи Клієнт-Банк по документу №134, від 22.12.2018. Без ПДВ",2600477437,current,5.00,"АТ ""АКБ ""Львів""",09801546,юридична особа
УГП,"Львівська область, Львів, вулиця Сербська, 1",70,2018-12-26,504601,Банківські послуги,Інші витрати,252822,Центральний офіс,39481037,Україна,"Сплата комісії за переказ коштів з поточного рахунку до 17:00 за межі Банку за допомогою системи Клієнт-Банк по документу №384, від 26.12.2018. Без ПДВ",2600671275,current,5.00,"АТ ""АКБ ""Львів""",09801546,юридична особа
УГП,"Львівська область, Львів, вулиця Гуцульська, 9",53,2018-12-26,385,Витрати на розміщення зовнішньої реклами,Зовнішня реклама,252821,Центральний офіс,39481037,Україна,"Оплата за розміщення зовн.реклами з 01.12.18 по 31.12.18 згід.рах.-факт.№СФ-000842 від 20.12.2018р., згідно догов. від 30.07.2018р., в т.ч. ПДВ 1472,92 грн.",2600671275,current,8837.50,"ТОВ ’Телерадіокомпанія ""Львівська хвиля""",13824151,юридична особа
УГП,"Львівська область, Львів, вулиця Сербська, 1",70,2018-12-26,504708,Банківські послуги,Інші витрати,252820,Центральний офіс,39481037,Україна,"Сплата комісії за переказ коштів з поточного рахунку до 17:00 в межах системи Банку за допомогою системи Клієнт-Банк по документу №385, від 26.12.2018. Без ПДВ",2600671275,current,3.00,"АТ ""АКБ ""Львів""",09801546,юридична особа
УГП,"Львівська область, Львів",68,2018-12-26,384,Соцдослідження,"Гонорари, в тому числі за надані консультаційні послуги",252586,Центральний офіс,39481037,Україна,"Оплата за досд.гром.думки зг.договору №16/10/2018 від 16.10.18р., зг.рахунку №12 від 21.12.18р., без ПДВ",2600671275,current,27000.00,Малачівська-Данчак Марʼяна Петрівна,,фізична особа
УГП,"Тернопільська область, Гусятинський район, Гусятин, вулиця Шевченка, 2",46,2018-12-21,322,Перерахування коштів на виборчі рахунки партії,Перерахування коштів до виборчих фондів,253303,Тернопільська обласна організація,40011526,Тернопільська область,Поповнення виборчого фонду Гусятинської районної органiзацiї полiтичної партiї Українська Галицька партiя,26006055117228,current,4724.00,Тернопільська обласна організація Українська Галицька Партія,40011526,юридична особа
УГП,"Тернопільська область, Тернопіль, проспект Степана Бандери, 38",70,2018-12-21,CLO1NSQ64Y,Банківські послуги,Інші витрати,253302,Тернопільська обласна організація,40011526,Тернопільська область,"Комiсiя за виконання платежiв в нацiональнiй валютi, згiдно з вiдкритою офертою банку N б/н вiд 21.09.2015 та тарифiв банку, без ПДВ",26006055117228,current,3.00,"ПАТ КБ ""Приватбанк""",14360570,юридична особа
УГП,"Тернопільська область, Тернопіль, вулиця Білецька, 1",62,2018-12-21,319,Сплата ЄСВ,Податкові платежі,253301,Тернопільська обласна організація,40011526,Тернопільська область,ЄСВ вiд зарплати за грудень 2018р.,26006055117228,current,2332.00,Тернопільська ОДПІ ГУ ДФС в Тернопільській області,39502025,юридична особа
УГП,"Тернопільська область, Тернопіль, вулиця Листопадова, 3",63,2018-12-21,318,Податок на доходи,Податкові платежі,253300,Тернопільська обласна організація,40011526,Тернопільська область,ПДФО вiд зарплати за грудень 2018р.,26006055117228,current,1908.00,УДКСУ у м. Тернопіль,37977726,юридична особа
УГП,"Тернопільська область, Тернопіль, вулиця Листопадова, 3",61,2018-12-21,320,Військовий збір,Податкові платежі,253299,Тернопільська обласна організація,40011526,Тернопільська область,Вiйськовий збiр вiд зарплати за грудень 2018р.,26006055117228,current,159.00,УДКСУ у м. Тернопіль,37977726,юридична особа
УГП,"Тернопільська область, Тернопіль, проспект Степана Бандери, 38",70,2018-12-21,321,Банківські послуги,Інші витрати,253298,Тернопільська обласна організація,40011526,Тернопільська область,Комiсiя РКО вiд зарплати за грудень 2018р.,26006055117228,current,21.33,"ПАТ КБ ""Приватбанк""",14360570,юридична особа
УГП,"Тернопільська область, Тернопіль, проспект Степана Бандери, 38",70,2018-12-21,CLO1NQEA1Y,Банківські послуги,Інші витрати,253297,Тернопільська обласна організація,40011526,Тернопільська область,"Комiсiя за виконання платежiв в нацiональнiй валютi, згiдно з вiдкритою офертою банку N б/н вiд 21.09.2015 та тарифiв банку, без ПДВ",26006055117228,current,3.00,"ПАТ КБ ""Приватбанк""",14360570,юридична особа
УГП,"Тернопільська область, Тернопіль, проспект Степана Бандери, 38",70,2018-12-21,CLO1NQE9LY,Банківські послуги,Інші витрати,253296,Тернопільська обласна організація,40011526,Тернопільська область,"Комiсiя за виконання платежiв в нацiональнiй валютi, згiдно з вiдкритою офертою банку N б/н вiд 21.09.2015 та тарифiв банку, без ПДВ",26006055117228,current,3.00,"ПАТ КБ ""Приватбанк""",14360570,юридична особа
УГП,"Тернопільська область, Тернопіль, проспект Степана Бандери, 38",70,2018-12-21,CLO1NQE93Y,Банківські послуги,Інші витрати,253295,Тернопільська обласна організація,40011526,Тернопільська область,"Комiсiя за виконання платежiв в нацiональнiй валютi, згiдно з вiдкритою офертою банку N б/н вiд 21.09.2015 та тарифiв банку, без ПДВ",26006055117228,current,3.00,"ПАТ КБ ""Приватбанк""",14360570,юридична особа
УГП,"Тернопільська область, Бучацький район",84,2018-12-21,317,"Заробітна плата, премії","Заробітна плата, лікарняні, вагітності, відрядження, компенсації",253202,Тернопільська обласна організація,40011526,Тернопільська область,Заробітна плата за першу половину грудня 2018р.,26006055117228,current,2495.50,Кізюк Іван Йосипович,,фізична особа
УГП,"Тернопільська область, Теребовлянський район",84,2018-12-21,317,"Заробітна плата, премії","Заробітна плата, лікарняні, вагітності, відрядження, компенсації",253201,Тернопільська обласна організація,40011526,Тернопільська область,Заробітна плата за першу половину грудня 2018р.,26006055117228,current,2898.00,Вітвіцький Олег Іванович,,фізична особа
УГП,"Тернопільська область, Тернопіль",84,2018-12-21,317,"Заробітна плата, премії","Заробітна плата, лікарняні, вагітності, відрядження, компенсації",253200,Тернопільська обласна організація,40011526,Тернопільська область,Заробітна плата за першу половину грудня 2018р.,26006055117228,current,1247.75,Войтович Анна Вʼячеславівна,,фізична особа
УГП,"Тернопільська область, Тернопіль",84,2018-12-21,317,"Заробітна плата, премії","Заробітна плата, лікарняні, вагітності, відрядження, компенсації",253199,Тернопільська обласна організація,40011526,Тернопільська область,Заробітна плата за першу половину грудня 2018р.,26006055117228,current,1891.75,Богун Андрій Ігорович,,фізична особа
УГП,"Львівська область, Львів, вулиця Грюнвальдська, 10",46,2018-12-21,133,Перерахування коштів на виборчі рахунки партії,Перерахування коштів до виборчих фондів,253142,Львівська обласна організація,40014820,Львівська область,"1;Перерахування власних коштів партії на накопичувальний рахунок виборчого фонду Радехівської районної організації ПП ""УГП"", без ПДВ",2600477437,current,17087.00,Львівська обласна організація Українська Галицька Партія,40014820,юридична особа
УГП,"Львівська область, Львів, вулиця Грюнвальдська, 10",46,2018-12-21,132,Перерахування коштів на виборчі рахунки партії,Перерахування коштів до виборчих фондів,253141,Львівська обласна організація,40014820,Львівська область,"1;Перерахування власних коштів партії на накопичувальний рахунок виборчого фонду Радехівської районної організації ПП ""УГП"", без ПДВ",2600477437,current,15070.40,Львівська обласна організація Українська Галицька Партія,40014820,юридична особа
УГП,"Львівська область, Львів, вулиця Сербська, 1",70,2018-12-21,393447,Банківські послуги,Інші витрати,253140,Львівська обласна організація,40014820,Львівська область,"Сплата комісії за переказ коштів з поточного рахунку до 17:00 за межі Банку за допомогою системи Клієнт-Банк по документу №133, від 21.12.2018. Без ПДВ",2600477437,current,5.00,"АТ ""АКБ ""Львів""",09801546,юридична особа
УГП,"Львівська область, Львів, вулиця Сербська, 1",70,2018-12-21,389749,Банківські послуги,Інші витрати,253139,Львівська обласна організація,40014820,Львівська область,"Сплата комісії за переказ коштів з поточного рахунку до 17:00 за межі Банку за допомогою системи Клієнт-Банк по документу №132, від 21.12.2018. Без ПДВ",2600477437,current,5.00,"АТ ""АКБ ""Львів""",09801546,юридична особа
УГП,"Івано-Франківська область, Івано-Франківськ, вулиця Михайла Грушевського, 32",61,2018-12-21,404,Військовий збір,Податкові платежі,252963,Івано-Франківська обласна організація,40026836,Івано-Франківська область,*;101;40026836;Сплата вiйськового збору з зарплати за грудень 2018р;;;,26005052517967,current,284.00,УДКСУ у м. Івано-Франківську,37952250,юридична особа
УГП,"Івано-Франківська область, Івано-Франківськ, вулиця Січових стрільців, 15",70,2018-12-21,CLO1NQPCFY,Банківські послуги,Інші витрати,252962,Івано-Франківська обласна організація,40026836,Івано-Франківська область,"Комiсiя за виконання платежiв в нацiональнiй валютi, згiдно з вiдкритою офертою банку N б/н вiд 29.09.2015 та тарифiв банку, без ПДВ",26005052517967,current,3.00,"ПАТ КБ ""Приватбанк""",14360570,юридична особа
УГП,"Івано-Франківська область, Івано-Франківськ, вулиця Михайла Грушевського, 32",63,2018-12-21,403,Податок на доходи,Податкові платежі,252961,Івано-Франківська обласна організація,40026836,Івано-Франківська область,*;101;40026836;Податок з доходiв фiзичних осiб з зарплати за грудень 2018р;;;,26005052517967,current,3411.00,УДКСУ у м. Івано-Франківську,37952250,юридична особа
УГП,"Івано-Франківська область, Івано-Франківськ, вулиця Січових стрільців, 15",70,2018-12-21,CLO1NQPCTY,Банківські послуги,Інші витрати,252960,Івано-Франківська обласна організація,40026836,Івано-Франківська область,"Комiсiя за виконання платежiв в нацiональнiй валютi, згiдно з вiдкритою офертою банку N б/н вiд 29.09.2015 та тарифiв банку, без ПДВ",26005052517967,current,3.00,"ПАТ КБ ""Приватбанк""",14360570,юридична особа
УГП,"Івано-Франківська область, Івано-Франківськ, вулиця Січових стрільців, 15",70,2018-12-21,406,Банківські послуги,Інші витрати,252959,Івано-Франківська обласна організація,40026836,Івано-Франківська область,Комiсiя РКО вiд зарплати за грудень 2018р.,26005052517967,current,38.14,"ПАТ КБ ""Приватбанк""",14360570,юридична особа
УГП,"Івано-Франківська область, Івано-Франківськ, вулиця Незалежності, 20",62,2018-12-21,402,Сплата ЄСВ,Податкові платежі,252958,Івано-Франківська обласна організація,40026836,Івано-Франківська область,*;101;40026836;Сплата єдиного соцiального внеску з зарплати за грудень 2018р;;;,26005052517967,current,4169.00,ДПІ в м. Івано-Франківську ГУ ДФС в Івано-Франківській області,39508514,юридична особа
УГП,"Івано-Франківська область, Івано-Франківськ, вулиця Січових стрільців, 15",70,2018-12-21,CLO1NQPDAY,Банківські послуги,Інші витрати,252957,Івано-Франківська обласна організація,40026836,Івано-Франківська область,"Комiсiя за виконання платежiв в нацiональнiй валютi, згiдно з вiдкритою офертою банку N б/н вiд 29.09.2015 та тарифiв банку, без ПДВ",26005052517967,current,3.00,"ПАТ КБ ""Приватбанк""",14360570,юридична особа
УГП,"Івано-Франківська область, Івано-Франківськ",84,2018-12-21,405,"Заробітна плата, премії","Заробітна плата, лікарняні, вагітності, відрядження, компенсації",252890,Івано-Франківська обласна організація,40026836,Івано-Франківська область,Заробітна плата за першу половину грудня 2018 року,26005052517967,current,2918.12,Романчук Любомир Петрович,,фізична особа
УГП,Івано-Франківська область,84,2018-12-21,405,"Заробітна плата, премії","Заробітна плата, лікарняні, вагітності, відрядження, компенсації",252889,Івано-Франківська обласна організація,40026836,Івано-Франківська область,Заробітна плата за першу половину грудня 2018 року,26005052517967,current,2656.50,Сербин Наталія Зіновіївна,,фізична особа
УГП,"Івано-Франківська область, Івано-Франківськ",84,2018-12-21,405,"Заробітна плата, премії","Заробітна плата, лікарняні, вагітності, відрядження, компенсації",252888,Івано-Франківська обласна організація,40026836,Івано-Франківська область,Заробітна плата за першу половину грудня 2018 року,26005052517967,current,2656.50,Федоляк Наталія Орестівна,,фізична особа
УГП,"Львівська область, Львів",84,2018-12-21,405,"Заробітна плата, премії","Заробітна плата, лікарняні, вагітності, відрядження, компенсації",252887,Івано-Франківська обласна організація,40026836,Івано-Франківська область,Заробітна плата за першу половину грудня 2018 року,26005052517967,current,2918.12,Саїк Олег Ігорович,,фізична особа
УГП,Івано-Франківська область,84,2018-12-21,405,"Заробітна плата, премії","Заробітна плата, лікарняні, вагітності, відрядження, компенсації",252886,Івано-Франківська обласна організація,40026836,Івано-Франківська область,Заробітна плата за першу половину грудня 2018 року,26005052517967,current,2495.50,Івасишин Світлана Ярославівна,,фізична особа
УГП,"Івано-Франківська область, Тисменицький район",84,2018-12-21,405,"Заробітна плата, премії","Заробітна плата, лікарняні, вагітності, відрядження, компенсації",252885,Івано-Франківська обласна організація,40026836,Івано-Франківська область,Заробітна плата за першу половину грудня 2018 року,26005052517967,current,1610.00,Бабак Віталій Михайлович,,фізична особа
УГП,"Львівська область, Львів, вулиця Сербська, 1",70,2018-12-21,391566,Банківські послуги,Інші витрати,252818,Центральний офіс,39481037,Україна,"Сплата комісії за переказ коштів з поточного рахунку до 17:00 в межах системи Банку за допомогою системи Клієнт-Банк по документу №384, від 21.12.2018. Без ПДВ",2600671275,current,3.00,"АТ ""АКБ ""Львів""",09801546,юридична особа
УГП,"Львівська область, Львів, вулиця Грюнвальдська, 10",46,2018-12-20,129,Перерахування коштів на виборчі рахунки партії,Перерахування коштів до виборчих фондів,253138,Львівська обласна організація,40014820,Львівська область,"1;Перерахування власних коштів партії на накопичувальний рахунок виборчого фонду Бібрської районної організації ПП ""УГП"", без ПДВ",2600477437,current,19266.00,Львівська обласна організація Українська Галицька Партія,40014820,юридична особа
УГП,"Львівська область, Львів, вулиця Грюнвальдська, 10",46,2018-12-20,130,Перерахування коштів на виборчі рахунки партії,Перерахування коштів до виборчих фондів,253137,Львівська обласна організація,40014820,Львівська область,"1;Перерахування власних коштів партії на накопичувальний рахунок виборчого фонду Радехівської районної організації ПП ""УГП"", без ПДВ",2600477437,current,19000.00,Львівська обласна організація Українська Галицька Партія,40014820,юридична особа
УГП,"Львівська область, Львів, вулиця Грюнвальдська, 10",46,2018-12-20,131,Перерахування коштів на виборчі рахунки партії,Перерахування коштів до виборчих фондів,253136,Львівська обласна організація,40014820,Львівська область,"1;Перерахування власних коштів партії на накопичувальний рахунок виборчого фонду Радехівської районної організації ПП ""УГП"", без ПДВ",2600477437,current,8000.00,Львівська обласна організація Українська Галицька Партія,40014820,юридична особа
УГП,"Львівська область, Львів, вулиця Стрийська, 35",62,2018-12-20,127,Сплата ЄСВ,Податкові платежі,253135,Львівська обласна організація,40014820,Львівська область,"*;101;40014820; 22,0% нарах. єдиного внеску на заробітну плату за 1 пол. грудня 2018р.- 1155,00 грн.;;;",2600477437,current,1155.00,Залізнична ОДПІ ГУ ДФС у Львівській області,39554382,юридична особа
УГП,"Львівська область, Львів, вулиця Конотопська, 6",63,2018-12-20,126,Податок на доходи,Податкові платежі,253134,Львівська обласна організація,40014820,Львівська область,"*;101;40014820; податок на доходи фізичних осіб із заробітної плати за 1 пол. грудня 2018р.,18% - 945,00 грн.;;;",2600477437,current,945.00,УДКСУ у Франківському районі м. Львова,37965138,юридична особа
УГП,"Львівська область, Львів, вулиця Конотопська, 6",61,2018-12-20,125,Військовий збір,Податкові платежі,253133,Львівська обласна організація,40014820,Львівська область,"*;101;40014820; утриманий військовий збір із заробітної плати за 1 пол.грудня 2018р.,1,5% - 78,75 грн.;;;",2600477437,current,78.75,УДКСУ у Франківському районі м. Львова,37965138,юридична особа
УГП,"Львівська область, Львів, вулиця Сербська, 1",70,2018-12-20,368179,Банківські послуги,Інші витрати,253132,Львівська обласна організація,40014820,Львівська область,"Сплата комісії за зарахуванню коштів на рахунки фізичних осіб підприємства по зарплатному проекту по документу №368178, від 20.12.2018. Без ПДВ",2600477437,current,11.83,"АТ ""АКБ ""Львів""",09801546,юридична особа
УГП,"Львівська область, Львів, вулиця Сербська, 1",70,2018-12-20,366530,Банківські послуги,Інші витрати,253131,Львівська обласна організація,40014820,Львівська область,"Сплата комісії за переказ коштів з поточного рахунку до 17:00 за межі Банку за допомогою системи Клієнт-Банк по документу №127, від 20.12.2018. Без ПДВ",2600477437,current,5.00,"АТ ""АКБ ""Львів""",09801546,юридична особа
УГП,"Львівська область, Львів, вулиця Сербська, 1",70,2018-12-20,369171,Банківські послуги,Інші витрати,253130,Львівська обласна організація,40014820,Львівська область,"Сплата комісії за переказ коштів з поточного рахунку до 17:00 за межі Банку за допомогою системи Клієнт-Банк по документу №129, від 20.12.2018. Без ПДВ",2600477437,current,5.00,"АТ ""АКБ ""Львів""",09801546,юридична особа
УГП,"Львівська область, Львів, вулиця Сербська, 1",70,2018-12-20,366527,Банківські послуги,Інші витрати,253129,Львівська обласна організація,40014820,Львівська область,"Сплата комісії за переказ коштів з поточного рахунку до 17:00 за межі Банку за допомогою системи Клієнт-Банк по документу №126, від 20.12.2018. Без ПДВ",2600477437,current,5.00,"АТ ""АКБ ""Львів""",09801546,юридична особа
УГП,"Львівська область, Львів, вулиця Сербська, 1",70,2018-12-20,369317,Банківські послуги,Інші витрати,253128,Львівська обласна організація,40014820,Львівська область,"Сплата комісії за переказ коштів з поточного рахунку до 17:00 за межі Банку за допомогою системи Клієнт-Банк по документу №130, від 20.12.2018. Без ПДВ",2600477437,current,5.00,"АТ ""АКБ ""Львів""",09801546,юридична особа
УГП,"Львівська область, Львів, вулиця Сербська, 1",70,2018-12-20,366496,Банківські послуги,Інші витрати,253127,Львівська обласна організація,40014820,Львівська область,"Сплата комісії за переказ коштів з поточного рахунку до 17:00 за межі Банку за допомогою системи Клієнт-Банк по документу №125, від 20.12.2018. Без ПДВ",2600477437,current,5.00,"АТ ""АКБ ""Львів""",09801546,юридична особа
УГП,"Львівська область, Львів, вулиця Сербська, 1",70,2018-12-20,369528,Банківські послуги,Інші витрати,253126,Львівська обласна організація,40014820,Львівська область,"Сплата комісії за переказ коштів з поточного рахунку до 17:00 за межі Банку за допомогою системи Клієнт-Банк по документу №131, від 20.12.2018. Без ПДВ",2600477437,current,5.00,"АТ ""АКБ ""Львів""",09801546,юридична особа
УГП,"Львівська область, Львів, вулиця Сербська, 1",70,2018-12-20,366816,Банківські послуги,Інші витрати,253125,Львівська обласна організація,40014820,Львівська область,"Сплата комісії за переказ коштів з поточного рахунку до 17:00 в межах системи Банку за допомогою системи Клієнт-Банк по документу №128, від 20.12.2018. Без ПДВ",2600477437,current,3.00,"АТ ""АКБ ""Львів""",09801546,юридична особа
УГП,"Львівська область, Пустомитівський район",84,2018-12-20,128,"Заробітна плата, премії","Заробітна плата, лікарняні, вагітності, відрядження, компенсації",253013,Львівська обласна організація,40014820,Львівська область,Виплата заробітної плати за 1 половину грудня 2018 року,2600477437,current,2254.00,Васильченко Галина Іванівна,,фізична особа
УГП,"Львівська область, Львів",84,2018-12-20,368180,"Заробітна плата, премії","Заробітна плата, лікарняні, вагітності, відрядження, компенсації",253012,Львівська обласна організація,40014820,Львівська область,Заробітна плата за 1 половину грудня 2018 року,2600477437,current,1972.25,Щурко Іван Петрович,,фізична особа
УГП,"Львівська область, Львів, вулиця Сербська, 1",70,2018-12-20,367878,Банківські послуги,Інші витрати,252816,Центральний офіс,39481037,Україна,"Сплата комісії за переказ коштів з поточного рахунку до 17:00 в межах системи Банку за допомогою системи Клієнт-Банк по документу №377, від 20.12.2018. Без ПДВ",2600671275,current,3.00,"АТ ""АКБ ""Львів""",09801546,юридична особа
УГП,"Львівська область, Львів, вулиця Конотопська, 6",61,2018-12-20,378,Військовий збір,Податкові платежі,252815,Центральний офіс,39481037,Україна,"*;101;39481037; утриманий військовий збір із заробітної плати за 1 пол. грудня 2018р.,1,5% - 251,25 грн.;;;",2600671275,current,251.25,УДКСУ у Франківському районі м. Львова,37965138,юридична особа
УГП,"Львівська область, Львів, вулиця Сербська, 1",70,2018-12-20,368090,Банківські послуги,Інші витрати,252814,Центральний офіс,39481037,Україна,"Сплата комісії за переказ коштів з поточного рахунку до 17:00 за межі Банку за допомогою системи Клієнт-Банк по документу №378, від 20.12.2018. Без ПДВ",2600671275,current,5.00,"АТ ""АКБ ""Львів""",09801546,юридична особа
УГП,"Львівська область, Львів, вулиця Стрийська, 35",62,2018-12-20,380,Сплата ЄСВ,Податкові платежі,252811,Центральний офіс,39481037,Україна,"*;101;39481037; 22,0% нарах. єдиного внеску на заробітну плату за 1 пол.грудня 2018р. - 3685,00 грн.;;;",2600671275,current,3685.00,Залізнична ОДПІ ГУ ДФС у Львівській області,39554382,юридична особа
УГП,"Львівська область, Львів, вулиця Конотопська, 6",63,2018-12-20,379,Податок на доходи,Податкові платежі,252810,Центральний офіс,39481037,Україна,"*;101;39481037; податок на доходи фізичних осіб із заробітної плати за 1 пол. грудня 2018р., 18% - 3015,00 грн.;;;",2600671275,current,3015.00,УДКСУ у Франківському районі м. Львова,37965138,юридична особа
УГП,"Львівська область, Львів, вулиця Сербська, 1",70,2018-12-20,369362,Банківські послуги,Інші витрати,252809,Центральний офіс,39481037,Україна,"Сплата комісії за переказ коштів з поточного рахунку до 17:00 за межі Банку за допомогою системи Клієнт-Банк по документу №379, від 20.12.2018. Без ПДВ",2600671275,current,5.00,"АТ ""АКБ ""Львів""",09801546,юридична особа
УГП,"Львівська область, Львів, вулиця Сербська, 1",70,2018-12-20,369364,Банківські послуги,Інші витрати,252808,Центральний офіс,39481037,Україна,"Сплата комісії за переказ коштів з поточного рахунку до 17:00 за межі Банку за допомогою системи Клієнт-Банк по документу №381, від 20.12.2018. Без ПДВ",2600671275,current,5.00,"АТ ""АКБ ""Львів""",09801546,юридична особа
УГП,"Львівська область, Львів, вулиця Сербська, 1",70,2018-12-20,369363,Банківські послуги,Інші витрати,252807,Центральний офіс,39481037,Україна,"Сплата комісії за переказ коштів з поточного рахунку до 17:00 за межі Банку за допомогою системи Клієнт-Банк по документу №380, від 20.12.2018. Без ПДВ",2600671275,current,5.00,"АТ ""АКБ ""Львів""",09801546,юридична особа
УГП,"Львівська область, Львів, вулиця Сербська, 1",70,2018-12-20,369365,Банківські послуги,Інші витрати,252806,Центральний офіс,39481037,Україна,"Сплата комісії за переказ коштів з поточного рахунку до 17:00 за межі Банку за допомогою системи Клієнт-Банк по документу №382, від 20.12.2018. Без ПДВ",2600671275,current,5.00,"АТ ""АКБ ""Львів""",09801546,юридична особа
УГП,"Львівська область, Львів, вулиця Сербська, 1",70,2018-12-20,369469,Банківські послуги,Інші витрати,252804,Центральний офіс,39481037,Україна,"Сплата комісії за переказ коштів з поточного рахунку до 17:00 в межах системи Банку за допомогою системи Клієнт-Банк по документу №383, від 20.12.2018. Без ПДВ",2600671275,current,3.00,"АТ ""АКБ ""Львів""",09801546,юридична особа
УГП,"Львівська область, Львів, вулиця Сербська, 1",70,2018-12-20,370829,Банківські послуги,Інші витрати,252803,Центральний офіс,39481037,Україна,"Сплата комісії за зарахуванню коштів на рахунки фізичних осіб підприємства по зарплатному проекту по документу №370828, від 20.12.2018. Без ПДВ",2600671275,current,80.90,"АТ ""АКБ ""Львів""",09801546,юридична особа
УГП,"Львівська область, Львів",84,2018-12-20,370831,"Заробітна плата, премії","Заробітна плата, лікарняні, вагітності, відрядження, компенсації",252585,Центральний офіс,39481037,Україна,Заробітна плата за 1 половину грудня 2018 року,2600671275,current,4266.50,Панкевич Богдан Романович,,фізична особа
УГП,"Львівська область, Львів",84,2018-12-20,370830,"Заробітна плата, премії","Заробітна плата, лікарняні, вагітності, відрядження, компенсації",252584,Центральний офіс,39481037,Україна,Заробітна плата за 1 половину грудня 2018 року,2600671275,current,4266.50,Лозинський Роман Михайлович,,фізична особа
УГП,Тернопільська область,84,2018-12-20,370832,"Заробітна плата, премії","Заробітна плата, лікарняні, вагітності, відрядження, компенсації",252583,Центральний офіс,39481037,Україна,Заробітна плата за 1 половину грудня 2018 року,2600671275,current,3260.25,Яремчук Ірина Романівна,,фізична особа
УГП,"Львівська область, Львів",84,2018-12-20,370833,"Заробітна плата, премії","Заробітна плата, лікарняні, вагітності, відрядження, компенсації",252582,Центральний офіс,39481037,Україна,Заробітна плата за 1 половину грудня 2018 року,2600671275,current,1690.50,Герич Ганна Вікторівна,,фізична особа
УГП,"Львівська область, Львів, вулиця Сербська, 1",70,2018-12-19,345701,Банківські послуги,Інші витрати,252802,Центральний офіс,39481037,Україна,"Сплата комісії за переказ коштів з поточного рахунку до 17:00 за межі Банку за допомогою системи Клієнт-Банк по документу №376, від 19.12.2018. Без ПДВ",2600671275,current,5.00,"АТ ""АКБ ""Львів""",09801546,юридична особа
УГП,"Львівська область, Львів",82,2018-12-19,376,"Гонорари, в тому числі за надані консультаційні послуги","Гонорари, в тому числі за надані консультаційні послуги",252581,Центральний офіс,39481037,Україна,"Оплата за послуги з маркетингу, анал.соц.мереж і послуг в сфері онлайн реклами згідно рах.№6 від 04.12.18р., згідно договору №6 від 08.06.2018р., без ПДВ",2600671275,current,15000.00,Юринець Маркіян Олегович,,фізична особа
УГП,"Тернопільська область, Тернопіль, вулиця Чорновола, 1",75,2018-12-18,314,Поштові послуги та поширення друкованих матеріалів,Поштові послуги та поширення друкованих матеріалів,253294,Тернопільська обласна організація,40011526,Тернопільська область,"Оплата згiдно рах. N 1606 вiд 30.11.2018р. У сумi 1500.83 грн., ПДВ - 20 % 300.17 грн.",26006055117228,current,1801.00,"Тернопільська дирекція ПАТ ""Укрпошта""",01192220,юридична особа
УГП,"Тернопільська область, Тернопіль, Замкова вулиця, 14",43,2018-12-18,315,Інші витрати,Інші витрати,253293,Тернопільська обласна організація,40011526,Тернопільська область,"Оплата згiдно рах. N 2273 вiд 12.12.2018р. У сумi 1500.00 грн., ПДВ - 20 % 300.00 грн.",26006055117228,current,1800.00,ПАТ 'Тернопіль-готель',14038383,юридична особа
УГП,"Київ, вулиця Здолбунівська, 7",60,2018-12-18,314,Інші податки,Податкові платежі,253292,Тернопільська обласна організація,40011526,Тернопільська область,"Оплата згiдно рах. N 17 вiд 06.12.2018р.1912;40011526;""Українська Галицька Партiя""; страховий платiж; Без ПДВ",26006055117228,current,446.86,"ПАТ ""НАСК ""Оранта""",00034186,юридична особа
УГП,"Тернопільська область, Тернопіль, проспект Степана Бандери, 38",70,2018-12-18,CIO1NB4JWY,Банківські послуги,Інші витрати,253291,Тернопільська обласна організація,40011526,Тернопільська область,"Комiсiя за виконання платежiв в нацiональнiй валютi, згiдно з вiдкритою офертою банку N б/н вiд 21.09.2015 та тарифiв банку, без ПДВ",26006055117228,current,3.00,"ПАТ КБ ""Приватбанк""",14360570,юридична особа
УГП,"Тернопільська область, Тернопіль, проспект Степана Бандери, 38",70,2018-12-18,CIO1NB4JJY,Банківські послуги,Інші витрати,253290,Тернопільська обласна організація,40011526,Тернопільська область,"Комiсiя за виконання платежiв в нацiональнiй валютi, згiдно з вiдкритою офертою банку N б/н вiд 21.09.2015 та тарифiв банку, без ПДВ",26006055117228,current,3.00,"ПАТ КБ ""Приватбанк""",14360570,юридична особа
УГП,"Тернопільська область, Тернопіль, проспект Степана Бандери, 38",70,2018-12-18,CIO1NB4JFY,Банківські послуги,Інші витрати,253289,Тернопільська обласна організація,40011526,Тернопільська область,"Комiсiя за виконання платежiв в нацiональнiй валютi, згiдно з вiдкритою офертою банку N б/н вiд 21.09.2015 та тарифiв банку, без ПДВ",26006055117228,current,3.00,"ПАТ КБ ""Приватбанк""",14360570,юридична особа
УГП,"Тернопільська область, Тернопіль",79,2018-12-18,313,"Оренда будинків і приміщень та експлуатаційні витрати (прибирання, страхування орендованих будинків, охорона, сигналізація, ремонт, вивіз сміття, тощо)",Оренда нерухомості,253198,Тернопільська обласна організація,40011526,Тернопільська область,"Оплата за оренду згiдно договору N28 вiд 01.11.2015р. за грудень 2018р. У сумi 2983.33 грн., ПДВ - 20 % 596.67 грн.",26006055117228,current,3580.00,Клепач Валентина Анатоліївна,,фізична особа
УГП,"м. Тернопіль, вул. Київська, буд. 7, кв. 178",43,2018-12-18,316,Інші витрати,Інші витрати,253197,Тернопільська обласна організація,40011526,Тернопільська область,Оплата згiдно рах. N СФ-0001126 вiд 10.12.2018р. Без ПДВ,26006055117228,current,1200.00,Миколюк Світлана Миколаївна,3191202564,фізична особа
УГП,"Тернопільська область, Тернопіль, проспект Степана Бандери, 38",70,2018-12-17,CHO1N5E0BY,Банківські послуги,Інші витрати,253287,Тернопільська обласна організація,40011526,Тернопільська область,"Комiсiя за виконання платежiв в нацiональнiй валютi, згiдно з вiдкритою офертою банку N б/н вiд 21.09.2015 та тарифiв банку, без ПДВ",26006055117228,current,3.00,"ПАТ КБ ""Приватбанк""",14360570,юридична особа
УГП,"Львівська область, Борислав, вулиця Данила Галицького, 34",79,2018-12-17,122,"Оренда будинків і приміщень та експлуатаційні витрати (прибирання, страхування орендованих будинків, охорона, сигналізація, ремонт, вивіз сміття, тощо)",Оренда нерухомості,253124,Львівська обласна організація,40014820,Львівська область,"Оплата за оренду приміщення 24,4кв.м. за грудень 2018р., відш.зем.п., згідно рах.№292 від 17.12.2018р., згідно договору оренди №1 від 01.10.2018р., без ПДВ",2600477437,current,456.75,Бориславський міський Палац культ.,25261121,юридична особа
УГП,"Львівська область, Борислав, вулиця Івасюка, 12",79,2018-12-17,123,"Оренда будинків і приміщень та експлуатаційні витрати (прибирання, страхування орендованих будинків, охорона, сигналізація, ремонт, вивіз сміття, тощо)",Оренда нерухомості,253123,Львівська обласна організація,40014820,Львівська область,"Оплата за оренду приміщення 24,4кв.м. за грудень 2018р., згідно рах. №293 від 17.12.2018р., згідно договору оренди №1 від 01.10.2018р., без ПДВ",2600477437,current,443.66,УДКСУ у м. Бориславі,37942974,юридична особа
УГП,"Львівська область, Борислав, вулиця Данила Галицького, 34",79,2018-12-17,124,"Оренда будинків і приміщень та експлуатаційні витрати (прибирання, страхування орендованих будинків, охорона, сигналізація, ремонт, вивіз сміття, тощо)",Оренда нерухомості,253122,Львівська обласна організація,40014820,Львівська область,"Оплата відшкод. за водопостач. та водовідвед. за грудень2018р., відшкод. за електроен. зг. рах.№294 від 17.12.2018р., зг. дог.оренди №1 від 01.10.2018р., без ПДВ",2600477437,current,54.21,Бориславський міський Палац культ.,25261121,юридична особа
УГП,"Львівська область, Львів, вулиця Сербська, 1",70,2018-12-17,292318,Банківські послуги,Інші витрати,253121,Львівська обласна організація,40014820,Львівська область,"Сплата комісії за переказ коштів з поточного рахунку до 17:00 за межі Банку за допомогою системи Клієнт-Банк по документу №124, від 17.12.2018. Без ПДВ",2600477437,current,5.00,"АТ ""АКБ ""Львів""",09801546,юридична особа
УГП,"Львівська область, Львів, вулиця Сербська, 1",70,2018-12-17,292199,Банківські послуги,Інші витрати,253120,Львівська обласна організація,40014820,Львівська область,"Сплата комісії за переказ коштів з поточного рахунку до 17:00 за межі Банку за допомогою системи Клієнт-Банк по документу №123, від 17.12.2018. Без ПДВ",2600477437,current,5.00,"АТ ""АКБ ""Львів""",09801546,юридична особа
УГП,"Львівська область, Львів, вулиця Сербська, 1",70,2018-12-17,292169,Банківські послуги,Інші витрати,253119,Львівська обласна організація,40014820,Львівська область,"Сплата комісії за переказ коштів з поточного рахунку до 17:00 за межі Банку за допомогою системи Клієнт-Банк по документу №122, від 17.12.2018. Без ПДВ",2600477437,current,5.00,"АТ ""АКБ ""Львів""",09801546,юридична особа
УГП,"Львівська область, Львів, вулиця Нечуя-Левицького, 23, 4Б",79,2018-12-17,374,"Оренда будинків і приміщень та експлуатаційні витрати (прибирання, страхування орендованих будинків, охорона, сигналізація, ремонт, вивіз сміття, тощо)",Оренда нерухомості,252801,Центральний офіс,39481037,Україна,"Оплата за оренду арок за грудень 2018р. згідно рахунку №537 від 04.12.18р, згід.договору №25-12-17/01 від 25.12.17р.,в т.ч. ПДВ 4000.00 грн.",2600671275,current,24000.00,"ТОВ ""Аврора Адвертайзінг""",38893253,юридична особа
УГП,"Львівська область, Львів, вулиця Сербська, 1",70,2018-12-17,296692,Банківські послуги,Інші витрати,252799,Центральний офіс,39481037,Україна,"Сплата комісії за переказ коштів з поточного рахунку до 17:00 за межі Банку за допомогою системи Клієнт-Банк по документу №375, від 17.12.2018. Без ПДВ",2600671275,current,5.00,"АТ ""АКБ ""Львів""",09801546,юридична особа
УГП,"Львівська область, Львів, вулиця Сербська, 1",70,2018-12-17,296589,Банківські послуги,Інші витрати,252798,Центральний офіс,39481037,Україна,"Сплата комісії за переказ коштів з поточного рахунку до 17:00 за межі Банку за допомогою системи Клієнт-Банк по документу №374, від 17.12.2018. Без ПДВ",2600671275,current,5.00,"АТ ""АКБ ""Львів""",09801546,юридична особа
УГП,"Львівська область, Львів, вулиця Сербська, 1",70,2018-12-17,292075,Банківські послуги,Інші витрати,252797,Центральний офіс,39481037,Україна,"Сплата комісії за переказ коштів з поточного рахунку до 17:00 за межі Банку за допомогою системи Клієнт-Банк по документу №373, від 17.12.2018. Без ПДВ",2600671275,current,5.00,"АТ ""АКБ ""Львів""",09801546,юридична особа
УГП,"Львівська область, Львів",58,2018-12-17,373,"Виготовлення друкованих матеріалів (плакатів, листівок, буклетів та інших агітаційних матеріалів)",Друкована агітація,252580,Центральний офіс,39481037,Україна,"Оплата за папір А4 80 g/m 500 листів ""Крістал Про"" зг. рахунку-фактури № Т/Н-000310 від 14.12.2018р., без ПДВ",2600671275,current,910.00,Лисканич Христина Стефанівна,,фізична особа
УГП,"Львівська область, Львів, вулиця Князя Романа, 20, 1",69,2018-12-11,371,Організація заходів та інші організаційні послуги,Організація заходів та інші організаційні послуги,252796,Центральний офіс,39481037,Україна,"Оплата за конференц зал у гот.швейцарський та обслуг.заходу згідно рах.-фактури №СФ-0000384 від 09.11.2018р., в т.ч. ПДВ 313,33 грн.",2600671275,current,1880.00,"ПП ""Кейтерінг-сервіс""",34711154,юридична особа
УГП,"Львівська область, Львів, вулиця Іларіона Свєнціцького, 1",76,2018-12-11,372,Послуги зв’язку,Послуги зв’язку,252795,Центральний офіс,39481037,Україна,"Попередня оплата за телекомунікац.послуги за Січень 2019 р., згідно рахунку №2655010 від 07.12.2018 зг.догов.№181691 від 01.04.2018, в т.ч.ПДВ 20,00 грн.",2600671275,current,120.00,"ДП ""НТЦ ""Українська академічна і дослідницька мережа"" Інституту фізики конденсованих систем НАН України""",30275262,юридична особа
УГП,"Львівська область, Львів, вулиця Сербська, 1",70,2018-12-11,185710,Банківські послуги,Інші витрати,252794,Центральний офіс,39481037,Україна,"Сплата комісії за переказ коштів з поточного рахунку до 17:00 за межі Банку за допомогою системи Клієнт-Банк по документу №371, від 11.12.2018. Без ПДВ",2600671275,current,5.00,"АТ ""АКБ ""Львів""",09801546,юридична особа
УГП,"Львівська область, Львів, вулиця Сербська, 1",70,2018-12-11,185775,Банківські послуги,Інші витрати,252793,Центральний офіс,39481037,Україна,"Сплата комісії за переказ коштів з поточного рахунку до 17:00 в межах системи Банку за допомогою системи Клієнт-Банк по документу №372, від 11.12.2018. Без ПДВ",2600671275,current,3.00,"АТ ""АКБ ""Львів""",09801546,юридична особа
УГП,"Тернопільська область, Тернопіль, проспект Степана Бандери, 38",70,2018-12-10,CAO1M9F24Y,Банківські послуги,Інші витрати,253286,Тернопільська обласна організація,40011526,Тернопільська область,"Комiсiя за виконання платежiв в нацiональнiй валютi, згiдно з вiдкритою офертою банку N б/н вiд 21.09.2015 та тарифiв банку, без ПДВ",26006055117228,current,3.00,"ПАТ КБ ""Приватбанк""",14360570,юридична особа
УГП,"Тернопільська область, Тернопіль, вулиця Білецька, 1",62,2018-12-10,311,Сплата ЄСВ,Податкові платежі,253285,Тернопільська обласна організація,40011526,Тернопільська область,*;101;40011526;71040000; ЄСВ вiд зарплати за листопад 2018р.;;;,26006055117228,current,148.06,Тернопільська ОДПІ ГУ ДФС в Тернопільській області,39502025,юридична особа
УГП,"Львівська область, Львів, вулиця Сербська, 1",70,2018-12-10,159368,Банківські послуги,Інші витрати,253118,Львівська обласна організація,40014820,Львівська область,"Сплата комісії за переказ коштів з поточного рахунку до 17:00 за межі Банку за допомогою системи Клієнт-Банк по документу №121, від 10.12.2018. Без ПДВ",2600477437,current,5.00,"АТ ""АКБ ""Львів""",09801546,юридична особа
УГП,,66,2018-12-10,121,Повернення внесків приватних внесків (донорам),Повернення приватних внесків (донорам),253011,Львівська обласна організація,40014820,Львівська область,"Повернення платежу - для сплати членських внесків від ПАНЬКІВ М. Б. №док 67629938 вiд 30.11.2018,у звʼяз.з відсут.ідентиф.даних, невідповід. ЗУ ʼПро полiт.партії",2600477437,current,1000.00,Паньків Марія Богданівна,,фізична особа
УГП,,66,2018-12-10,121,Повернення внесків приватних внесків (донорам),Повернення приватних внесків (донорам),252979,Львівська обласна організація,40014820,Львівська область,"Повернення платежу - для сплати членських внесків від ПАНЬКІВ М. Б. №док 67629938 вiд 30.11.2018,у звʼяз.з відсут. ідентиф.даних, невідповід. ЗУ ʼПро полiт. партії",2600477437,current,1000.00,Паньків Марія Богданівна,,фізична особа
УГП,"Львівська область, Львів, вулиця Володимира Великого, 5А",49,2018-12-10,370,Публікування матеріалів у друкованих ЗМІ,Реклама в друкованих ЗМІ,252792,Центральний офіс,39481037,Україна,"Оплата за рекламно-інформац.послуги у газ.""Експрес""Четвер, Львівс.новини 06.12.18 згідно рах.№1202/1 від 03.12.18, дог.62-РД від 22.06.18, в т.ч. ПДВ 2331.00 грн.",2600671275,current,13986.00,"ТОВ ""Експрес медіа друк""",38380732,юридична особа
УГП,"Львівська область, Львів, вулиця Сербська, 1",70,2018-12-10,161663,Банківські послуги,Інші витрати,252791,Центральний офіс,39481037,Україна,"Сплата комісії за переказ коштів з поточного рахунку до 17:00 за межі Банку за допомогою системи Клієнт-Банк по документу №370, від 10.12.2018. Без ПДВ",2600671275,current,5.00,"АТ ""АКБ ""Львів""",09801546,юридична особа
УГП,"Тернопільська область, Тернопіль, вулиця Білецька, 1",62,2018-12-07,308,Сплата ЄСВ,Податкові платежі,253284,Тернопільська обласна організація,40011526,Тернопільська область,ЄСВ вiд зарплати за листопад 2018р.,26006055117228,current,840.40,Тернопільська ОДПІ ГУ ДФС в Тернопільській області,39502025,юридична особа
УГП,"Тернопільська область, Тернопіль, вулиця Листопадова, 3",63,2018-12-07,307,Податок на доходи,Податкові платежі,253283,Тернопільська обласна організація,40011526,Тернопільська область,ПДФО вiд зарплати за листопад 2018р.,26006055117228,current,687.60,УДКСУ у м. Тернопіль,37977726,юридична особа
УГП,"Тернопільська область, Тернопіль, вулиця Листопадова, 3",61,2018-12-07,309,Військовий збір,Податкові платежі,253282,Тернопільська обласна організація,40011526,Тернопільська область,Вiйськовий збiр вiд зарплати за листопад 2018р.,26006055117228,current,57.30,УДКСУ у м. Тернопіль,37977726,юридична особа
УГП,"Тернопільська область, Тернопіль, проспект Степана Бандери, 38",70,2018-12-07,310,Банківські послуги,Інші витрати,253281,Тернопільська обласна організація,40011526,Тернопільська область,Комiсiя РКО вiд зарплати за листопад 2018р.,26006055117228,current,7.69,"ПАТ КБ ""Приватбанк""",14360570,юридична особа
УГП,"Тернопільська область, Тернопіль, проспект Степана Бандери, 38",70,2018-12-07,C7O1M2AD8Y,Банківські послуги,Інші витрати,253280,Тернопільська обласна організація,40011526,Тернопільська область,"Комiсiя за виконання платежiв в нацiональнiй валютi, згiдно з вiдкритою офертою банку N б/н вiд 21.09.2015 та тарифiв банку, без ПДВ",26006055117228,current,3.00,"ПАТ КБ ""Приватбанк""",14360570,юридична особа
УГП,"Тернопільська область, Тернопіль, проспект Степана Бандери, 38",70,2018-12-07,C7O1M2AD2Y,Банківські послуги,Інші витрати,253279,Тернопільська обласна організація,40011526,Тернопільська область,"Комiсiя за виконання платежiв в нацiональнiй валютi, згiдно з вiдкритою офертою банку N б/н вiд 21.09.2015 та тарифiв банку, без ПДВ",26006055117228,current,3.00,"ПАТ КБ ""Приватбанк""",14360570,юридична особа
УГП,"Тернопільська область, Тернопіль, проспект Степана Бандери, 38",70,2018-12-07,C7O1M2ACWY,Банківські послуги,Інші витрати,253278,Тернопільська обласна організація,40011526,Тернопільська область,"Комiсiя за виконання платежiв в нацiональнiй валютi, згiдно з вiдкритою офертою банку N б/н вiд 21.09.2015 та тарифiв банку, без ПДВ",26006055117228,current,3.00,"ПАТ КБ ""Приватбанк""",14360570,юридична особа
УГП,"Тернопільська область, Тернопіль",84,2018-12-07,306,"Заробітна плата, премії","Заробітна плата, лікарняні, вагітності, відрядження, компенсації",253196,Тернопільська обласна організація,40011526,Тернопільська область,Заробітна плата за другу половину листопада 2018р.,26006055117228,current,1223.60,Войтович Анна Вʼячеславівна,,фізична особа
УГП,"Тернопільська область, Тернопіль",84,2018-12-07,306,"Заробітна плата, премії","Заробітна плата, лікарняні, вагітності, відрядження, компенсації",253195,Тернопільська обласна організація,40011526,Тернопільська область,Заробітна плата за другу половину листопада 2018р.,26006055117228,current,1851.50,Богун Андрій Ігорович,,фізична особа
УГП,"Івано-Франківська область, Івано-Франківськ, вулиця Михайла Грушевського, 21",51,2018-12-07,401,Оплата ефірного часу на ТБ,Телереклама,252956,Івано-Франківська обласна організація,40026836,Івано-Франківська область,"оплата згiдно рахунку N 339 вiд 06.11.18 за рекламнi послуги У сумi 14760.00 грн., ПДВ - 20 % 2952.00 грн.",26005052517967,current,17712.00,"Івано-Франківське обласне телебачення ""Галичина""",13641427,юридична особа
УГП,"Івано-Франківська область, Івано-Франківськ, вулиця Січових стрільців, 15",70,2018-12-07,C7O1M5X2AY,Банківські послуги,Інші витрати,252955,Івано-Франківська обласна організація,40026836,Івано-Франківська область,"Комiсiя за виконання платежiв в нацiональнiй валютi, згiдно з вiдкритою офертою банку N б/н вiд 29.09.2015 та тарифiв банку, без ПДВ",26005052517967,current,3.00,"ПАТ КБ ""Приватбанк""",14360570,юридична особа
УГП,"Львівська область, Сокальський район, Сокаль, площа Січових Стрільців, 18",51,2018-12-07,369,Оплата ефірного часу на ТБ,Телереклама,252789,Центральний офіс,39481037,Україна,"Оплата за трансляцію матеріалів 05.12-06.12.18 згідно рахунку №1/06 від 06.12.2018р., в т.ч. ПДВ 51,33 грн.",2600671275,current,308.00,КП ТРК ʼСокальʼ,20846058,юридична особа
УГП,"Львівська область, Львів, вулиця Сербська, 1",70,2018-12-07,930316РКО,Банківські послуги,Інші витрати,252788,Центральний офіс,39481037,Україна,Комісія за послуги Банку,2600671275,current,8.00,"АТ ""АКБ ""Львів""",09801546,юридична особа
УГП,"Львівська область, Львів, вулиця Сербська, 1",70,2018-12-07,123758,Банківські послуги,Інші витрати,252787,Центральний офіс,39481037,Україна,"Сплата комісії за переказ коштів з поточного рахунку до 17:00 за межі Банку за допомогою системи Клієнт-Банк по документу №369, від 07.12.2018. Без ПДВ",2600671275,current,5.00,"АТ ""АКБ ""Львів""",09801546,юридична особа
УГП,"Львівська область, Львів, вулиця Сербська, 1",70,2018-12-07,119587,Банківські послуги,Інші витрати,252786,Центральний офіс,39481037,Україна,"Сплата комісії за переказ коштів з поточного рахунку до 17:00 за межі Банку за допомогою системи Клієнт-Банк по документу №368, від 07.12.2018. Без ПДВ",2600671275,current,5.00,"АТ ""АКБ ""Львів""",09801546,юридична особа
УГП,"Івано-Франківська область, Рожнятівський район, Рожнятів, площа Єдності, 31",49,2018-12-06,400,Публікування матеріалів у друкованих ЗМІ,Реклама в друкованих ЗМІ,252954,Івано-Франківська обласна організація,40026836,Івано-Франківська область,"Оплата за статтю за 23.11.18 згiдно рахункуN162 вiд 06.12.18, без ПДВ",26005052517967,current,1400.00,"РГ ""Новини Підгірʼя""",02472973,юридична особа
УГП,"Івано-Франківська область, Івано-Франківськ, вулиця Михайла Грушевського, 21",51,2018-12-06,399,Оплата ефірного часу на ТБ,Телереклама,252953,Івано-Франківська обласна організація,40026836,Івано-Франківська область,"оплата згiдно рахунку N 318 вiд 05.10.18 за iнформацiйнi послуги У сумi 2083.33 грн., ПДВ - 20 % 416.67 грн.",26005052517967,current,2500.00,"Івано-Франківське обласне телебачення ""Галичина""",13641427,юридична особа
УГП,"Івано-Франківська область, Івано-Франківськ, вулиця Січових стрільців, 15",70,2018-12-06,C6O1LVM8HY,Банківські послуги,Інші витрати,252952,Івано-Франківська обласна організація,40026836,Івано-Франківська область,"Комiсiя за виконання платежiв в нацiональнiй валютi, згiдно з вiдкритою офертою банку N б/н вiд 29.09.2015 та тарифiв банку, без ПДВ",26005052517967,current,3.00,"ПАТ КБ ""Приватбанк""",14360570,юридична особа
УГП,"Івано-Франківська область, Івано-Франківськ, площа Міцкевича, 8",79,2018-12-06,395,"Оренда будинків і приміщень та експлуатаційні витрати (прибирання, страхування орендованих будинків, охорона, сигналізація, ремонт, вивіз сміття, тощо)",Оренда нерухомості,252951,Івано-Франківська обласна організація,40026836,Івано-Франківська область,Оплата за оренду примiщення за листопад 2018 згiдно рахунку N СФ-1130022 вiд 30.11.2018р. Без ПДВ,26005052517967,current,1631.00,"ТОВ ""Крокус-Станіслав""",38162070,юридична особа
УГП,"Івано-Франківська область, Івано-Франківськ, вулиця Січових стрільців, 15",70,2018-12-06,C6O1LV0ZUY,Банківські послуги,Інші витрати,252950,Івано-Франківська обласна організація,40026836,Івано-Франківська область,"Комiсiя за виконання платежiв в нацiональнiй валютi, згiдно з вiдкритою офертою банку N б/н вiд 29.09.2015 та тарифiв банку, без ПДВ",26005052517967,current,3.00,"ПАТ КБ ""Приватбанк""",14360570,юридична особа
УГП,"Івано-Франківська область, Івано-Франківськ, вулиця Незалежності, 20",62,2018-12-06,392,Сплата ЄСВ,Податкові платежі,252949,Івано-Франківська обласна організація,40026836,Івано-Франківська область,*;101;40026836;Сплата єдиного соцiального внеску з зарплати за листопад 2018р;;;,26005052517967,current,4092.00,ДПІ в м. Івано-Франківську ГУ ДФС в Івано-Франківській області,39508514,юридична особа
УГП,"Івано-Франківська область, Івано-Франківськ, вулиця Січових стрільців, 15",70,2018-12-06,C6O1LUZX9Y,Банківські послуги,Інші витрати,252948,Івано-Франківська обласна організація,40026836,Івано-Франківська область,"Комiсiя за виконання платежiв в нацiональнiй валютi, згiдно з вiдкритою офертою банку N б/н вiд 29.09.2015 та тарифiв банку, без ПДВ",26005052517967,current,3.00,"ПАТ КБ ""Приватбанк""",14360570,юридична особа
УГП,"Івано-Франківська область, Івано-Франківськ, вулиця Січових стрільців, 15",70,2018-12-06,398,Банківські послуги,Інші витрати,252947,Івано-Франківська обласна організація,40026836,Івано-Франківська область,Комiсiя РКО вiд зарплати за листопад 2018р.,26005052517967,current,37.43,"ПАТ КБ ""Приватбанк""",14360570,юридична особа
УГП,"Івано-Франківська область, Івано-Франківськ, вулиця Михайла Грушевського, 32",61,2018-12-06,394,Військовий збір,Податкові платежі,252946,Івано-Франківська обласна організація,40026836,Івано-Франківська область,*;101;40026836;Сплата вiйськового збору з зарплати за листопад 2018р;;;,26005052517967,current,279.00,УДКСУ у м. Івано-Франківську,37952250,юридична особа
УГП,"Івано-Франківська область, Івано-Франківськ, вулиця Січових стрільців, 15",70,2018-12-06,C6O1LUZXFY,Банківські послуги,Інші витрати,252945,Івано-Франківська обласна організація,40026836,Івано-Франківська область,"Комiсiя за виконання платежiв в нацiональнiй валютi, згiдно з вiдкритою офертою банку N б/н вiд 29.09.2015 та тарифiв банку, без ПДВ",26005052517967,current,3.00,"ПАТ КБ ""Приватбанк""",14360570,юридична особа
УГП,"Івано-Франківська область, Івано-Франківськ, вулиця Михайла Грушевського, 32",63,2018-12-06,393,Податок на доходи,Податкові платежі,252944,Івано-Франківська обласна організація,40026836,Івано-Франківська область,*;101;40026836;Податок з доходiв фiзичних осiб з зарплати за листопад 2018р;;;,26005052517967,current,3348.00,УДКСУ у м. Івано-Франківську,37952250,юридична особа
УГП,"Івано-Франківська область, Івано-Франківськ, вулиця Січових стрільців, 15",70,2018-12-06,C6O1LUZXIY,Банківські послуги,Інші витрати,252943,Івано-Франківська обласна організація,40026836,Івано-Франківська область,"Комiсiя за виконання платежiв в нацiональнiй валютi, згiдно з вiдкритою офертою банку N б/н вiд 29.09.2015 та тарифiв банку, без ПДВ",26005052517967,current,3.00,"ПАТ КБ ""Приватбанк""",14360570,юридична особа
УГП,Івано-Франківська область,84,2018-12-06,397,"Заробітна плата, премії","Заробітна плата, лікарняні, вагітності, відрядження, компенсації",252884,Івано-Франківська обласна організація,40026836,Івано-Франківська область,Заробітна плата за другу половину листопада 2018р.,26005052517967,current,2455.25,Івасишин Світлана Ярославівна,,фізична особа
УГП,"Івано-Франківська область, Тисменицький район",84,2018-12-06,397,"Заробітна плата, премії","Заробітна плата, лікарняні, вагітності, відрядження, компенсації",252883,Івано-Франківська обласна організація,40026836,Івано-Франківська область,Заробітна плата за другу половину листопада 2018р.,26005052517967,current,1569.75,Бабак Віталій Михайлович,,фізична особа
УГП,Івано-Франківська область,84,2018-12-06,397,"Заробітна плата, премії","Заробітна плата, лікарняні, вагітності, відрядження, компенсації",252882,Івано-Франківська обласна організація,40026836,Івано-Франківська область,Заробітна плата за другу половину листопада 2018р.,26005052517967,current,2616.25,Сербин Наталія Зіновіївна,,фізична особа
УГП,"Львівська область, Львів",84,2018-12-06,397,"Заробітна плата, премії","Заробітна плата, лікарняні, вагітності, відрядження, компенсації",252881,Івано-Франківська обласна організація,40026836,Івано-Франківська область,Заробітна плата за другу половину листопада 2018р.,26005052517967,current,2857.75,Саїк Олег Ігорович,,фізична особа
УГП,"Івано-Франківська область, Івано-Франківськ",84,2018-12-06,397,"Заробітна плата, премії","Заробітна плата, лікарняні, вагітності, відрядження, компенсації",252880,Івано-Франківська обласна організація,40026836,Івано-Франківська область,Заробітна плата за другу половину листопада 2018р.,26005052517967,current,2616.25,Федоляк Наталія Орестівна,,фізична особа
УГП,"Івано-Франківська область, Івано-Франківськ",84,2018-12-06,397,"Заробітна плата, премії","Заробітна плата, лікарняні, вагітності, відрядження, компенсації",252879,Івано-Франківська обласна організація,40026836,Івано-Франківська область,Заробітна плата за другу половину листопада 2018р.,26005052517967,current,2857.75,Романчук Любомир Петрович,,фізична особа
УГП,"Львівська область, Львів, вулиця Петра Дорошенка, 43",76,2018-12-06,366,Послуги зв’язку,Послуги зв’язку,252785,Центральний офіс,39481037,Україна,"Оплата за телеком.посл. аванс за грудень зг.дог.№ 4600000000017884 від 26.10.16,зг.рах.№4600000000017884.11.2018 від 30.11.18,в т.ч.ПДВ 16,50 грн.",2600671275,current,99.00,"ПАТ ""Укртелеком""",21560766,юридична особа
УГП,"Київ, бульвар Вацлава Гавела, 26",58,2018-12-06,365,"Виготовлення друкованих матеріалів (плакатів, листівок, буклетів та інших агітаційних матеріалів)",Друкована агітація,252784,Центральний офіс,39481037,Україна,"Передоплата за календарі згідно рахунку-фактури № ГП-0001377 від 05.12.2018р., в т.ч. ПДВ 15.35 грн.",2600671275,current,92.12,"ТОВ ""ГАМА ПРИНТ""",41208722,юридична особа
УГП,"Львівська область, Львів, вулиця Сербська, 1",70,2018-12-06,98378,Банківські послуги,Інші витрати,252783,Центральний офіс,39481037,Україна,"Сплата комісії за переказ коштів з поточного рахунку до 17:00 за межі Банку за допомогою системи Клієнт-Банк по документу №366, від 06.12.2018. Без ПДВ",2600671275,current,5.00,"АТ ""АКБ ""Львів""",09801546,юридична особа
УГП,"Львівська область, Львів, вулиця Сербська, 1",70,2018-12-06,98288,Банківські послуги,Інші витрати,252782,Центральний офіс,39481037,Україна,"Сплата комісії за переказ коштів з поточного рахунку до 17:00 за межі Банку за допомогою системи Клієнт-Банк по документу №367, від 06.12.2018. Без ПДВ",2600671275,current,5.00,"АТ ""АКБ ""Львів""",09801546,юридична особа
УГП,"Львівська область, Львів, вулиця Сербська, 1",70,2018-12-06,97406,Банківські послуги,Інші витрати,252781,Центральний офіс,39481037,Україна,"Сплата комісії за переказ коштів з поточного рахунку до 17:00 за межі Банку за допомогою системи Клієнт-Банк по документу №365, від 06.12.2018. Без ПДВ",2600671275,current,5.00,"АТ ""АКБ ""Львів""",09801546,юридична особа
УГП,"Тернопільська область, Тернопіль",54,2018-12-06,367,Виготовлення відеозаписів,Реклама (без класифікації),252579,Центральний офіс,39481037,Україна,"Оплата за послуги відеозапису та монтажу форуму згідно договору №12-11-1/18 від 12.11.2018р., без ПДВ",2600671275,current,2816.00,Веприк Микола Іванович,,фізична особа
УГП,"Львівська область, Львів, вулиця Стрийська, 35",62,2018-12-05,119,Сплата ЄСВ,Податкові платежі,253117,Львівська обласна організація,40014820,Львівська область,"*;101;40014820; 22,0% нарах. єдиного внеску на заробітну плату за 2 пол. листопада 2018р.- 1540,00 грн.;;;",2600477437,current,1540.00,Залізнична ОДПІ ГУ ДФС у Львівській області,39554382,юридична особа
УГП,"Львівська область, Львів, вулиця Конотопська, 6",63,2018-12-05,118,Податок на доходи,Податкові платежі,253116,Львівська обласна організація,40014820,Львівська область,"*;101;40014820; податок на доходи фізичних осіб із заробітної плати за 2 пол. листопада 2018р.,18% - 1260.00 грн.;;;",2600477437,current,1260.00,УДКСУ у Франківському районі м. Львова,37965138,юридична особа
УГП,"Львівська область, Львів, вулиця Конотопська, 6",61,2018-12-05,117,Військовий збір,Податкові платежі,253115,Львівська обласна організація,40014820,Львівська область,"*;101;40014820; утриманий військовий збір із заробітної плати за 2 пол.листопада 2018р.,1,5% - 105,00 грн.;;;",2600477437,current,105.00,УДКСУ у Франківському районі м. Львова,37965138,юридична особа
УГП,"Львівська область, Львів, вулиця Сербська, 1",70,2018-12-05,81814,Банківські послуги,Інші витрати,253114,Львівська обласна організація,40014820,Львівська область,"Сплата комісії за зарахуванню коштів на рахунки фізичних осіб підприємства по зарплатному проекту по документу №81813, від 05.12.2018. Без ПДВ",2600477437,current,16.91,"АТ ""АКБ ""Львів""",09801546,юридична особа
УГП,"Львівська область, Львів, вулиця Сербська, 1",70,2018-12-05,80298,Банківські послуги,Інші витрати,253113,Львівська обласна організація,40014820,Львівська область,"Сплата комісії за переказ коштів з поточного рахунку до 17:00 за межі Банку за допомогою системи Клієнт-Банк по документу №117, від 05.12.2018. Без ПДВ",2600477437,current,5.00,"АТ ""АКБ ""Львів""",09801546,юридична особа
УГП,"Львівська область, Львів, вулиця Сербська, 1",70,2018-12-05,80371,Банківські послуги,Інші витрати,253112,Львівська обласна організація,40014820,Львівська область,"Сплата комісії за переказ коштів з поточного рахунку до 17:00 за межі Банку за допомогою системи Клієнт-Банк по документу №119, від 05.12.2018. Без ПДВ",2600477437,current,5.00,"АТ ""АКБ ""Львів""",09801546,юридична особа
УГП,"Львівська область, Львів, вулиця Сербська, 1",70,2018-12-05,80344,Банківські послуги,Інші витрати,253111,Львівська обласна організація,40014820,Львівська область,"Сплата комісії за переказ коштів з поточного рахунку до 17:00 за межі Банку за допомогою системи Клієнт-Банк по документу №118, від 05.12.2018. Без ПДВ",2600477437,current,5.00,"АТ ""АКБ ""Львів""",09801546,юридична особа
УГП,"Львівська область, Львів, вулиця Сербська, 1",70,2018-12-05,81258,Банківські послуги,Інші витрати,253110,Львівська обласна організація,40014820,Львівська область,"Сплата комісії за переказ коштів з поточного рахунку до 17:00 в межах системи Банку за допомогою системи Клієнт-Банк по документу №120, від 05.12.2018. Без ПДВ",2600477437,current,3.00,"АТ ""АКБ ""Львів""",09801546,юридична особа
УГП,"Львівська область, Пустомитівський район",84,2018-12-05,120,"Заробітна плата, премії","Заробітна плата, лікарняні, вагітності, відрядження, компенсації",253010,Львівська обласна організація,40014820,Львівська область,"Виплата заробітної плати за 2 половину листопада 2018 року, под.сплачено 05.12.18р., термін спл.05.12.18р.",2600477437,current,2817.50,Васильченко Галина Іванівна,,фізична особа
УГП,"Львівська область, Львів",84,2018-12-05,81815,"Заробітна плата, премії","Заробітна плата, лікарняні, вагітності, відрядження, компенсації",253009,Львівська обласна організація,40014820,Львівська область,Заробітна плата за 2 половину листопада 2018 року,2600477437,current,2817.50,Щурко Іван Петрович,,фізична особа
УГП,"Івано-Франківська область, Івано-Франківськ, вулиця Михайла Грушевського, 21",79,2018-12-05,396,"Оренда будинків і приміщень та експлуатаційні витрати (прибирання, страхування орендованих будинків, охорона, сигналізація, ремонт, вивіз сміття, тощо)",Оренда нерухомості,252878,Івано-Франківська обласна організація,40026836,Івано-Франківська область,"За оренду офiсного примiщення за 12.2018р., згiдно рах.N2 вiд 03.12.2018р., без ПДВ",26005052517967,current,20000.00,Петровський Олександр Павлович,,фізична особа
УГП,"Київ, бульвар Вацлава Гавела, 26",58,2018-12-05,364,"Виготовлення друкованих матеріалів (плакатів, листівок, буклетів та інших агітаційних матеріалів)",Друкована агітація,252779,Центральний офіс,39481037,Україна,"Передоплата за календарі згідно рахунку-фактури № ГП-0001377 від 05.12.2018р., в т.ч. ПДВ 2666,67",2600671275,current,16000.00,"ТОВ ""ГАМА ПРИНТ""",41208722,юридична особа
УГП,"Львівська область, Львів, вулиця Героїв УПА, 65",49,2018-12-05,363,Публікування матеріалів у друкованих ЗМІ,Реклама в друкованих ЗМІ,252778,Центральний офіс,39481037,Україна,"Оплата за рекламу на кольоровій стор. згідно рахунку №ВЗ-0001429 від 20.11.2018р., в т.ч. ПДВ 1872,00грн.",2600671275,current,11232.00,"ТОВ ""Видавничий дім ""Високий замок""",13807781,юридична особа
УГП,"Львівська область, Львів, проїзд Крива Липа, 6",79,2018-12-05,362,"Оренда будинків і приміщень та експлуатаційні витрати (прибирання, страхування орендованих будинків, охорона, сигналізація, ремонт, вивіз сміття, тощо)",Оренда нерухомості,252776,Центральний офіс,39481037,Україна,"Попередня оплата за оренду офісного приміщення у грудні 2018р., згід.рахунку №13/12 від 03.12.18р., зг.договору орен.нежит.прим.№01/2018 від 10.09.18,без ПДВ",2600671275,current,8535.00,"Львівське регіональне добровільне обʼєднання ""Нова Хвиля""",20846223,юридична особа
УГП,"Львівська область, Львів, вулиця Конотопська, 6",63,2018-12-05,360,Податок на доходи,Податкові платежі,252774,Центральний офіс,39481037,Україна,"*;101;39481037; податок на доходи фізичних осіб із орендної плати за грудень 2018р.зг.рах.№8 від 01.12.18, дог.орен.№1806-01 від 12.06.18, 18% - 3816,00 грн.;;",2600671275,current,3816.00,УДКСУ у Франківському районі м. Львова,37965138,юридична особа
УГП,"Львівська область, Львів, вулиця Конотопська, 6",61,2018-12-05,361,Військовий збір,Податкові платежі,252773,Центральний офіс,39481037,Україна,"*;101;39481037; утриманий військовий збір із орендної плати за грудень 2018р. зг.рах.№8 від 01.12.18,дог.ор.прим.№1806-01 від 12.06.18, 1,5% - 318,00 грн.;;;",2600671275,current,318.00,УДКСУ у Франківському районі м. Львова,37965138,юридична особа
УГП,"Львівська область, Львів, вулиця Сербська, 1",70,2018-12-05,82985,Банківські послуги,Інші витрати,252772,Центральний офіс,39481037,Україна,"Сплата комісії за переказ коштів з поточного рахунку до 17:00 за межі Банку за допомогою системи Клієнт-Банк по документу №364, від 05.12.2018. Без ПДВ",2600671275,current,5.00,"АТ ""АКБ ""Львів""",09801546,юридична особа
УГП,"Львівська область, Львів, вулиця Сербська, 1",70,2018-12-05,80912,Банківські послуги,Інші витрати,252771,Центральний офіс,39481037,Україна,"Сплата комісії за переказ коштів з поточного рахунку до 17:00 за межі Банку за допомогою системи Клієнт-Банк по документу №363, від 05.12.2018. Без ПДВ",2600671275,current,5.00,"АТ ""АКБ ""Львів""",09801546,юридична особа
УГП,"Львівська область, Львів, вулиця Сербська, 1",70,2018-12-05,80848,Банківські послуги,Інші витрати,252770,Центральний офіс,39481037,Україна,"Сплата комісії за переказ коштів з поточного рахунку до 17:00 за межі Банку за допомогою системи Клієнт-Банк по документу №362, від 05.12.2018. Без ПДВ",2600671275,current,5.00,"АТ ""АКБ ""Львів""",09801546,юридична особа
УГП,"Львівська область, Львів, вулиця Сербська, 1",70,2018-12-05,80544,Банківські послуги,Інші витрати,252769,Центральний офіс,39481037,Україна,"Сплата комісії за переказ коштів з поточного рахунку до 17:00 за межі Банку за допомогою системи Клієнт-Банк по документу №361, від 05.12.2018. Без ПДВ",2600671275,current,5.00,"АТ ""АКБ ""Львів""",09801546,юридична особа
УГП,"Львівська область, Львів, вулиця Сербська, 1",70,2018-12-05,80505,Банківські послуги,Інші витрати,252768,Центральний офіс,39481037,Україна,"Сплата комісії за переказ коштів з поточного рахунку до 17:00 за межі Банку за допомогою системи Клієнт-Банк по документу №360, від 05.12.2018. Без ПДВ",2600671275,current,5.00,"АТ ""АКБ ""Львів""",09801546,юридична особа
УГП,"Львівська область, Львів, вулиця Сербська, 1",70,2018-12-05,80502,Банківські послуги,Інші витрати,252767,Центральний офіс,39481037,Україна,"Сплата комісії за переказ коштів з поточного рахунку до 17:00 за межі Банку за допомогою системи Клієнт-Банк по документу №359, від 05.12.2018. Без ПДВ",2600671275,current,5.00,"АТ ""АКБ ""Львів""",09801546,юридична особа
УГП,"Львівська область, Львів, вулиця Сербська, 1",70,2018-12-05,79412,Банківські послуги,Інші витрати,252766,Центральний офіс,39481037,Україна,"Сплата комісії за переказ коштів з поточного рахунку до 17:00 за межі Банку за допомогою системи Клієнт-Банк по документу №357, від 04.12.2018. Без ПДВ",2600671275,current,5.00,"АТ ""АКБ ""Львів""",09801546,юридична особа
УГП,"Львівська область, Львів, вулиця Сербська, 1",70,2018-12-05,79411,Банківські послуги,Інші витрати,252765,Центральний офіс,39481037,Україна,"Сплата комісії за переказ коштів з поточного рахунку до 17:00 за межі Банку за допомогою системи Клієнт-Банк по документу №356, від 04.12.2018. Без ПДВ",2600671275,current,5.00,"АТ ""АКБ ""Львів""",09801546,юридична особа
УГП,"Львівська область, Львів, вулиця Сербська, 1",70,2018-12-05,79413,Банківські послуги,Інші витрати,252764,Центральний офіс,39481037,Україна,"Сплата комісії за переказ коштів з поточного рахунку до 17:00 в межах системи Банку за допомогою системи Клієнт-Банк по документу №358, від 04.12.2018. Без ПДВ",2600671275,current,3.00,"АТ ""АКБ ""Львів""",09801546,юридична особа
УГП,Київ,79,2018-12-05,359,"Оренда будинків і приміщень та експлуатаційні витрати (прибирання, страхування орендованих будинків, охорона, сигналізація, ремонт, вивіз сміття, тощо)",Оренда нерухомості,252578,Центральний офіс,39481037,Україна,"Оплата аван.оренд.плата за грудень 2018.зг.рах.№8 від 01.12.18,дог.№1806-1 від12.06.2018 без ПДВ",2600671275,current,17066.00,Іванов Юрій Миколайович,,фізична особа
УГП,"Львівська область, Львів, вулиця Стрийська, 35",62,2018-12-04,355,Сплата ЄСВ,Податкові платежі,252763,Центральний офіс,39481037,Україна,"*;101;39481037; 22,0% нарах. єдиного внеску на заробітну плату за 2 пол.листопада 2018р. - 3685,00 грн.;;;",2600671275,current,3685.00,Залізнична ОДПІ ГУ ДФС у Львівській області,39554382,юридична особа
УГП,"Львівська область, Львів, вулиця Конотопська, 6",63,2018-12-04,354,Податок на доходи,Податкові платежі,252762,Центральний офіс,39481037,Україна,"*;101;39481037; податок на доходи фізичних осіб із заробітної плати за 2 пол. листопада 2018р., 18% 3015,01 грн.;;;",2600671275,current,3015.01,УДКСУ у Франківському районі м. Львова,37965138,юридична особа
УГП,"Львівська область, Львів, вулиця Сербська, 1",70,2018-12-04,55455,Банківські послуги,Інші витрати,252761,Центральний офіс,39481037,Україна,"Сплата комісії за зарахуванню коштів на рахунки фізичних осіб підприємства по зарплатному проекту по документу №55454, від 03.12.2018. Без ПДВ",2600671275,current,80.90,"АТ ""АКБ ""Львів""",09801546,юридична особа
УГП,"Львівська область, Львів, вулиця Сербська, 1",70,2018-12-04,40189,Банківські послуги,Інші витрати,252760,Центральний офіс,39481037,Україна,"Сплата комісії за переказ коштів з поточного рахунку до 17:00 за межі Банку за допомогою системи Клієнт-Банк по документу №355, від 03.12.2018. Без ПДВ",2600671275,current,5.00,"АТ ""АКБ ""Львів""",09801546,юридична особа
УГП,"Львівська область, Львів, вулиця Сербська, 1",70,2018-12-04,40188,Банківські послуги,Інші витрати,252759,Центральний офіс,39481037,Україна,"Сплата комісії за переказ коштів з поточного рахунку до 17:00 за межі Банку за допомогою системи Клієнт-Банк по документу №354, від 03.12.2018. Без ПДВ",2600671275,current,5.00,"АТ ""АКБ ""Львів""",09801546,юридична особа
УГП,"Львівська область, Львів",84,2018-12-04,55457,"Заробітна плата, премії","Заробітна плата, лікарняні, вагітності, відрядження, компенсації",252577,Центральний офіс,39481037,Україна,Заробітна плата за 2 половину листопада 2018 року,2600671275,current,4266.50,Панкевич Богдан Романович,,фізична особа
УГП,"Львівська область, Львів",84,2018-12-04,55456,"Заробітна плата, премії","Заробітна плата, лікарняні, вагітності, відрядження, компенсації",252576,Центральний офіс,39481037,Україна,Заробітна плата за 2 половину листопада 2018 року,2600671275,current,4266.50,Лозинський Роман Михайлович,,фізична особа
УГП,Тернопільська область,84,2018-12-04,55459,"Заробітна плата, премії","Заробітна плата, лікарняні, вагітності, відрядження, компенсації",252575,Центральний офіс,39481037,Україна,Заробітна плата за 2 половину листопада 2018 року,2600671275,current,3260.25,Яремчук Ірина Романівна,,фізична особа
УГП,"Львівська область, Львів",84,2018-12-04,55458,"Заробітна плата, премії","Заробітна плата, лікарняні, вагітності, відрядження, компенсації",252574,Центральний офіс,39481037,Україна,Заробітна плата за 2 половину листопада 2018 року,2600671275,current,1690.50,Герич Ганна Вікторівна,,фізична особа
УГП,"Тернопільська область, Тернопіль, проспект Степана Бандери, 38",70,2018-12-03,AS8burccup,Банківські послуги,Інші витрати,253277,Тернопільська обласна організація,40011526,Тернопільська область,"Комiсiя за обслуговування рахунку за листопад 2018 р. згiдно договору банкiвського рахунку вiд 21.09.2015, без ПДВ",26006055117228,current,100.00,"ПАТ КБ ""Приватбанк""",14360570,юридична особа
УГП,"Львівська область, Радехівський район, Радехів, вулиця Митрополита Шептицького, 2",50,2018-12-03,116,Оплата ефірного часу на радіо,Реклама на радіо,253109,Львівська обласна організація,40014820,Львівська область,"Оплата за розміщення інформаційних матеріалів в радіоефірі згідно рах. №02 від 30.11.2018 р., без ПДВ",2600477437,current,1920.00,"КБ Телестудія ""Радехів""",32704103,юридична особа
УГП,"Львівська область, Львів, вулиця Сербська, 1",70,2018-12-03,30680,Банківські послуги,Інші витрати,253108,Львівська обласна організація,40014820,Львівська область,"Сплата комісії за переказ коштів з поточного рахунку до 17:00 за межі Банку за допомогою системи Клієнт-Банк по документу №116, від 03.12.2018. Без ПДВ",2600477437,current,5.00,"АТ ""АКБ ""Львів""",09801546,юридична особа
УГП,"Івано-Франківська область, Івано-Франківськ, вулиця Січових стрільців, 15",70,2018-12-03,AS8buthiwp,Банківські послуги,Інші витрати,252942,Івано-Франківська обласна організація,40026836,Івано-Франківська область,"Комiсiя за обслуговування рахунку за листопад 2018 р. згiдно договору банкiвського рахунку вiд 29.09.2015, без ПДВ",26005052517967,current,100.00,"ПАТ КБ ""Приватбанк""",14360570,юридична особа
УГП,"Львівська область, Львів, вулиця Конотопська, 6",61,2018-12-03,353,Військовий збір,Податкові платежі,252758,Центральний офіс,39481037,Україна,"*;101;39481037; утриманий військовий збір із заробітної плати за 2 пол. листопада 2018р.,1,5% - 251,25 грн.;;;",2600671275,current,251.25,УДКСУ у Франківському районі м. Львова,37965138,юридична особа
УГП,"Львівська область, Львів, вулиця Сербська, 1",70,2018-12-03,32863,Банківські послуги,Інші витрати,252757,Центральний офіс,39481037,Україна,"Сплата комісії за переказ коштів з поточного рахунку до 17:00 за межі Банку за допомогою системи Клієнт-Банк по документу №353, від 03.12.2018. Без ПДВ",2600671275,current,5.00,"АТ ""АКБ ""Львів""",09801546,юридична особа
УГП,"Львівська область, Радехівський район, Радехів, вулиця Богдана Хмельницького, 22",49,2018-11-30,114,Публікування матеріалів у друкованих ЗМІ,Реклама в друкованих ЗМІ,253107,Львівська обласна організація,40014820,Львівська область,"Поперед.оплата за розміщення інформ.матеріалів, публікацію у газеті ""Нар.справа""№48 від 30.11.2018, згідно рахунку №217 від 28.11.2018р., без ПДВ",2600477437,current,3587.00,"РГ ""Народна справа""""",02473903,юридична особа
УГП,"Львівська область, Львів, вулиця Стрийська, 35",62,2018-11-30,113,Сплата ЄСВ,Податкові платежі,253106,Львівська обласна організація,40014820,Львівська область,"*;101;40014820; 22,0% нарах. єдиного внеску на заробітну плату за 2 пол. листопада 2018р. та компенс. відпускних при звільненні - 914,60 грн.;;;",2600477437,current,914.60,Залізнична ОДПІ ГУ ДФС у Львівській області,39554382,юридична особа
УГП,"Львівська область, Львів, вулиця Конотопська, 6",63,2018-11-30,112,Податок на доходи,Податкові платежі,253105,Львівська обласна організація,40014820,Львівська область,"*;101;40014820; податок на доходи фізичних осіб із заробітної плати за 2 пол. листопада 2018р. та компенс. відпускних при звільненні,18% - 748,31 грн.;;;",2600477437,current,748.31,УДКСУ у Франківському районі м. Львова,37965138,юридична особа
УГП,"Львівська область, Львів, вулиця Сербська, 1",70,2018-11-30,562571,Банківські послуги,Інші витрати,253104,Львівська обласна організація,40014820,Львівська область,Комісія за ведення функціонуючого рахунку за період 01.11.18-30.11.18 зг. договору. №N40.00.002425/РКО вiд 17.09.2015,2600477437,current,100.00,"АТ ""АКБ ""Львів""",09801546,юридична особа
УГП,"Львівська область, Львів, вулиця Конотопська, 6",61,2018-11-30,111,Військовий збір,Податкові платежі,253103,Львівська обласна організація,40014820,Львівська область,"*;101;40014820; утриманий військовий збір із заробітної плати за 2 пол.листопада 2018р. та компенс. відпускних при звільненні,1,5% - 62,36 грн.;;;",2600477437,current,62.36,УДКСУ у Франківському районі м. Львова,37965138,юридична особа
УГП,"Львівська область, Львів, вулиця Сербська, 1",70,2018-11-30,562572,Банківські послуги,Інші витрати,253102,Львівська обласна організація,40014820,Львівська область,"Комісія за pозрахункове обслуговування Клієнтів по системі ""Клієнт-Банк"" за період 01.11.18-30.11.18 зг. договору №N40.00.002425/РКО від 17.09.2015",2600477437,current,50.00,"АТ ""АКБ ""Львів""",09801546,юридична особа
УГП,"Львівська область, Львів, вулиця Сербська, 1",70,2018-11-30,538201,Банківські послуги,Інші витрати,253101,Львівська обласна організація,40014820,Львівська область,"Сплата комісії за зарахуванню коштів на рахунки фізичних осіб підприємства по зарплатному проекту по документу №538200, від 30.11.2018. Без ПДВ",2600477437,current,20.08,"АТ ""АКБ ""Львів""",09801546,юридична особа
УГП,"Львівська область, Львів, вулиця Сербська, 1",70,2018-11-30,541299,Банківські послуги,Інші витрати,253100,Львівська обласна організація,40014820,Львівська область,"Сплата комісії за переказ коштів з поточного рахунку до 17:00 за межі Банку за допомогою системи Клієнт-Банк по документу №115, від 30.11.2018. Без ПДВ",2600477437,current,5.00,"АТ ""АКБ ""Львів""",09801546,юридична особа
УГП,"Львівська область, Львів, вулиця Сербська, 1",70,2018-11-30,537740,Банківські послуги,Інші витрати,253099,Львівська обласна організація,40014820,Львівська область,"Сплата комісії за переказ коштів з поточного рахунку до 17:00 за межі Банку за допомогою системи Клієнт-Банк по документу №114, від 30.11.2018. Без ПДВ",2600477437,current,5.00,"АТ ""АКБ ""Львів""",09801546,юридична особа
УГП,"Львівська область, Львів, вулиця Сербська, 1",70,2018-11-30,537680,Банківські послуги,Інші витрати,253098,Львівська обласна організація,40014820,Львівська область,"Сплата комісії за переказ коштів з поточного рахунку до 17:00 за межі Банку за допомогою системи Клієнт-Банк по документу №113, від 30.11.2018. Без ПДВ",2600477437,current,5.00,"АТ ""АКБ ""Львів""",09801546,юридична особа
УГП,"Львівська область, Львів, вулиця Сербська, 1",70,2018-11-30,537649,Банківські послуги,Інші витрати,253097,Львівська обласна організація,40014820,Львівська область,"Сплата комісії за переказ коштів з поточного рахунку до 17:00 за межі Банку за допомогою системи Клієнт-Банк по документу №112, від 30.11.2018. Без ПДВ",2600477437,current,5.00,"АТ ""АКБ ""Львів""",09801546,юридична особа
УГП,"Львівська область, Львів, вулиця Сербська, 1",70,2018-11-30,537634,Банківські послуги,Інші витрати,253096,Львівська обласна організація,40014820,Львівська область,"Сплата комісії за переказ коштів з поточного рахунку до 17:00 за межі Банку за допомогою системи Клієнт-Банк по документу №111, від 30.11.2018. Без ПДВ",2600477437,current,5.00,"АТ ""АКБ ""Львів""",09801546,юридична особа
УГП,"Хмельницька область, Шепетівка",84,2018-11-30,538202,"Заробітна плата, премії","Заробітна плата, лікарняні, вагітності, відрядження, компенсації",253008,Львівська обласна організація,40014820,Львівська область,Заробітна плата за 2 половину листопада 2018 року та компенсація невмкористаної відпустки при звільненні,2600477437,current,3346.61,Ложкіна Марина Миколаївна,,фізична особа
УГП,"Львівська область, Кам'янка-Бузький район",49,2018-11-30,115,Публікування матеріалів у друкованих ЗМІ,Реклама в друкованих ЗМІ,253007,Львівська обласна організація,40014820,Львівська область,"Оплата за розміщення інформаційних матеріалів у листопаді 2018р. в газеті ""Медіа Дрогобиччина"" згідно рахунку №73 від 12.11.2018р., без ПДВ",2600477437,current,2000.00,Кульчицька-Волчко Марія Василівна,,фізична особа
УГП,"Львівська область, Львів, вулиця Героїв УПА, 65",58,2018-11-30,349,"Виготовлення друкованих матеріалів (плакатів, листівок, буклетів та інших агітаційних матеріалів)",Друкована агітація,252756,Центральний офіс,39481037,Україна,"Oплата за друк газети ""Наша Галичина"" згідно рахунку-фактури №ВЗ-0001362 від 28.11.2018р., в т.ч. ПДВ 1750,00 грн.",2600671275,current,10500.00,"ТОВ ""Видавничий дім ""Високий замок""",13807781,юридична особа
УГП,"Львівська область, Львів, вулиця Гуцульська, 9",53,2018-11-30,350,Витрати на розміщення зовнішньої реклами,Зовнішня реклама,252754,Центральний офіс,39481037,Україна,"Оплата за розміщення зовн.реклами з 01.11.18 по 30.11.18 згід.рах.-факт.№СФ-000771 від 23.11.2018р., згідно договору від 30.07.2018р., в т.ч. ПДВ 1472,92 грн.",2600671275,current,8837.50,"ТОВ ’Телерадіокомпанія ""Львівська хвиля""",13824151,юридична особа
УГП,"Львівська область, Львів, вулиця Кондукторська, 16",79,2018-11-30,351,"Оренда будинків і приміщень та експлуатаційні витрати (прибирання, страхування орендованих будинків, охорона, сигналізація, ремонт, вивіз сміття, тощо)",Оренда нерухомості,252753,Центральний офіс,39481037,Україна,"Оплата за послуги центр.охорони обʼєкта за листопад 2018 р., згідно договору № ЦС 040117 від 17.01.2017р.,зг.рахунку №СФ-0000930 від 30.11.2018р., без ПДВ",2600671275,current,500.00,"ПП ""Приватна безпека""",33562906,юридична особа
УГП,"Львівська область, Львів, вулиця Нечуя-Левицького, 23, 4Б",58,2018-11-30,352,"Виготовлення друкованих матеріалів (плакатів, листівок, буклетів та інших агітаційних матеріалів)",Друкована агітація,252752,Центральний офіс,39481037,Україна,"Оплата за постер згідно рахунку №515 від 29.11.18р, згід.договору №16-10-18/01 від 16.10.18р.,в т.ч. ПДВ 70.00 грн.",2600671275,current,420.00,"ТОВ ""Аврора Адвертайзінг""",38893253,юридична особа
УГП,"Львівська область, Сокальський район, Сокаль, площа Січових Стрільців, 18",51,2018-11-30,347,Оплата ефірного часу на ТБ,Телереклама,252751,Центральний офіс,39481037,Україна,"Оплата за трансляцію матеріалів 29.11-30.11.18 згідно рах. №1/30 від 30.11.18 в т.ч. ПДВ 50,67 грн.",2600671275,current,304.00,КП ТРК ʼСокальʼ,20846058,юридична особа
УГП,"Львівська область, Львів, вулиця Сербська, 1",70,2018-11-30,561207,Банківські послуги,Інші витрати,252750,Центральний офіс,39481037,Україна,Комісія за ведення функціонуючого рахунку за період 01.11.18-30.11.18 зг. договору. №N40.00.002175/РКО вiд 10.12.2014,2600671275,current,100.00,"АТ ""АКБ ""Львів""",09801546,юридична особа
УГП,"Львівська область, Львів, вулиця Сербська, 1",70,2018-11-30,561209,Банківські послуги,Інші витрати,252749,Центральний офіс,39481037,Україна,"Комісія за pозрахункове обслуговування Клієнтів по системі ""Клієнт-Банк"" за період 01.11.18-30.11.18 зг. договору. №N40.00.002175/РКО вiд 10.12.2014",2600671275,current,50.00,"АТ ""АКБ ""Львів""",09801546,юридична особа
УГП,"Львівська область, Львів, вулиця Сербська, 1",70,2018-11-30,541216,Банківські послуги,Інші витрати,252748,Центральний офіс,39481037,Україна,"Сплата комісії за переказ коштів з поточного рахунку до 17:00 за межі Банку за допомогою системи Клієнт-Банк по документу №352, від 30.11.2018. Без ПДВ",2600671275,current,5.00,"АТ ""АКБ ""Львів""",09801546,юридична особа
УГП,"Львівська область, Львів, вулиця Сербська, 1",70,2018-11-30,540607,Банківські послуги,Інші витрати,252747,Центральний офіс,39481037,Україна,"Сплата комісії за переказ коштів з поточного рахунку до 17:00 за межі Банку за допомогою системи Клієнт-Банк по документу №351, від 30.11.2018. Без ПДВ",2600671275,current,5.00,"АТ ""АКБ ""Львів""",09801546,юридична особа
УГП,"Львівська область, Львів, вулиця Сербська, 1",70,2018-11-30,537811,Банківські послуги,Інші витрати,252746,Центральний офіс,39481037,Україна,"Сплата комісії за переказ коштів з поточного рахунку до 17:00 за межі Банку за допомогою системи Клієнт-Банк по документу №349, від 30.11.2018. Без ПДВ",2600671275,current,5.00,"АТ ""АКБ ""Львів""",09801546,юридична особа
УГП,"Львівська область, Львів, вулиця Сербська, 1",70,2018-11-30,536899,Банківські послуги,Інші витрати,252745,Центральний офіс,39481037,Україна,"Сплата комісії за переказ коштів з поточного рахунку до 17:00 за межі Банку за допомогою системи Клієнт-Банк по документу №347, від 30.11.2018. Без ПДВ",2600671275,current,5.00,"АТ ""АКБ ""Львів""",09801546,юридична особа
УГП,"Львівська область, Львів, вулиця Сербська, 1",70,2018-11-30,537833,Банківські послуги,Інші витрати,252744,Центральний офіс,39481037,Україна,"Сплата комісії за переказ коштів з поточного рахунку до 17:00 в межах системи Банку за допомогою системи Клієнт-Банк по документу №350, від 30.11.2018. Без ПДВ",2600671275,current,3.00,"АТ ""АКБ ""Львів""",09801546,юридична особа
УГП,"Львівська область, Львів, вулиця Сербська, 1",70,2018-11-30,536999,Банківські послуги,Інші витрати,252743,Центральний офіс,39481037,Україна,"Сплата комісії за переказ коштів з поточного рахунку до 17:00 в межах системи Банку за допомогою системи Клієнт-Банк по документу №348, від 30.11.2018. Без ПДВ",2600671275,current,3.00,"АТ ""АКБ ""Львів""",09801546,юридична особа
УГП,"Львівська область, Самбір, вулиця Мазепи, 8",49,2018-11-29,110,Публікування матеріалів у друкованих ЗМІ,Реклама в друкованих ЗМІ,253095,Львівська обласна організація,40014820,Львівська область,"Оплата за рекламний ролик трив. 40 сек. - 15 виходів: 27.11.18-29.11.18 р. зг. рах. №20 від 27.11.2018р., без ПДВ",2600477437,current,600.00,"Редакція Самбірського радіомовлення ""Поступ""",20781809,юридична особа
УГП,"Львівська область, Львів, вулиця Сербська, 1",70,2018-11-29,512534,Банківські послуги,Інші витрати,253094,Львівська обласна організація,40014820,Львівська область,"Сплата комісії за переказ коштів з поточного рахунку до 17:00 за межі Банку за допомогою системи Клієнт-Банк по документу №110, від 29.11.2018. Без ПДВ",2600477437,current,5.00,"АТ ""АКБ ""Львів""",09801546,юридична особа
УГП,"Львівська область, Сокальський район, Сокаль, площа Січових Стрільців, 18",51,2018-11-29,346,Оплата ефірного часу на ТБ,Телереклама,252742,Центральний офіс,39481037,Україна,"Оплата за трансляцію матеріалів 15,11-30,11,18 згідно рахунку №1/28 від 28,11,2018р., в т.ч. ПДВ 94,00 грн.",2600671275,current,564.00,КП ТРК ʼСокальʼ,20846058,юридична особа
УГП,"Львівська область, Львів, вулиця Сербська, 1",70,2018-11-29,509731,Банківські послуги,Інші витрати,252741,Центральний офіс,39481037,Україна,"Сплата комісії за переказ коштів з поточного рахунку до 17:00 за межі Банку за допомогою системи Клієнт-Банк по документу №346, від 29.11.2018. Без ПДВ",2600671275,current,5.00,"АТ ""АКБ ""Львів""",09801546,юридична особа
УГП,"Київ, вулиця Смоленська, 31/33",72,2018-11-28,345,"Придбання, ремонт офісної техніки та програмного забезпечення (Бухгалтерські програми, Ліга.закон, домени)",Придбання офісної техніки та програмного забезпечення,252740,Центральний офіс,39481037,Україна,"Оплата за підключення послуги ""0800"" згідно рахунку №2611/01 від 26,11,2018р, згідно договору № 0800218956 від 26,11,2018, в т.ч. ПДВ 50,00 грн.",2600671275,current,300.00,"ПрАТ ""Датагруп""",31720260,юридична особа
УГП,"Львівська область, Львів, вулиця Сербська, 1",70,2018-11-28,495420,Банківські послуги,Інші витрати,252739,Центральний офіс,39481037,Україна,"Сплата комісії за переказ коштів з поточного рахунку до 17:00 за межі Банку за допомогою системи Клієнт-Банк по документу №345, від 28.11.2018. Без ПДВ",2600671275,current,5.00,"АТ ""АКБ ""Львів""",09801546,юридична особа
УГП,"Тернопільська область, Гусятинський район, Копичинці, вулиця 22 січня, 29",59,2018-11-27,304,Грошова застава,Грошова застава,253276,Тернопільська обласна організація,40011526,Тернопільська область,"Грошова застава мiсцевої органiзацiї полiтичної партiї ""Українська Галицька партiя""",26006055117228,current,1413.00,Копичинецька міська виборча комісія,33866326,юридична особа
УГП,"Тернопільська область, Тернопіль, проспект Степана Бандери, 38",70,2018-11-27,BRO1KVDJDY,Банківські послуги,Інші витрати,253275,Тернопільська обласна організація,40011526,Тернопільська область,"Комiсiя за виконання платежiв в нацiональнiй валютi, згiдно з вiдкритою офертою банку N б/н вiд 21.09.2015 та тарифiв банку, без ПДВ",26006055117228,current,3.00,"ПАТ КБ ""Приватбанк""",14360570,юридична особа
УГП,"Львівська область, Перемишлянський район, Бібрка, вулиця Тарнавського, 22",59,2018-11-27,109,Грошова застава,Грошова застава,253093,Львівська обласна організація,40014820,Львівська область,"Грошова застава за виборчий список кандидатів Бібрської міської організації політичної партії ""Українська Галицька Партія"".",2600477437,current,1692.00,Бібрська міська виборча комісія,33892040,юридична особа
УГП,"Львівська область, Львів, вулиця Сербська, 1",70,2018-11-27,470801,Банківські послуги,Інші витрати,253092,Львівська обласна організація,40014820,Львівська область,"Сплата комісії за переказ коштів з поточного рахунку до 17:00 за межі Банку за допомогою системи Клієнт-Банк по документу №109, від 26.11.2018. Без ПДВ",2600477437,current,5.00,"АТ ""АКБ ""Львів""",09801546,юридична особа
УГП,"Львівська область, Львів, вулиця Нечуя-Левицького, 23, 4Б",79,2018-11-27,344,"Оренда будинків і приміщень та експлуатаційні витрати (прибирання, страхування орендованих будинків, охорона, сигналізація, ремонт, вивіз сміття, тощо)",Оренда нерухомості,252738,Центральний офіс,39481037,Україна,"Оплата за оренду арок за листопад 2018р. згідно рахунку №486 від 06.11.18р, згід.договору №25-12-17/01 від 25.12.17р.,в т.ч. ПДВ 4000.00 грн.",2600671275,current,24000.00,"ТОВ ""Аврора Адвертайзінг""",38893253,юридична особа
УГП,"Львівська область, Львів, вулиця Героїв УПА, 65",49,2018-11-27,342,Публікування матеріалів у друкованих ЗМІ,Реклама в друкованих ЗМІ,252737,Центральний офіс,39481037,Україна,"Оплата за рекламу на кольоровій стор. згідно рахунку №ВЗ-0001393 від 13.11.2018р., в т.ч. ПДВ 2184,00грн.",2600671275,current,13104.00,"ТОВ ""Видавничий дім ""Високий замок""",13807781,юридична особа
УГП,"Львівська область, Львів, вулиця Володимира Великого, 5А",49,2018-11-27,343,Публікування матеріалів у друкованих ЗМІ,Реклама в друкованих ЗМІ,252736,Центральний офіс,39481037,Україна,"Передоплата за рекламно-інфор..послуги у газ.""Експрес"" Четвер, Львів.новини 29.11.18 зг. рах.№1102/1 від 23.11.18, дог.62-РД від 22.06.18, в т.ч. ПДВ 1580,40грн",2600671275,current,9482.40,"ТОВ ""Експрес медіа друк""",38380732,юридична особа
УГП,"Львівська область, Львів, вулиця Сербська, 1",70,2018-11-27,475237,Банківські послуги,Інші витрати,252735,Центральний офіс,39481037,Україна,"Сплата комісії за переказ коштів з поточного рахунку до 17:00 за межі Банку за допомогою системи Клієнт-Банк по документу №344, від 27.11.2018. Без ПДВ",2600671275,current,5.00,"АТ ""АКБ ""Львів""",09801546,юридична особа
УГП,"Львівська область, Львів, вулиця Сербська, 1",70,2018-11-27,475046,Банківські послуги,Інші витрати,252734,Центральний офіс,39481037,Україна,"Сплата комісії за переказ коштів з поточного рахунку до 17:00 за межі Банку за допомогою системи Клієнт-Банк по документу №343, від 27.11.2018. Без ПДВ",2600671275,current,5.00,"АТ ""АКБ ""Львів""",09801546,юридична особа
УГП,"Львівська область, Львів, вулиця Сербська, 1",70,2018-11-27,474961,Банківські послуги,Інші витрати,252733,Центральний офіс,39481037,Україна,"Сплата комісії за переказ коштів з поточного рахунку до 17:00 за межі Банку за допомогою системи Клієнт-Банк по документу №342, від 27.11.2018. Без ПДВ",2600671275,current,5.00,"АТ ""АКБ ""Львів""",09801546,юридична особа
УГП,"Тернопільська область, Тернопіль, проспект Степана Бандери, 38",70,2018-11-23,BNO1KIIC4Y,Банківські послуги,Інші витрати,253274,Тернопільська обласна організація,40011526,Тернопільська область,"Комiсiя за виконання платежiв в нацiональнiй валютi, згiдно з вiдкритою офертою банку N б/н вiд 21.09.2015 та тарифiв банку, без ПДВ",26006055117228,current,3.00,"ПАТ КБ ""Приватбанк""",14360570,юридична особа
УГП,"Тернопільська область, Тернопіль",43,2018-11-23,303,Інші витрати,Інші витрати,253194,Тернопільська обласна організація,40011526,Тернопільська область,Оплата згiдно рах. N IТ-1811-04 вiд 19.11.2018р.,26006055117228,current,1400.00,Савчишин Сергій Володимирович,,фізична особа
УГП,"Тернопільська область, Тернопіль",43,2018-11-23,302,Інші витрати,Інші витрати,253193,Тернопільська обласна організація,40011526,Тернопільська область,Оплата згiдно рах. N 46 вiд 21.11.2018р. Без ПДВ,26006055117228,current,2700.00,Кардинал Анжела Віталіївна,,фізична особа
УГП,"Львівська область, Радехівський район, Радехів, вулиця Івана Франка, 2",59,2018-11-23,108,Грошова застава,Грошова застава,253091,Львівська обласна організація,40014820,Львівська область,"Грошова застава за виборчий список кандидатів Радехівської районної організації Політичної партії ""Українська Галицька Партія""",2600477437,current,1949.00,Радехівська міська виборча комісія,34104481,юридична особа
УГП,"Львівська область, Перемишлянський район, Бібрка, вулиця Тарнавського, 22",59,2018-11-23,107,Грошова застава,Грошова застава,253090,Львівська обласна організація,40014820,Львівська область,"Грошова застава за виборчий список кандидатів Бібрської міської організації політичної партії ""Українська Галицька Партія""",2600477437,current,1692.00,Бібрська міська виборча комісія,33892040,юридична особа
УГП,,66,2018-11-23,105,Повернення внесків приватних внесків (донорам),Повернення приватних внесків (донорам),253089,Львівська обласна організація,40014820,Львівська область,"Поверн.платежу ʼЧленськi внески,Мандзяк Олена Олександрiвнаʼ від Транз.сч._ DN, DG, DZ № док @2PL144088 вiд15.11.18,у зв.з відсут.ід.даних невід.ЗУ ʼПро пол.пар",2600477437,current,350.00,"ПАТ КБ ""Приватбанк""",14360570,юридична особа
УГП,,66,2018-11-23,106,Повернення внесків приватних внесків (донорам),Повернення приватних внесків (донорам),253088,Львівська обласна організація,40014820,Львівська область,"Поверн.платежу ʼчленськi внески,Брегман Мирослав Андрiйовичʼ від Транз.сч._ DN, DG, DZ док№ @2PL291529 вiд 23.11.18,у зв.з відсут.ід.даних, невідп.ЗУ ПроПол.парт",2600477437,current,100.00,"ПАТ КБ ""Приватбанк""",14360570,юридична особа
УГП,"Львівська область, Львів, вулиця Сербська, 1",70,2018-11-23,405341,Банківські послуги,Інші витрати,253087,Львівська обласна організація,40014820,Львівська область,"Сплата комісії за переказ коштів з поточного рахунку до 17:00 за межі Банку за допомогою системи Клієнт-Банк по документу №108, від 23.11.2018. Без ПДВ",2600477437,current,5.00,"АТ ""АКБ ""Львів""",09801546,юридична особа
УГП,"Львівська область, Львів, вулиця Сербська, 1",70,2018-11-23,405112,Банківські послуги,Інші витрати,253086,Львівська обласна організація,40014820,Львівська область,"Сплата комісії за переказ коштів з поточного рахунку до 17:00 за межі Банку за допомогою системи Клієнт-Банк по документу №107, від 23.11.2018. Без ПДВ",2600477437,current,5.00,"АТ ""АКБ ""Львів""",09801546,юридична особа
УГП,"Львівська область, Львів, вулиця Сербська, 1",70,2018-11-23,403535,Банківські послуги,Інші витрати,253085,Львівська обласна організація,40014820,Львівська область,"Сплата комісії за переказ коштів з поточного рахунку до 17:00 за межі Банку за допомогою системи Клієнт-Банк по документу №106, від 23.11.2018. Без ПДВ",2600477437,current,5.00,"АТ ""АКБ ""Львів""",09801546,юридична особа
УГП,"Львівська область, Львів, вулиця Сербська, 1",70,2018-11-23,403473,Банківські послуги,Інші витрати,253084,Львівська обласна організація,40014820,Львівська область,"Сплата комісії за переказ коштів з поточного рахунку до 17:00 за межі Банку за допомогою системи Клієнт-Банк по документу №105, від 23.11.2018. Без ПДВ",2600477437,current,5.00,"АТ ""АКБ ""Львів""",09801546,юридична особа
УГП,,66,2018-11-23,106,Повернення внесків приватних внесків (донорам),Повернення приватних внесків (донорам),252981,Львівська обласна організація,40014820,Львівська область,"Поверн.платежу ʼчленськi внески,Брегман Мирослав Андрiйовичʼ від Транз. сч._ DN, DG, DZ док№ @2PL291529 вiд 23.11.18,у зв.з відсут. ід. даних, невідп. ЗУ ʼПро полiт. партіїʼ",2600477437,current,100.00,"ПАТ КБ ""Приватбанк""",14360570,юридична особа
УГП,,66,2018-11-23,105,Повернення внесків приватних внесків (донорам),Повернення приватних внесків (донорам),252980,Львівська обласна організація,40014820,Львівська область,"Поверн.платежу ʼЧленськi внески,Мандзяк Олена Олександрiвнаʼ від Транз.сч._ DN, DG, DZ № док @2PL144088 вiд 15.11.18, у зв.з відсут. ід.даних невід. ЗУ ʼПро полiт. партіїʼ",2600477437,current,350.00,"ПАТ КБ ""Приватбанк""",14360570,юридична особа
УГП,"Львівська область, Львів, вулиця Сербська, 1",70,2018-11-23,403651,Банківські послуги,Інші витрати,252731,Центральний офіс,39481037,Україна,"Сплата комісії за переказ коштів з поточного рахунку до 17:00 в межах системи Банку за допомогою системи Клієнт-Банк по документу №341, від 23.11.2018. Без ПДВ",2600671275,current,3.00,"АТ ""АКБ ""Львів""",09801546,юридична особа
УГП,"Тернопільська область, Тернопіль, вулиця Гетьмана Сагайдачного, 2, 7",52,2018-11-22,300,Інша реклама (без класифікації),Реклама (без класифікації),253273,Тернопільська обласна організація,40011526,Тернопільська область,"Оплата згiдно рах. N СФ-0000364 вiд 06.11.2018р. У сумi 2142.50 грн., ПДВ - 20 % 428.50 грн.",26006055117228,current,2571.00,"ТОВ ""TV-4""",14029496,юридична особа
УГП,"Тернопільська область, Тернопіль, проспект Степана Бандери, 38",70,2018-11-22,BMO1KFCT3Y,Банківські послуги,Інші витрати,253272,Тернопільська обласна організація,40011526,Тернопільська область,"Комiсiя за виконання платежiв в нацiональнiй валютi, згiдно з вiдкритою офертою банку N б/н вiд 21.09.2015 та тарифiв банку, без ПДВ",26006055117228,current,3.00,"ПАТ КБ ""Приватбанк""",14360570,юридична особа
УГП,"Тернопільська область, Тернопіль, проспект Степана Бандери, 38",70,2018-11-22,BMO1KFCT2Y,Банківські послуги,Інші витрати,253271,Тернопільська обласна організація,40011526,Тернопільська область,"Комiсiя за виконання платежiв в нацiональнiй валютi, згiдно з вiдкритою офертою банку N б/н вiд 21.09.2015 та тарифiв банку, без ПДВ",26006055117228,current,3.00,"ПАТ КБ ""Приватбанк""",14360570,юридична особа
УГП,"Тернопільська область, Тернопіль, вулиця Білецька, 1",62,2018-11-22,297,Сплата ЄСВ,Податкові платежі,253270,Тернопільська обласна організація,40011526,Тернопільська область,ЄСВ вiд зарплати за листопад 2018р.,26006055117228,current,1370.61,Тернопільська ОДПІ ГУ ДФС в Тернопільській області,39502025,юридична особа
УГП,"Тернопільська область, Тернопіль, вулиця Листопадова, 3",63,2018-11-22,296,Податок на доходи,Податкові платежі,253269,Тернопільська обласна організація,40011526,Тернопільська область,ПДФО вiд зарплати за листопад 2018р.,26006055117228,current,1121.40,УДКСУ у м. Тернопіль,37977726,юридична особа
УГП,"Тернопільська область, Тернопіль, вулиця Листопадова, 3",61,2018-11-22,298,Військовий збір,Податкові платежі,253268,Тернопільська обласна організація,40011526,Тернопільська область,Вiйськовий збiр вiд зарплати за листопад 2018р.,26006055117228,current,93.45,УДКСУ у м. Тернопіль,37977726,юридична особа
УГП,"Тернопільська область, Тернопіль, проспект Степана Бандери, 38",70,2018-11-22,299,Банківські послуги,Інші витрати,253267,Тернопільська обласна організація,40011526,Тернопільська область,Комiсiя РКО вiд зарплати за листопад 2018р.,26006055117228,current,12.54,"ПАТ КБ ""Приватбанк""",14360570,юридична особа
УГП,"Тернопільська область, Тернопіль, проспект Степана Бандери, 38",70,2018-11-22,BMO1KDCKEY,Банківські послуги,Інші витрати,253266,Тернопільська обласна організація,40011526,Тернопільська область,"Комiсiя за виконання платежiв в нацiональнiй валютi, згiдно з вiдкритою офертою банку N б/н вiд 21.09.2015 та тарифiв банку, без ПДВ",26006055117228,current,3.00,"ПАТ КБ ""Приватбанк""",14360570,юридична особа
УГП,"Тернопільська область, Тернопіль, проспект Степана Бандери, 38",70,2018-11-22,BMO1KDCKCY,Банківські послуги,Інші витрати,253265,Тернопільська обласна організація,40011526,Тернопільська область,"Комiсiя за виконання платежiв в нацiональнiй валютi, згiдно з вiдкритою офертою банку N б/н вiд 21.09.2015 та тарифiв банку, без ПДВ",26006055117228,current,3.00,"ПАТ КБ ""Приватбанк""",14360570,юридична особа
УГП,"Тернопільська область, Тернопіль, проспект Степана Бандери, 38",70,2018-11-22,BMO1KDCKAY,Банківські послуги,Інші витрати,253264,Тернопільська обласна організація,40011526,Тернопільська область,"Комiсiя за виконання платежiв в нацiональнiй валютi, згiдно з вiдкритою офертою банку N б/н вiд 21.09.2015 та тарифiв банку, без ПДВ",26006055117228,current,3.00,"ПАТ КБ ""Приватбанк""",14360570,юридична особа
УГП,"Тернопільська область, Тернопіль",79,2018-11-22,301,"Оренда будинків і приміщень та експлуатаційні витрати (прибирання, страхування орендованих будинків, охорона, сигналізація, ремонт, вивіз сміття, тощо)",Оренда нерухомості,253192,Тернопільська обласна організація,40011526,Тернопільська область,"Оплата за оренду згiдно договору N28 вiд 01.11.2015р. за листопад 2018р. У сумi 2983.33 грн., ПДВ - 20 % 596.67 грн.",26006055117228,current,3580.00,Клепач Валентина Анатоліївна,,фізична особа
УГП,"Тернопільська область, Бучацький район",84,2018-11-22,295,"Заробітна плата, премії","Заробітна плата, лікарняні, вагітності, відрядження, компенсації",253191,Тернопільська обласна організація,40011526,Тернопільська область,Заробітна плата за першу половину листопада 2018р.,26006055117228,current,892.81,Кізюк Іван Йосипович,,фізична особа
УГП,"Тернопільська область, Теребовлянський район",84,2018-11-22,295,"Заробітна плата, премії","Заробітна плата, лікарняні, вагітності, відрядження, компенсації",253190,Тернопільська обласна організація,40011526,Тернопільська область,Заробітна плата за першу половину листопада 2018р.,26006055117228,current,1039.19,Вітвіцький Олег Іванович,,фізична особа
УГП,"Тернопільська область, Тернопіль",84,2018-11-22,295,"Заробітна плата, премії","Заробітна плата, лікарняні, вагітності, відрядження, компенсації",253189,Тернопільська обласна організація,40011526,Тернопільська область,Заробітна плата за першу половину листопада 2018р.,26006055117228,current,1231.65,Войтович Анна Вʼячеславівна,,фізична особа
УГП,"Тернопільська область, Тернопіль",84,2018-11-22,295,"Заробітна плата, премії","Заробітна плата, лікарняні, вагітності, відрядження, компенсації",253188,Тернопільська обласна організація,40011526,Тернопільська область,Заробітна плата за першу половину листопада 2018р.,26006055117228,current,1851.50,Богун Андрій Ігорович,,фізична особа
УГП,"Львівська область, Радехівський район, Радехів, вулиця Богдана Хмельницького, 22",49,2018-11-21,104,Публікування матеріалів у друкованих ЗМІ,Реклама в друкованих ЗМІ,253083,Львівська обласна організація,40014820,Львівська область,"Поперед.оплата за розміщення інформ.матеріалів, публікацію у газеті ""Нар.справа""№47 23.11.2018, згідно рахунку №209 від 20.11.2018р., без ПДВ",2600477437,current,3003.75,"РГ ""Народна справа""""",02473903,юридична особа
УГП,"Львівська область, Львів, вулиця Стрийська, 35",62,2018-11-21,99,Сплата ЄСВ,Податкові платежі,253082,Львівська обласна організація,40014820,Львівська область,"*;101;40014820; 22,0% нарах. єдиного внеску на заробітну плату за 1 пол. листопада 2018р.- 1980,00 грн.;;;",2600477437,current,1980.00,Залізнична ОДПІ ГУ ДФС у Львівській області,39554382,юридична особа
УГП,"Львівська область, Львів, вулиця Конотопська, 6",63,2018-11-21,98,Податок на доходи,Податкові платежі,253081,Львівська обласна організація,40014820,Львівська область,"*;101;40014820; податок на доходи фізичних осіб із заробітної плати за 1 пол. листопада 2018р.,18% 1620.00 грн.;;;",2600477437,current,1620.00,УДКСУ у Франківському районі м. Львова,37965138,юридична особа
УГП,"Львівська область, Борислав, вулиця Данила Галицького, 34",79,2018-11-21,101,"Оренда будинків і приміщень та експлуатаційні витрати (прибирання, страхування орендованих будинків, охорона, сигналізація, ремонт, вивіз сміття, тощо)",Оренда нерухомості,253080,Львівська обласна організація,40014820,Львівська область,"Оплата за оренду приміщення 24,4кв.м. за листопад 2018р., відш.зем.п., згідно рах.№278 від 16.11.2018р., згідно договору оренди №1 від 01.10.2018р., без ПДВ",2600477437,current,444.20,Бориславський міський Палац культ.,25261121,юридична особа
УГП,"Львівська область, Борислав, вулиця Івасюка, 12",79,2018-11-21,102,"Оренда будинків і приміщень та експлуатаційні витрати (прибирання, страхування орендованих будинків, охорона, сигналізація, ремонт, вивіз сміття, тощо)",Оренда нерухомості,253079,Львівська обласна організація,40014820,Львівська область,"Оплата за оренду приміщення 24,4кв.м. за листопад 2018р., згідно рах. №279 від 16.11.2018р., згідно договору оренди №1 від 01.10.2018р., без ПДВ",2600477437,current,430.88,УДКСУ у м. Бориславі,37942974,юридична особа
УГП,"Львівська область, Львів, вулиця Конотопська, 6",61,2018-11-21,97,Військовий збір,Податкові платежі,253078,Львівська обласна організація,40014820,Львівська область,"*;101;40014820; утриманий військовий збір із заробітної плати за 1 пол.листопада 2018р.,1,5% - 135,00 грн.;;;",2600477437,current,135.00,УДКСУ у Франківському районі м. Львова,37965138,юридична особа
УГП,"Львівська область, Львів, вулиця Сербська, 1",70,2018-11-21,362267,Банківські послуги,Інші витрати,253077,Львівська обласна організація,40014820,Львівська область,"Сплата комісії за зарахуванню коштів на рахунки фізичних осіб підприємства по зарплатному проекту по документу №362266, від 21.11.2018. Без ПДВ",2600477437,current,26.57,"АТ ""АКБ ""Львів""",09801546,юридична особа
УГП,"Львівська область, Борислав, вулиця Данила Галицького, 34",79,2018-11-21,100,"Оренда будинків і приміщень та експлуатаційні витрати (прибирання, страхування орендованих будинків, охорона, сигналізація, ремонт, вивіз сміття, тощо)",Оренда нерухомості,253076,Львівська обласна організація,40014820,Львівська область,"Оплата відшкодування за водопостачання та водовідведення за листопад 2018р.,згідно рах.№280 від 16.11.2018р., зг. договору оренди №1 від 01.10.2018р., без ПДВ",2600477437,current,18.67,Бориславський міський Палац культ.,25261121,юридична особа
УГП,"Львівська область, Львів, вулиця Сербська, 1",70,2018-11-21,362382,Банківські послуги,Інші витрати,253075,Львівська обласна організація,40014820,Львівська область,"Сплата комісії за переказ коштів з поточного рахунку до 17:00 за межі Банку за допомогою системи Клієнт-Банк по документу №104, від 21.11.2018. Без ПДВ",2600477437,current,5.00,"АТ ""АКБ ""Львів""",09801546,юридична особа
УГП,"Львівська область, Львів, вулиця Сербська, 1",70,2018-11-21,361040,Банківські послуги,Інші витрати,253074,Львівська обласна організація,40014820,Львівська область,"Сплата комісії за переказ коштів з поточного рахунку до 17:00 за межі Банку за допомогою системи Клієнт-Банк по документу №102, від 21.11.2018. Без ПДВ",2600477437,current,5.00,"АТ ""АКБ ""Львів""",09801546,юридична особа
УГП,"Львівська область, Львів, вулиця Сербська, 1",70,2018-11-21,361032,Банківські послуги,Інші витрати,253073,Львівська обласна організація,40014820,Львівська область,"Сплата комісії за переказ коштів з поточного рахунку до 17:00 за межі Банку за допомогою системи Клієнт-Банк по документу №101, від 21.11.2018. Без ПДВ",2600477437,current,5.00,"АТ ""АКБ ""Львів""",09801546,юридична особа
УГП,"Львівська область, Львів, вулиця Сербська, 1",70,2018-11-21,360973,Банківські послуги,Інші витрати,253072,Львівська обласна організація,40014820,Львівська область,"Сплата комісії за переказ коштів з поточного рахунку до 17:00 за межі Банку за допомогою системи Клієнт-Банк по документу №100, від 21.11.2018. Без ПДВ",2600477437,current,5.00,"АТ ""АКБ ""Львів""",09801546,юридична особа
УГП,"Львівська область, Львів, вулиця Сербська, 1",70,2018-11-21,360937,Банківські послуги,Інші витрати,253071,Львівська обласна організація,40014820,Львівська область,"Сплата комісії за переказ коштів з поточного рахунку до 17:00 за межі Банку за допомогою системи Клієнт-Банк по документу №99, від 21.11.2018. Без ПДВ",2600477437,current,5.00,"АТ ""АКБ ""Львів""",09801546,юридична особа
УГП,"Львівська область, Львів, вулиця Сербська, 1",70,2018-11-21,360932,Банківські послуги,Інші витрати,253070,Львівська обласна організація,40014820,Львівська область,"Сплата комісії за переказ коштів з поточного рахунку до 17:00 за межі Банку за допомогою системи Клієнт-Банк по документу №98, від 21.11.2018. Без ПДВ",2600477437,current,5.00,"АТ ""АКБ ""Львів""",09801546,юридична особа
УГП,"Львівська область, Львів, вулиця Сербська, 1",70,2018-11-21,360899,Банківські послуги,Інші витрати,253069,Львівська обласна організація,40014820,Львівська область,"Сплата комісії за переказ коштів з поточного рахунку до 17:00 за межі Банку за допомогою системи Клієнт-Банк по документу №97, від 21.11.2018. Без ПДВ",2600477437,current,5.00,"АТ ""АКБ ""Львів""",09801546,юридична особа
УГП,"Львівська область, Львів, вулиця Сербська, 1",70,2018-11-21,362302,Банківські послуги,Інші витрати,253068,Львівська обласна організація,40014820,Львівська область,"Сплата комісії за переказ коштів з поточного рахунку до 17:00 в межах системи Банку за допомогою системи Клієнт-Банк по документу №103, від 21.11.2018. Без ПДВ",2600477437,current,3.00,"АТ ""АКБ ""Львів""",09801546,юридична особа
УГП,"Львівська область, Львів",84,2018-11-21,362268,"Заробітна плата, премії","Заробітна плата, лікарняні, вагітності, відрядження, компенсації",253006,Львівська обласна організація,40014820,Львівська область,Заробітна плата за 1 половину листопада 2018 року,2600477437,current,2817.50,Щурко Іван Петрович,,фізична особа
УГП,"Хмельницька область, Шепетівка",84,2018-11-21,362269,"Заробітна плата, премії","Заробітна плата, лікарняні, вагітності, відрядження, компенсації",253005,Львівська обласна організація,40014820,Львівська область,Заробітна плата за 1 половину листопада 2018 року,2600477437,current,1610.00,Ложкіна Марина Миколаївна,,фізична особа
УГП,"Львівська область, Пустомитівський район",84,2018-11-21,103,"Заробітна плата, премії","Заробітна плата, лікарняні, вагітності, відрядження, компенсації",253004,Львівська обласна організація,40014820,Львівська область,"Виплата заробітної плати за 1 половину листопада 2018 року, под.сплачено 21.11.18р., термін спл. 21.11.18р.",2600477437,current,2817.50,Васильченко Галина Іванівна,,фізична особа
УГП,"Львівська область, Львів, вулиця Героїв УПА, 65",58,2018-11-21,339,"Виготовлення друкованих матеріалів (плакатів, листівок, буклетів та інших агітаційних матеріалів)",Друкована агітація,252730,Центральний офіс,39481037,Україна,"Oплата за друк газет ""Наша Галичина"" №4 та ""Київ Український"" №2 згідно рахунку-фактури №ВЗ-0001326 від 20.11.2018р., в т.ч. ПДВ 7765,00 грн.",2600671275,current,46590.00,"ТОВ ""Видавничий дім ""Високий замок""",13807781,юридична особа
УГП,"Львівська область, Львів, вулиця Сербська, 1",70,2018-11-21,361810,Банківські послуги,Інші витрати,252728,Центральний офіс,39481037,Україна,"Сплата комісії за переказ коштів з поточного рахунку до 17:00 за межі Банку за допомогою системи Клієнт-Банк по документу №339, від 21.11.2018. Без ПДВ",2600671275,current,5.00,"АТ ""АКБ ""Львів""",09801546,юридична особа
УГП,"Львівська область, Львів, вулиця Сербська, 1",70,2018-11-21,361714,Банківські послуги,Інші витрати,252727,Центральний офіс,39481037,Україна,"Сплата комісії за переказ коштів з поточного рахунку до 17:00 за межі Банку за допомогою системи Клієнт-Банк по документу №338, від 21.11.2018. Без ПДВ",2600671275,current,5.00,"АТ ""АКБ ""Львів""",09801546,юридична особа
УГП,"Львівська область, Львів, вулиця Сербська, 1",70,2018-11-21,362318,Банківські послуги,Інші витрати,252726,Центральний офіс,39481037,Україна,"Сплата комісії за переказ коштів з поточного рахунку до 17:00 в межах системи Банку за допомогою системи Клієнт-Банк по документу №340, від 21.11.2018. Без ПДВ",2600671275,current,3.00,"АТ ""АКБ ""Львів""",09801546,юридична особа
УГП,"Львівська область, Львів",58,2018-11-21,338,"Виготовлення друкованих матеріалів (плакатів, листівок, буклетів та інших агітаційних матеріалів)",Друкована агітація,252573,Центральний офіс,39481037,Україна,"Оплата за брошуру А5 ""Як створити ОСББ"" згідно рахунку № 83 від 20.11.2018р. Без ПДВ",2600671275,current,5750.00,Буров Дмитро Юрійович,,фізична особа
УГП,"Івано-Франківська область, Івано-Франківськ, вулиця Незалежності, 20",62,2018-11-20,387,Сплата ЄСВ,Податкові платежі,252941,Івано-Франківська обласна організація,40026836,Івано-Франківська область,*;101;40026836;Сплата єдиного соцiального внеску з зарплати за листопад 2018р;;;,26005052517967,current,4092.00,ДПІ в м. Івано-Франківську ГУ ДФС в Івано-Франківській області,39508514,юридична особа
УГП,"Івано-Франківська область, Івано-Франківськ, вулиця Січових стрільців, 15",70,2018-11-20,BKO1K6JFMY,Банківські послуги,Інші витрати,252940,Івано-Франківська обласна організація,40026836,Івано-Франківська область,"Комiсiя за виконання платежiв в нацiональнiй валютi, згiдно з вiдкритою офертою банку N б/н вiд 29.09.2015 та тарифiв банку, без ПДВ",26005052517967,current,3.00,"ПАТ КБ ""Приватбанк""",14360570,юридична особа
УГП,"Івано-Франківська область, Івано-Франківськ, вулиця Михайла Грушевського, 32",63,2018-11-20,388,Податок на доходи,Податкові платежі,252939,Івано-Франківська обласна організація,40026836,Івано-Франківська область,*;101;40026836;Податок з доходiв фiзичних осiб з зарплати за листопад 2018р;;;,26005052517967,current,3348.00,УДКСУ у м. Івано-Франківську,37952250,юридична особа
УГП,"Івано-Франківська область, Івано-Франківськ, вулиця Січових стрільців, 15",70,2018-11-20,BKO1K6JFQY,Банківські послуги,Інші витрати,252938,Івано-Франківська обласна організація,40026836,Івано-Франківська область,"Комiсiя за виконання платежiв в нацiональнiй валютi, згiдно з вiдкритою офертою банку N б/н вiд 29.09.2015 та тарифiв банку, без ПДВ",26005052517967,current,3.00,"ПАТ КБ ""Приватбанк""",14360570,юридична особа
УГП,"Івано-Франківська область, Івано-Франківськ, вулиця Січових стрільців, 15",70,2018-11-20,391,Банківські послуги,Інші витрати,252937,Івано-Франківська обласна організація,40026836,Івано-Франківська область,Комiсiя РКО вiд зарплати за листопад 2018р.,26005052517967,current,37.43,"ПАТ КБ ""Приватбанк""",14360570,юридична особа
УГП,"Івано-Франківська область, Івано-Франківськ, вулиця Михайла Грушевського, 32",61,2018-11-20,389,Військовий збір,Податкові платежі,252936,Івано-Франківська обласна організація,40026836,Івано-Франківська область,*;101;40026836;Сплата вiйськового збору з зарплати за листопад 2018р;;;,26005052517967,current,279.00,УДКСУ у м. Івано-Франківську,37952250,юридична особа
УГП,"Івано-Франківська область, Івано-Франківськ, вулиця Січових стрільців, 15",70,2018-11-20,BKO1K6JFYY,Банківські послуги,Інші витрати,252935,Івано-Франківська обласна організація,40026836,Івано-Франківська область,"Комiсiя за виконання платежiв в нацiональнiй валютi, згiдно з вiдкритою офертою банку N б/н вiд 29.09.2015 та тарифiв банку, без ПДВ",26005052517967,current,3.00,"ПАТ КБ ""Приватбанк""",14360570,юридична особа
УГП,"Львівська область, Львів",84,2018-11-20,390,"Заробітна плата, премії","Заробітна плата, лікарняні, вагітності, відрядження, компенсації",252877,Івано-Франківська обласна організація,40026836,Івано-Франківська область,Заробітна плата за першу половину листопада 2018р.,26005052517967,current,2857.75,Саїк Олег Ігорович,,фізична особа
УГП,Івано-Франківська область,84,2018-11-20,390,"Заробітна плата, премії","Заробітна плата, лікарняні, вагітності, відрядження, компенсації",252876,Івано-Франківська обласна організація,40026836,Івано-Франківська область,Заробітна плата за першу половину листопада 2018р.,26005052517967,current,2616.25,Сербин Наталія Зіновіївна,,фізична особа
УГП,"Івано-Франківська область, Тисменицький район",84,2018-11-20,390,"Заробітна плата, премії","Заробітна плата, лікарняні, вагітності, відрядження, компенсації",252875,Івано-Франківська обласна організація,40026836,Івано-Франківська область,Заробітна плата за першу половину листопада 2018р.,26005052517967,current,1569.75,Бабак Віталій Михайлович,,фізична особа
УГП,"Івано-Франківська область, Івано-Франківськ",84,2018-11-20,390,"Заробітна плата, премії","Заробітна плата, лікарняні, вагітності, відрядження, компенсації",252874,Івано-Франківська обласна організація,40026836,Івано-Франківська область,Заробітна плата за першу половину листопада 2018р.,26005052517967,current,2857.75,Романчук Любомир Петрович,,фізична особа
УГП,"Івано-Франківська область, Івано-Франківськ",84,2018-11-20,390,"Заробітна плата, премії","Заробітна плата, лікарняні, вагітності, відрядження, компенсації",252873,Івано-Франківська обласна організація,40026836,Івано-Франківська область,Заробітна плата за першу половину листопада 2018р.,26005052517967,current,2616.25,Федоляк Наталія Орестівна,,фізична особа
УГП,Івано-Франківська область,84,2018-11-20,390,"Заробітна плата, премії","Заробітна плата, лікарняні, вагітності, відрядження, компенсації",252872,Івано-Франківська обласна організація,40026836,Івано-Франківська область,Заробітна плата за першу половину листопада 2018р.,26005052517967,current,2455.25,Івасишин Світлана Ярославівна,,фізична особа
УГП,"Івано-Франківська область, Івано-Франківськ, вулиця Михайла Грушевського, 21",79,2018-11-20,386,"Оренда будинків і приміщень та експлуатаційні витрати (прибирання, страхування орендованих будинків, охорона, сигналізація, ремонт, вивіз сміття, тощо)",Оренда нерухомості,252871,Івано-Франківська обласна організація,40026836,Івано-Франківська область,"За оренду офiсного примiщення за 11.2018р., згiдно рах.N1 вiд 13.11.2018р., без ПДВ",26005052517967,current,12000.00,Петровський Олександр Павлович,,фізична особа
УГП,"Львівська область, Львів, вулиця Гната Хоткевича, 6, 86",58,2018-11-20,333,"Виготовлення друкованих матеріалів (плакатів, листівок, буклетів та інших агітаційних матеріалів)",Друкована агітація,252722,Центральний офіс,39481037,Україна,"Попередня оплата за буклет згідно рахунку № 18010/38 від 20.11.2018р., в т.ч. ПДВ 517,67 грн.",2600671275,current,3106.00,"ТОВ ""Компанія ""Лідер-М""",37584609,юридична особа
УГП,"Львівська область, Львів, вулиця Сербська, 1",70,2018-11-20,914236РКО,Банківські послуги,Інші витрати,252721,Центральний офіс,39481037,Україна,Комісія за послуги Банку,2600671275,current,10.00,"АТ ""АКБ ""Львів""",09801546,юридична особа
УГП,"Львівська область, Львів, вулиця Сербська, 1",70,2018-11-20,914221РКО,Банківські послуги,Інші витрати,252720,Центральний офіс,39481037,Україна,Комісія за послуги Банку,2600671275,current,8.00,"АТ ""АКБ ""Львів""",09801546,юридична особа
УГП,"Львівська область, Львів, вулиця Сербська, 1",70,2018-11-20,345450,Банківські послуги,Інші витрати,252719,Центральний офіс,39481037,Україна,"Сплата комісії за переказ коштів з поточного рахунку до 17:00 за межі Банку за допомогою системи Клієнт-Банк по документу №337, від 20.11.2018. Без ПДВ",2600671275,current,5.00,"АТ ""АКБ ""Львів""",09801546,юридична особа
УГП,"Львівська область, Львів, вулиця Сербська, 1",70,2018-11-20,345245,Банківські послуги,Інші витрати,252718,Центральний офіс,39481037,Україна,"Сплата комісії за переказ коштів з поточного рахунку до 17:00 за межі Банку за допомогою системи Клієнт-Банк по документу №335, від 20.11.2018. Без ПДВ",2600671275,current,5.00,"АТ ""АКБ ""Львів""",09801546,юридична особа
УГП,"Львівська область, Львів, вулиця Сербська, 1",70,2018-11-20,345209,Банківські послуги,Інші витрати,252717,Центральний офіс,39481037,Україна,"Сплата комісії за переказ коштів з поточного рахунку до 17:00 за межі Банку за допомогою системи Клієнт-Банк по документу №334, від 20.11.2018. Без ПДВ",2600671275,current,5.00,"АТ ""АКБ ""Львів""",09801546,юридична особа
УГП,"Львівська область, Львів, вулиця Сербська, 1",70,2018-11-20,344084,Банківські послуги,Інші витрати,252716,Центральний офіс,39481037,Україна,"Сплата комісії за переказ коштів з поточного рахунку до 17:00 за межі Банку за допомогою системи Клієнт-Банк по документу №333, від 20.11.2018. Без ПДВ",2600671275,current,5.00,"АТ ""АКБ ""Львів""",09801546,юридична особа
УГП,"Львівська область, Львів, вулиця Сербська, 1",70,2018-11-20,345356,Банківські послуги,Інші витрати,252715,Центральний офіс,39481037,Україна,"Сплата комісії за переказ коштів з поточного рахунку до 17:00 в межах системи Банку за допомогою системи Клієнт-Банк по документу №336, від 20.11.2018. Без ПДВ",2600671275,current,3.00,"АТ ""АКБ ""Львів""",09801546,юридична особа
УГП,"Київська обл., Києво-Святошинський район",49,2018-11-20,337,Публікування матеріалів у друкованих ЗМІ,Реклама в друкованих ЗМІ,252572,Центральний офіс,39481037,Україна,"Оплата за фото для першої шпал.газети Укр.гал.партії ""Київ Україн.""2 та ""Наша Галичина""4 згідно рахунку-факт. №36 від 20.11.2018р., без ПДВ",2600671275,current,5000.00,Левін Максим Євгенович,,фізична особа
УГП,"Львівська область, Львів, вулиця Івана Кавалерідзе, 8, 117",50,2018-11-16,327,Оплата ефірного часу на радіо,Реклама на радіо,252714,Центральний офіс,39481037,Україна,"Оплата з рекламні послуги на радіостанції ""НВ"" у м. Львові зг. рах. №1 від 31.10.2018р., в т. ч. ПДВ 2733,00 грн.",2600671275,current,16398.00,"ТОВ ""Студія звукозапису ""Люксен""",23268774,юридична особа
УГП,"Львівська область, Львів, вулиця Івана Кавалерідзе, 8, 117",50,2018-11-16,328,Оплата ефірного часу на радіо,Реклама на радіо,252713,Центральний офіс,39481037,Україна,"Оплата за рекламні послуги на ""Дуже радіо"" зг. рах. № 59 від 01.11.2018р., в т. ч. ПДВ 1400,00 грн.",2600671275,current,8400.00,"ТОВ ""ТЕЛЕРАДІОКОМПАНІЯ ""ГОВЕРЛА""",30822761,юридична особа
УГП,"Тернопільська область, Тернопіль, вулиця Руська, 52",50,2018-11-16,326,Оплата ефірного часу на радіо,Реклама на радіо,252712,Центральний офіс,39481037,Україна,"Оплата за розміщ. інфор. матеріалів на ""УХ-радіо"" 101.1ФМ в м. Тернопіль 01.11.2018р. - 07.11.2018р. зг. рах. № СФ-0000165 від 31.10.18р., в т.ч. ПДВ 683,33 грн.",2600671275,current,4100.00,"ПП телерадіоорганізація ""УХ-радіо""",31994907,юридична особа
УГП,"Львівська область, Львів, вулиця Стрийська, 35",62,2018-11-16,331,Сплата ЄСВ,Податкові платежі,252711,Центральний офіс,39481037,Україна,"*;101;39481037; 22,0% нарах. єдиного внеску на заробітну плату за 1 пол.листопада 2018р. - 3155,00 грн.;;;",2600671275,current,3155.00,Залізнична ОДПІ ГУ ДФС у Львівській області,39554382,юридична особа
УГП,"Львівська область, Львів, вулиця Конотопська, 6",63,2018-11-16,330,Податок на доходи,Податкові платежі,252710,Центральний офіс,39481037,Україна,"*;101;39481037; податок на доходи фізичних осіб із заробітної плати за 1 пол. листопада 2018р., 18% 2581,36 грн.;;;",2600671275,current,2581.36,УДКСУ у Франківському районі м. Львова,37965138,юридична особа
УГП,"Львівська область, Львів, вулиця Конотопська, 6",61,2018-11-16,329,Військовий збір,Податкові платежі,252709,Центральний офіс,39481037,Україна,"*;101;39481037; утриманий військовий збір із заробітної плати за 1 пол. листопада 2018р.,1,5% - 215,11 грн.;;;",2600671275,current,215.11,УДКСУ у Франківському районі м. Львова,37965138,юридична особа
УГП,"Львівська область, Львів, вулиця Сербська, 1",70,2018-11-16,282711,Банківські послуги,Інші витрати,252708,Центральний офіс,39481037,Україна,"Сплата комісії за зарахуванню коштів на рахунки фізичних осіб підприємства по зарплатному проекту по документу №282710, від 16.11.2018. Без ПДВ",2600671275,current,69.27,"АТ ""АКБ ""Львів""",09801546,юридична особа
УГП,"Львівська область, Львів, вулиця Сербська, 1",70,2018-11-16,281984,Банківські послуги,Інші витрати,252707,Центральний офіс,39481037,Україна,"Сплата комісії за переказ коштів з поточного рахунку до 17:00 за межі Банку за допомогою системи Клієнт-Банк по документу №332, від 16.11.2018. Без ПДВ",2600671275,current,5.00,"АТ ""АКБ ""Львів""",09801546,юридична особа
УГП,"Львівська область, Львів, вулиця Сербська, 1",70,2018-11-16,281808,Банківські послуги,Інші витрати,252706,Центральний офіс,39481037,Україна,"Сплата комісії за переказ коштів з поточного рахунку до 17:00 за межі Банку за допомогою системи Клієнт-Банк по документу №331, від 16.11.2018. Без ПДВ",2600671275,current,5.00,"АТ ""АКБ ""Львів""",09801546,юридична особа
УГП,"Львівська область, Львів, вулиця Сербська, 1",70,2018-11-16,281718,Банківські послуги,Інші витрати,252705,Центральний офіс,39481037,Україна,"Сплата комісії за переказ коштів з поточного рахунку до 17:00 за межі Банку за допомогою системи Клієнт-Банк по документу №330, від 16.11.2018. Без ПДВ",2600671275,current,5.00,"АТ ""АКБ ""Львів""",09801546,юридична особа
УГП,"Львівська область, Львів, вулиця Сербська, 1",70,2018-11-16,281683,Банківські послуги,Інші витрати,252704,Центральний офіс,39481037,Україна,"Сплата комісії за переказ коштів з поточного рахунку до 17:00 за межі Банку за допомогою системи Клієнт-Банк по документу №329, від 16.11.2018. Без ПДВ",2600671275,current,5.00,"АТ ""АКБ ""Львів""",09801546,юридична особа
УГП,"Львівська область, Львів, вулиця Сербська, 1",70,2018-11-16,279325,Банківські послуги,Інші витрати,252703,Центральний офіс,39481037,Україна,"Сплата комісії за переказ коштів з поточного рахунку до 17:00 за межі Банку за допомогою системи Клієнт-Банк по документу №328, від 16.11.2018. Без ПДВ",2600671275,current,5.00,"АТ ""АКБ ""Львів""",09801546,юридична особа
УГП,"Львівська область, Львів, вулиця Сербська, 1",70,2018-11-16,279204,Банківські послуги,Інші витрати,252702,Центральний офіс,39481037,Україна,"Сплата комісії за переказ коштів з поточного рахунку до 17:00 за межі Банку за допомогою системи Клієнт-Банк по документу №327, від 16.11.2018. Без ПДВ",2600671275,current,5.00,"АТ ""АКБ ""Львів""",09801546,юридична особа
УГП,"Львівська область, Львів, вулиця Сербська, 1",70,2018-11-16,279117,Банківські послуги,Інші витрати,252701,Центральний офіс,39481037,Україна,"Сплата комісії за переказ коштів з поточного рахунку до 17:00 за межі Банку за допомогою системи Клієнт-Банк по документу №326, від 16.11.2018. Без ПДВ",2600671275,current,5.00,"АТ ""АКБ ""Львів""",09801546,юридична особа
УГП,"Львівська область, Львів",84,2018-11-16,282713,"Заробітна плата, премії","Заробітна плата, лікарняні, вагітності, відрядження, компенсації",252571,Центральний офіс,39481037,Україна,Заробітна плата за 1 половину листопада 2018 року,2600671275,current,4266.50,Панкевич Богдан Романович,,фізична особа
УГП,Тернопільська область,84,2018-11-16,282714,"Заробітна плата, премії","Заробітна плата, лікарняні, вагітності, відрядження, компенсації",252570,Центральний офіс,39481037,Україна,Заробітна плата за 1 половину листопада 2018 року,2600671275,current,3260.25,Яремчук Ірина Романівна,,фізична особа
УГП,"Львівська область, Львів",84,2018-11-16,282712,"Заробітна плата, премії","Заробітна плата, лікарняні, вагітності, відрядження, компенсації",252569,Центральний офіс,39481037,Україна,Заробітна плата за 1 половину листопада 2018 року,2600671275,current,2327.19,Лозинський Роман Михайлович,,фізична особа
УГП,"Львівська область, Львів",84,2018-11-16,282715,"Заробітна плата, премії","Заробітна плата, лікарняні, вагітності, відрядження, компенсації",252568,Центральний офіс,39481037,Україна,Заробітна плата за 1 половину листопада 2018 року,2600671275,current,1690.50,Герич Ганна Вікторівна,,фізична особа
УГП,"Житомирська область, Коростенський район",58,2018-11-16,332,"Виготовлення друкованих матеріалів (плакатів, листівок, буклетів та інших агітаційних матеріалів)",Друкована агітація,252567,Центральний офіс,39481037,Україна,"Оплата за буклет зг. рах. № 69 від 08.11.2018р., в т. ч. ПДВ 641,66 грн.",2600671275,current,3850.00,Яковчук Надія Сергіївна,,фізична особа
УГП,"Івано-Франківська область, Івано-Франківськ, вулиця Михайла Грушевського, 21",51,2018-11-15,385,Оплата ефірного часу на ТБ,Телереклама,252934,Івано-Франківська обласна організація,40026836,Івано-Франківська область,"оплата згiдно рахунку N 349 вiд 14.11.18 за iнформацiйнi послуги У сумi 2083.33 грн., ПДВ - 20 % 416.67 грн.",26005052517967,current,2500.00,"Івано-Франківське обласне телебачення ""Галичина""",13641427,юридична особа
УГП,"Івано-Франківська область, Івано-Франківськ, вулиця Січових стрільців, 15",70,2018-11-15,BFO1JIRBXY,Банківські послуги,Інші витрати,252933,Івано-Франківська обласна організація,40026836,Івано-Франківська область,"Комiсiя за виконання платежiв в нацiональнiй валютi, згiдно з вiдкритою офертою банку N б/н вiд 29.09.2015 та тарифiв банку, без ПДВ",26005052517967,current,3.00,"ПАТ КБ ""Приватбанк""",14360570,юридична особа
УГП,"Львівська область, Львів, вулиця Сербська, 1",70,2018-11-15,263824,Банківські послуги,Інші витрати,252700,Центральний офіс,39481037,Україна,"Сплата комісії за переказ коштів з поточного рахунку до 17:00 за межі Банку за допомогою системи Клієнт-Банк по документу №325, від 15.11.2018. Без ПДВ",2600671275,current,5.00,"АТ ""АКБ ""Львів""",09801546,юридична особа
УГП,"Тернопільська область, Тернопіль",58,2018-11-15,325,"Виготовлення друкованих матеріалів (плакатів, листівок, буклетів та інших агітаційних матеріалів)",Друкована агітація,252566,Центральний офіс,39481037,Україна,Оплата за плакати А3 згідно рах. № 140 від 15.11.2018 р. Без ПДВ,2600671275,current,2200.00,Карпюк Діана Володимирівна,,фізична особа
УГП,"Львівська область, Львів, вулиця Сербська, 1",70,2018-11-14,242942,Банківські послуги,Інші витрати,252699,Центральний офіс,39481037,Україна,"Сплата комісії за переказ коштів з поточного рахунку до 17:00 за межі Банку за допомогою системи Клієнт-Банк по документу №324, від 14.11.2018. Без ПДВ",2600671275,current,5.00,"АТ ""АКБ ""Львів""",09801546,юридична особа
УГП,"Тернопільська область, Тернопіль",54,2018-11-14,324,Виготовлення відеозаписів,Реклама (без класифікації),252565,Центральний офіс,39481037,Україна,"Попередня оплата за послуги відеозапису та монтажу форуму згідно договору №12-11-1/18 від 12.11.2018р., без ПДВ",2600671275,current,2816.00,Веприк Микола Іванович,,фізична особа
УГП,"Львівська область, Львів, вулиця Сербська, 1",70,2018-11-13,906268РКО,Банківські послуги,Інші витрати,252698,Центральний офіс,39481037,Україна,Комісія за послуги Банку,2600671275,current,8.00,"АТ ""АКБ ""Львів""",09801546,юридична особа
УГП,"Львівська область, Львів, вулиця Нечуя-Левицького, 23, 4Б",53,2018-11-12,322,Витрати на розміщення зовнішньої реклами,Зовнішня реклама,252697,Центральний офіс,39481037,Україна,"Оплата за постери та оренду рекл.площин в листопаді 2018 згідно рахунку №444 від 16.10.18р, згід.договору №16-10-18/01 від 16.10.18р.,в т.ч. ПДВ 20 000.00 грн.",2600671275,current,120000.00,"ТОВ ""Аврора Адвертайзінг""",38893253,юридична особа
УГП,"Львівська область, Львів, вулиця Нечуя-Левицького, 23, 4Б",53,2018-11-12,323,Витрати на розміщення зовнішньої реклами,Зовнішня реклама,252696,Центральний офіс,39481037,Україна,"Оплата за постери та оренду рекл.площин в листопаді 2018 згідно рахунку №444 від 16.10.18р, згід.договору №16-10-18/01 від 16.10.18р.,в т.ч. ПДВ 12741.50 грн.",2600671275,current,76449.00,"ТОВ ""Аврора Адвертайзінг""",38893253,юридична особа
УГП,"Київ, вулиця Костянтинівська, 71Д",69,2018-11-12,319,Організація заходів та інші організаційні послуги,Організація заходів та інші організаційні послуги,252695,Центральний офіс,39481037,Україна,"Попередня оплата за оренду конференц-залу в готелі ""АМАРАНТ"" м. Київ 01.12.2018, згідно рахунку №1528 від 30.10.2018р., в т.ч. ПДВ 1006,67 грн.",2600671275,current,6040.00,"ТОВ ""Амарант"" ЛТД",21509860,юридична особа
УГП,"Львівська область, Львів, вулиця Іларіона Свєнціцького, 1",76,2018-11-12,317,Послуги зв’язку,Послуги зв’язку,252694,Центральний офіс,39481037,Україна,"Попередня оплата за телекомунікац.послуги за Грудень 2018 р., згідно рахунку №2643905 від 07.11.2018 зг.догов.№181691 від 01.04.2018, в т.ч.ПДВ 20,00 грн.",2600671275,current,120.00,"ДП ""НТЦ ""Українська академічна і дослідницька мережа"" Інституту фізики конденсованих систем НАН України""",30275262,юридична особа
УГП,"Львівська область, Львів, вулиця Петра Дорошенка, 43",76,2018-11-12,320,Послуги зв’язку,Послуги зв’язку,252693,Центральний офіс,39481037,Україна,"Оплата за телеком.посл. аванс за листопад зг.дог.№ 4600000000017884 від 26.10.16,зг.рах.№4600000000017884.10.2018 від 31.10.18,в т.ч.ПДВ 16,50 грн.",2600671275,current,99.00,"ПАТ ""Укртелеком""",21560766,юридична особа
УГП,"Львівська область, Львів, вулиця Сербська, 1",70,2018-11-12,905157РКО,Банківські послуги,Інші витрати,252692,Центральний офіс,39481037,Україна,Комісія за послуги Банку,2600671275,current,60.00,"АТ ""АКБ ""Львів""",09801546,юридична особа
УГП,"Львівська область, Львів, вулиця Сербська, 1",70,2018-11-12,905142РКО,Банківські послуги,Інші витрати,252691,Центральний офіс,39481037,Україна,Комісія за послуги Банку,2600671275,current,40.00,"АТ ""АКБ ""Львів""",09801546,юридична особа
УГП,"Львівська область, Львів, вулиця Сербська, 1",70,2018-11-12,200164,Банківські послуги,Інші витрати,252690,Центральний офіс,39481037,Україна,Плата за переказ коштів з поточного рахунку до 17:00 за межі Банку за допомогою системи Клієнт-Банк за період 12.11.18-12.11.18 зг. договору №N40.00.002175/РКО,2600671275,current,5.00,"АТ ""АКБ ""Львів""",09801546,юридична особа
УГП,"Львівська область, Львів, вулиця Сербська, 1",70,2018-11-12,198126,Банківські послуги,Інші витрати,252689,Центральний офіс,39481037,Україна,"Сплата комісії за переказ коштів з поточного рахунку до 17:00 за межі Банку за допомогою системи Клієнт-Банк по документу №322, від 12.11.2018. Без ПДВ",2600671275,current,5.00,"АТ ""АКБ ""Львів""",09801546,юридична особа
УГП,"Львівська область, Львів, вулиця Сербська, 1",70,2018-11-12,196171,Банківські послуги,Інші витрати,252688,Центральний офіс,39481037,Україна,"Сплата комісії за переказ коштів з поточного рахунку до 17:00 за межі Банку за допомогою системи Клієнт-Банк по документу №320, від 12.11.2018. Без ПДВ",2600671275,current,5.00,"АТ ""АКБ ""Львів""",09801546,юридична особа
УГП,"Львівська область, Львів, вулиця Сербська, 1",70,2018-11-12,195118,Банківські послуги,Інші витрати,252687,Центральний офіс,39481037,Україна,"Сплата комісії за переказ коштів з поточного рахунку до 17:00 за межі Банку за допомогою системи Клієнт-Банк по документу №319, від 12.11.2018. Без ПДВ",2600671275,current,5.00,"АТ ""АКБ ""Львів""",09801546,юридична особа
УГП,"Львівська область, Львів, вулиця Сербська, 1",70,2018-11-12,195022,Банківські послуги,Інші витрати,252686,Центральний офіс,39481037,Україна,"Сплата комісії за переказ коштів з поточного рахунку до 17:00 за межі Банку за допомогою системи Клієнт-Банк по документу №318, від 12.11.2018. Без ПДВ",2600671275,current,5.00,"АТ ""АКБ ""Львів""",09801546,юридична особа
УГП,"Львівська область, Львів, вулиця Сербська, 1",70,2018-11-12,194893,Банківські послуги,Інші витрати,252685,Центральний офіс,39481037,Україна,"Сплата комісії за переказ коштів з поточного рахунку до 17:00 в межах системи Банку за допомогою системи Клієнт-Банк по документу №317, від 12.11.2018. Без ПДВ",2600671275,current,3.00,"АТ ""АКБ ""Львів""",09801546,юридична особа
УГП,"Житомирська область, Коростенський район",58,2018-11-12,318,"Виготовлення друкованих матеріалів (плакатів, листівок, буклетів та інших агітаційних матеріалів)",Друкована агітація,252564,Центральний офіс,39481037,Україна,"Оплата за папки зг. рах. № 68 від 06.11.2018р., в т. ч. ПДВ 666,66 грн.",2600671275,current,4000.00,Яковчук Надія Сергіївна,,фізична особа
УГП,"м. Тернопіль, вул. Київська, буд. 7, кв. 178",43,2018-11-09,294,Інші витрати,Інші витрати,253187,Тернопільська обласна організація,40011526,Тернопільська область,Оплата згiдно рах. N СФ-0000797 вiд 07.11.2018р. Без ПДВ,26006055117228,current,2200.00,Миколюк Світлана Миколаївна,3191202564,фізична особа
УГП,"Львівська область, Львів, вулиця Сербська, 1",70,2018-11-09,158062,Банківські послуги,Інші витрати,253067,Львівська обласна організація,40014820,Львівська область,"Сплата комісії за переказ коштів з поточного рахунку до 17:00 за межі Банку за допомогою системи Клієнт-Банк по документу №2, від 09.11.2018. Без ПДВ",2600477437,current,5.00,"АТ ""АКБ ""Львів""",09801546,юридична особа
УГП,"Львівська область, Львів, вулиця Сербська, 1",70,2018-11-09,158043,Банківські послуги,Інші витрати,253066,Львівська обласна організація,40014820,Львівська область,"Сплата комісії за переказ коштів з поточного рахунку до 17:00 за межі Банку за допомогою системи Клієнт-Банк по документу №1, від 09.11.2018. Без ПДВ",2600477437,current,5.00,"АТ ""АКБ ""Львів""",09801546,юридична особа
УГП,"Львівська область, Кам'янка-Бузький район",49,2018-11-09,1,Публікування матеріалів у друкованих ЗМІ,Реклама в друкованих ЗМІ,253003,Львівська обласна організація,40014820,Львівська область,"Оплата за розміщення інформаційних матеріалів у жовтні 2018р. в газеті ""Медіа Дрогобиччина"" згідно рахунку №69 від 12.10.2018р., без ПДВ",2600477437,current,2000.00,Кульчицька-Волчко Марія Василівна,,фізична особа
УГП,"Львівська область, Мостиський район, Мостиська",53,2018-11-09,2,Витрати на розміщення зовнішньої реклами,Зовнішня реклама,253002,Львівська обласна організація,40014820,Львівська область,"Оплата за оренду рекл.площин і розміщ. матер.у листопаді 2018р. в м.Мостиська зг.договору №01/10 від 01.10.2018р., зг.рахунку №11-01 від 08.11.2018р., без ПДВ",2600477437,current,1400.00,Кадикало Олег Михайлович,,фізична особа
УГП,"Івано-Франківська область, Івано-Франківськ, вулиця Січових стрільців, 15",70,2018-11-09,B9O1IYLP4Y,Банківські послуги,Інші витрати,252932,Івано-Франківська обласна організація,40026836,Івано-Франківська область,"Комiсiя за виконання платежiв в нацiональнiй валютi, згiдно з вiдкритою офертою банку N б/н вiд 29.09.2015 та тарифiв банку, без ПДВ",26005052517967,current,3.00,"ПАТ КБ ""Приватбанк""",14360570,юридична особа
УГП,"Івано-Франківська область, Івано-Франківськ, вулиця Михайла Грушевського, 21",43,2018-11-09,384,Інші витрати,Інші витрати,252870,Івано-Франківська обласна організація,40026836,Івано-Франківська область,оплата згiдно рахунку N3/11-18 вiд 06.11.2018р. Без ПДВ,26005052517967,current,1100.00,Шевчук Ігор Романович,,фізична особа
УГП,"Львівська область, Львів, вулиця Сербська, 1",70,2018-11-09,902886РКО,Банківські послуги,Інші витрати,252684,Центральний офіс,39481037,Україна,Комісія за послуги Банку,2600671275,current,8.00,"АТ ""АКБ ""Львів""",09801546,юридична особа
УГП,"Тернопільська область, Тернопіль, вулиця Руська, 44",51,2018-11-07,293,Оплата ефірного часу на ТБ,Телереклама,253263,Тернопільська обласна організація,40011526,Тернопільська область,Оплата за iнформацiйнi послуги згiдно рах. N 93 вiд 01.11.2018р.,26006055117228,current,11400.00,"ПП ""ТРК ""Смайл""Телеканал ""ІНТБ""",34473456,юридична особа
УГП,"Тернопільська область, Кременецький район, Кременець, вулиця Шевченка, 58",43,2018-11-07,289,Інші витрати,Інші витрати,253262,Тернопільська обласна організація,40011526,Тернопільська область,Оплата згiдно рах. N 17 вiд 09.10.2018р.,26006055117228,current,2796.00,Кременецький Районний будинок культури,23587605,юридична особа
УГП,"Тернопільська область, Теребовлянський район, Теребовля, вулиця Князя Василька, 104а",49,2018-11-07,292,Публікування матеріалів у друкованих ЗМІ,Реклама в друкованих ЗМІ,253261,Тернопільська обласна організація,40011526,Тернопільська область,Оплата згiдно рах. N 636 вiд 10.10.2018р. Без ПДВ,26006055117228,current,1632.00,"ТОВ ""Редакція Теребовлянської газети ""Воля""",02475339,юридична особа
УГП,"Тернопільська область, Тернопіль, Бродівська вулиця, 17",49,2018-11-07,290,Публікування матеріалів у друкованих ЗМІ,Реклама в друкованих ЗМІ,253260,Тернопільська обласна організація,40011526,Тернопільська область,Оплата згiдно рах. N 1 вiд 18.09.2018р. Без ПДВ,26006055117228,current,720.00,"РГ ""Подільське слово""",02475351,юридична особа
УГП,"Тернопільська область, Тернопіль, проспект Степана Бандери, 38",70,2018-11-07,B7O1IP67ZY,Банківські послуги,Інші витрати,253259,Тернопільська обласна організація,40011526,Тернопільська область,"Комiсiя за виконання платежiв в нацiональнiй валютi, згiдно з вiдкритою офертою банку N б/н вiд 21.09.2015 та тарифiв банку, без ПДВ",26006055117228,current,3.00,"ПАТ КБ ""Приватбанк""",14360570,юридична особа
УГП,"Тернопільська область, Тернопіль, проспект Степана Бандери, 38",70,2018-11-07,B7O1IP67OY,Банківські послуги,Інші витрати,253258,Тернопільська обласна організація,40011526,Тернопільська область,"Комiсiя за виконання платежiв в нацiональнiй валютi, згiдно з вiдкритою офертою банку N б/н вiд 21.09.2015 та тарифiв банку, без ПДВ",26006055117228,current,3.00,"ПАТ КБ ""Приватбанк""",14360570,юридична особа
УГП,"Тернопільська область, Тернопіль, вулиця Білецька, 1",62,2018-11-07,286,Сплата ЄСВ,Податкові платежі,253257,Тернопільська обласна організація,40011526,Тернопільська область,ЄСВ вiд зарплати за жовтень 2018р.,26006055117228,current,2440.46,Тернопільська ОДПІ ГУ ДФС в Тернопільській області,39502025,юридична особа
УГП,"Тернопільська область, Тернопіль, вулиця Листопадова, 3",63,2018-11-07,285,Податок на доходи,Податкові платежі,253256,Тернопільська обласна організація,40011526,Тернопільська область,ПДФО вiд зарплати за жовтень 2018р.,26006055117228,current,1875.60,УДКСУ у м. Тернопіль,37977726,юридична особа
УГП,"Тернопільська область, Тернопіль, вулиця Листопадова, 3",61,2018-11-07,287,Військовий збір,Податкові платежі,253255,Тернопільська обласна організація,40011526,Тернопільська область,Вiйськовий збiр вiд зарплати за жовтень 2018р.,26006055117228,current,156.30,УДКСУ у м. Тернопіль,37977726,юридична особа
УГП,"Тернопільська область, Тернопіль, проспект Степана Бандери, 38",70,2018-11-07,288,Банківські послуги,Інші витрати,253254,Тернопільська обласна організація,40011526,Тернопільська область,Комiсiя РКО вiд зарплати за жовтень 2018р.,26006055117228,current,20.97,"ПАТ КБ ""Приватбанк""",14360570,юридична особа
УГП,"Тернопільська область, Тернопіль, проспект Степана Бандери, 38",70,2018-11-07,B7O1IN21YY,Банківські послуги,Інші витрати,253253,Тернопільська обласна організація,40011526,Тернопільська область,"Комiсiя за виконання платежiв в нацiональнiй валютi, згiдно з вiдкритою офертою банку N б/н вiд 21.09.2015 та тарифiв банку, без ПДВ",26006055117228,current,3.00,"ПАТ КБ ""Приватбанк""",14360570,юридична особа
УГП,"Тернопільська область, Тернопіль, проспект Степана Бандери, 38",70,2018-11-07,B7O1IN21QY,Банківські послуги,Інші витрати,253252,Тернопільська обласна організація,40011526,Тернопільська область,"Комiсiя за виконання платежiв в нацiональнiй валютi, згiдно з вiдкритою офертою банку N б/н вiд 21.09.2015 та тарифiв банку, без ПДВ",26006055117228,current,3.00,"ПАТ КБ ""Приватбанк""",14360570,юридична особа
УГП,"Тернопільська область, Тернопіль, проспект Степана Бандери, 38",70,2018-11-07,B7O1IN21LY,Банківські послуги,Інші витрати,253251,Тернопільська обласна організація,40011526,Тернопільська область,"Комiсiя за виконання платежiв в нацiональнiй валютi, згiдно з вiдкритою офертою банку N б/н вiд 21.09.2015 та тарифiв банку, без ПДВ",26006055117228,current,3.00,"ПАТ КБ ""Приватбанк""",14360570,юридична особа
УГП,"Тернопільська область, Гусятинський район",43,2018-11-07,291,Інші витрати,Інші витрати,253186,Тернопільська обласна організація,40011526,Тернопільська область,Оплата згiдно акту вик. роб N 30 вiд 30.03.2018р.,26006055117228,current,2685.31,Остафійчук Віталій Васильович,,фізична особа
УГП,"Тернопільська область, Бучацький район",84,2018-11-07,284,"Заробітна плата, премії","Заробітна плата, лікарняні, вагітності, відрядження, компенсації",253185,Тернопільська обласна організація,40011526,Тернопільська область,Заробітна плата за другу половину жовтня 2018р.,26006055117228,current,2455.25,Кізюк Іван Йосипович,,фізична особа
УГП,"Тернопільська область, Теребовлянський район",84,2018-11-07,284,"Заробітна плата, премії","Заробітна плата, лікарняні, вагітності, відрядження, компенсації",253184,Тернопільська обласна організація,40011526,Тернопільська область,Заробітна плата за другу половину жовтня 2018р.,26006055117228,current,2857.75,Вітвіцький Олег Іванович,,фізична особа
УГП,"Тернопільська область, Тернопіль",84,2018-11-07,284,"Заробітна плата, премії","Заробітна плата, лікарняні, вагітності, відрядження, компенсації",253183,Тернопільська обласна організація,40011526,Тернопільська область,Заробітна плата за другу половину жовтня 2018р.,26006055117228,current,1223.60,Войтович Анна Вʼячеславівна,,фізична особа
УГП,"Тернопільська область, Тернопіль",84,2018-11-07,284,"Заробітна плата, премії","Заробітна плата, лікарняні, вагітності, відрядження, компенсації",253182,Тернопільська обласна організація,40011526,Тернопільська область,Заробітна плата за другу половину жовтня 2018р.,26006055117228,current,1851.50,Богун Андрій Ігорович,,фізична особа
УГП,"Івано-Франківська область, Івано-Франківськ, площа Міцкевича, 8",79,2018-11-06,383,"Оренда будинків і приміщень та експлуатаційні витрати (прибирання, страхування орендованих будинків, охорона, сигналізація, ремонт, вивіз сміття, тощо)",Оренда нерухомості,252931,Івано-Франківська обласна організація,40026836,Івано-Франківська область,Оплата за оренду примiщення за листопад 2018 згiдно рахунку N СФ-1031019 вiд 31.10.2018р. Без ПДВ,26005052517967,current,4294.00,"ТОВ ""Крокус-Станіслав""",38162070,юридична особа
УГП,"Івано-Франківська область, Івано-Франківськ, вулиця Січових стрільців, 15",70,2018-11-06,B6O1IIXBQY,Банківські послуги,Інші витрати,252930,Івано-Франківська обласна організація,40026836,Івано-Франківська область,"Комiсiя за виконання платежiв в нацiональнiй валютi, згiдно з вiдкритою офертою банку N б/н вiд 29.09.2015 та тарифiв банку, без ПДВ",26005052517967,current,3.00,"ПАТ КБ ""Приватбанк""",14360570,юридична особа
УГП,"Івано-Франківська область, Івано-Франківськ, вулиця Незалежності, 20",62,2018-11-06,378,Сплата ЄСВ,Податкові платежі,252929,Івано-Франківська обласна організація,40026836,Івано-Франківська область,*;101;40026836;Сплата єдиного соцiального внеску з зарплати за жовтень 2018р;;;,26005052517967,current,4092.00,ДПІ в м. Івано-Франківську ГУ ДФС в Івано-Франківській області,39508514,юридична особа
УГП,"Івано-Франківська область, Івано-Франківськ, вулиця Січових стрільців, 15",70,2018-11-06,B6O1IIXBSY,Банківські послуги,Інші витрати,252928,Івано-Франківська обласна організація,40026836,Івано-Франківська область,"Комiсiя за виконання платежiв в нацiональнiй валютi, згiдно з вiдкритою офертою банку N б/н вiд 29.09.2015 та тарифiв банку, без ПДВ",26005052517967,current,3.00,"ПАТ КБ ""Приватбанк""",14360570,юридична особа
УГП,"Івано-Франківська область, Івано-Франківськ, вулиця Михайла Грушевського, 32",63,2018-11-06,379,Податок на доходи,Податкові платежі,252927,Івано-Франківська обласна організація,40026836,Івано-Франківська область,*;101;40026836;Податок з доходiв фiзичних осiб з зарплати за жовтень 2018р;;;,26005052517967,current,3348.00,УДКСУ у м. Івано-Франківську,37952250,юридична особа
УГП,"Івано-Франківська область, Івано-Франківськ, вулиця Січових стрільців, 15",70,2018-11-06,B6O1IIXBXY,Банківські послуги,Інші витрати,252926,Івано-Франківська обласна організація,40026836,Івано-Франківська область,"Комiсiя за виконання платежiв в нацiональнiй валютi, згiдно з вiдкритою офертою банку N б/н вiд 29.09.2015 та тарифiв банку, без ПДВ",26005052517967,current,3.00,"ПАТ КБ ""Приватбанк""",14360570,юридична особа
УГП,"Івано-Франківська область, Івано-Франківськ, вулиця Січових стрільців, 15",70,2018-11-06,382,Банківські послуги,Інші витрати,252925,Івано-Франківська обласна організація,40026836,Івано-Франківська область,Комiсiя РКО вiд зарплати за жовтень 2018р.,26005052517967,current,37.43,"ПАТ КБ ""Приватбанк""",14360570,юридична особа
УГП,"Івано-Франківська область, Івано-Франківськ, вулиця Михайла Грушевського, 32",61,2018-11-06,380,Військовий збір,Податкові платежі,252924,Івано-Франківська обласна організація,40026836,Івано-Франківська область,*;101;40026836;Сплата вiйськового збору з зарплати за жовтень 2018р;;;,26005052517967,current,279.00,УДКСУ у м. Івано-Франківську,37952250,юридична особа
УГП,"Івано-Франківська область, Івано-Франківськ, вулиця Січових стрільців, 15",70,2018-11-06,B6O1IIXCDY,Банківські послуги,Інші витрати,252923,Івано-Франківська обласна організація,40026836,Івано-Франківська область,"Комiсiя за виконання платежiв в нацiональнiй валютi, згiдно з вiдкритою офертою банку N б/н вiд 29.09.2015 та тарифiв банку, без ПДВ",26005052517967,current,3.00,"ПАТ КБ ""Приватбанк""",14360570,юридична особа
УГП,"Львівська область, Львів",84,2018-11-06,381,"Заробітна плата, премії","Заробітна плата, лікарняні, вагітності, відрядження, компенсації",252869,Івано-Франківська обласна організація,40026836,Івано-Франківська область,Заробітна плата за другу половину жовтня 2018р.,26005052517967,current,2857.75,Саїк Олег Ігорович,,фізична особа
УГП,Івано-Франківська область,84,2018-11-06,381,"Заробітна плата, премії","Заробітна плата, лікарняні, вагітності, відрядження, компенсації",252868,Івано-Франківська обласна організація,40026836,Івано-Франківська область,Заробітна плата за другу половину жовтня 2018р.,26005052517967,current,2455.25,Івасишин Світлана Ярославівна,,фізична особа
УГП,Івано-Франківська область,84,2018-11-06,381,"Заробітна плата, премії","Заробітна плата, лікарняні, вагітності, відрядження, компенсації",252867,Івано-Франківська обласна організація,40026836,Івано-Франківська область,Заробітна плата за другу половину жовтня 2018р.,26005052517967,current,2616.25,Сербин Наталія Зіновіївна,,фізична особа
УГП,"Івано-Франківська область, Тисменицький район",84,2018-11-06,381,"Заробітна плата, премії","Заробітна плата, лікарняні, вагітності, відрядження, компенсації",252866,Івано-Франківська обласна організація,40026836,Івано-Франківська область,Заробітна плата за другу половину жовтня 2018р.,26005052517967,current,1569.75,Бабак Віталій Михайлович,,фізична особа
УГП,"Івано-Франківська область, Івано-Франківськ",84,2018-11-06,381,"Заробітна плата, премії","Заробітна плата, лікарняні, вагітності, відрядження, компенсації",252865,Івано-Франківська обласна організація,40026836,Івано-Франківська область,Заробітна плата за другу половину жовтня 2018р.,26005052517967,current,2857.75,Романчук Любомир Петрович,,фізична особа
УГП,"Івано-Франківська область, Івано-Франківськ",84,2018-11-06,381,"Заробітна плата, премії","Заробітна плата, лікарняні, вагітності, відрядження, компенсації",252864,Івано-Франківська обласна організація,40026836,Івано-Франківська область,Заробітна плата за другу половину жовтня 2018р.,26005052517967,current,2616.25,Федоляк Наталія Орестівна,,фізична особа
УГП,"Тернопільська область, Тернопіль, вулиця Білецька, 1",62,2018-11-02,281,Сплата ЄСВ,Податкові платежі,253250,Тернопільська обласна організація,40011526,Тернопільська область,ЄСВ вiд зарплати (вiдпускних) за листопад 2018р.,26006055117228,current,2350.65,Тернопільська ОДПІ ГУ ДФС в Тернопільській області,39502025,юридична особа
УГП,"Тернопільська область, Тернопіль, вулиця Листопадова, 3",63,2018-11-02,280,Податок на доходи,Податкові платежі,253249,Тернопільська обласна організація,40011526,Тернопільська область,ПДФО вiд зарплати (вiдпускних) за листопад 2018р.,26006055117228,current,1923.27,УДКСУ у м. Тернопіль,37977726,юридична особа
УГП,"Тернопільська область, Тернопіль, вулиця Листопадова, 3",61,2018-11-02,282,Військовий збір,Податкові платежі,253248,Тернопільська обласна організація,40011526,Тернопільська область,Вiйськовий збiр вiд (вiдпускних) зарплати за листопад 2018р.,26006055117228,current,160.27,УДКСУ у м. Тернопіль,37977726,юридична особа
УГП,"Тернопільська область, Тернопіль, проспект Степана Бандери, 38",70,2018-11-02,283,Банківські послуги,Інші витрати,253247,Тернопільська обласна організація,40011526,Тернопільська область,Комiсiя РКО вiд зарплати (вiдпускних) за листопад 2018р,26006055117228,current,21.50,"ПАТ КБ ""Приватбанк""",14360570,юридична особа
УГП,"Тернопільська область, Тернопіль, проспект Степана Бандери, 38",70,2018-11-02,B2O1I7IETY,Банківські послуги,Інші витрати,253246,Тернопільська обласна організація,40011526,Тернопільська область,"Комiсiя за виконання платежiв в нацiональнiй валютi, згiдно з вiдкритою офертою банку N б/н вiд 21.09.2015 та тарифiв банку, без ПДВ",26006055117228,current,3.00,"ПАТ КБ ""Приватбанк""",14360570,юридична особа
УГП,"Тернопільська область, Тернопіль, проспект Степана Бандери, 38",70,2018-11-02,B2O1I7IESY,Банківські послуги,Інші витрати,253245,Тернопільська обласна організація,40011526,Тернопільська область,"Комiсiя за виконання платежiв в нацiональнiй валютi, згiдно з вiдкритою офертою банку N б/н вiд 21.09.2015 та тарифiв банку, без ПДВ",26006055117228,current,3.00,"ПАТ КБ ""Приватбанк""",14360570,юридична особа
УГП,"Тернопільська область, Тернопіль, проспект Степана Бандери, 38",70,2018-11-02,B2O1I7IERY,Банківські послуги,Інші витрати,253244,Тернопільська обласна організація,40011526,Тернопільська область,"Комiсiя за виконання платежiв в нацiональнiй валютi, згiдно з вiдкритою офертою банку N б/н вiд 21.09.2015 та тарифiв банку, без ПДВ",26006055117228,current,3.00,"ПАТ КБ ""Приватбанк""",14360570,юридична особа
УГП,"Тернопільська область, Теребовлянський район",84,2018-11-02,279,"Заробітна плата, премії","Заробітна плата, лікарняні, вагітності, відрядження, компенсації",253181,Тернопільська обласна організація,40011526,Тернопільська область,Заробiтна плата та відпускні за листопад 2018р.,26006055117228,current,4628.10,Вітвіцький Олег Іванович,,фізична особа
УГП,"Тернопільська область, Бучацький район",84,2018-11-02,279,"Заробітна плата, премії","Заробітна плата, лікарняні, вагітності, відрядження, компенсації",253180,Тернопільська обласна організація,40011526,Тернопільська область,Заробiтна плата та відпускні за листопад 2018р.,26006055117228,current,3973.16,Кізюк Іван Йосипович,,фізична особа
УГП,"Львівська область, Львів, вулиця Стрийська, 35",62,2018-11-02,96,Сплата ЄСВ,Податкові платежі,253065,Львівська обласна організація,40014820,Львівська область,"*;101;40014820; 22,0% нарах. єдиного внеску на заробітну плату за 2 пол.жовтня 2018р.- 1320,00 грн.;;;",2600477437,current,1320.00,Залізнична ОДПІ ГУ ДФС у Львівській області,39554382,юридична особа
УГП,"Львівська область, Львів, вулиця Конотопська, 6",63,2018-11-02,95,Податок на доходи,Податкові платежі,253064,Львівська обласна організація,40014820,Львівська область,"*;101;40014820; податок на доходи фізичних осіб із заробітної плати за 2 пол.жовтня 2018р.,18% - 1080.00 грн.;;;",2600477437,current,1080.00,УДКСУ у Франківському районі м. Львова,37965138,юридична особа
УГП,"Львівська область, Львів, вулиця Конотопська, 6",61,2018-11-02,94,Військовий збір,Податкові платежі,253063,Львівська обласна організація,40014820,Львівська область,"*;101;40014820; утриманий військовий збір із заробітної плати за 2 пол.жовтня 2018р.,1,5% - 90,00 грн.;;;",2600477437,current,90.00,УДКСУ у Франківському районі м. Львова,37965138,юридична особа
УГП,"Львівська область, Львів, вулиця Сербська, 1",70,2018-11-02,34927,Банківські послуги,Інші витрати,253062,Львівська обласна організація,40014820,Львівська область,"Комісія за pозрахункове обслуговування Клієнтів по системі ""Клієнт-Банк"" за період 01.10.18-31.10.18 зг. договору. №N40.00.002425/РКО вiд 17.09.2015",2600477437,current,50.00,"АТ ""АКБ ""Львів""",09801546,юридична особа
УГП,"Львівська область, Львів, вулиця Сербська, 1",70,2018-11-02,33754,Банківські послуги,Інші витрати,253061,Львівська обласна організація,40014820,Львівська область,"Сплата комісії за зарахуванню коштів на рахунки фізичних осіб підприємства по зарплатному проекту по документу №33753, від 02.11.2018. Без ПДВ",2600477437,current,28.98,"АТ ""АКБ ""Львів""",09801546,юридична особа
УГП,"Львівська область, Львів, вулиця Сербська, 1",70,2018-11-02,33234,Банківські послуги,Інші витрати,253060,Львівська обласна організація,40014820,Львівська область,"Сплата комісії за переказ коштів з поточного рахунку до 17:00 за межі Банку за допомогою системи Клієнт-Банк по документу №96, від 02.11.2018. Без ПДВ",2600477437,current,5.00,"АТ ""АКБ ""Львів""",09801546,юридична особа
УГП,"Львівська область, Львів, вулиця Сербська, 1",70,2018-11-02,33216,Банківські послуги,Інші витрати,253059,Львівська обласна організація,40014820,Львівська область,"Сплата комісії за переказ коштів з поточного рахунку до 17:00 за межі Банку за допомогою системи Клієнт-Банк по документу №95, від 02.11.2018. Без ПДВ",2600477437,current,5.00,"АТ ""АКБ ""Львів""",09801546,юридична особа
УГП,"Львівська область, Львів, вулиця Сербська, 1",70,2018-11-02,33210,Банківські послуги,Інші витрати,253058,Львівська обласна організація,40014820,Львівська область,"Сплата комісії за переказ коштів з поточного рахунку до 17:00 за межі Банку за допомогою системи Клієнт-Банк по документу №94, від 02.11.2018. Без ПДВ",2600477437,current,5.00,"АТ ""АКБ ""Львів""",09801546,юридична особа
УГП,"Львівська область, Львів, вулиця Сербська, 1",70,2018-11-02,33196,Банківські послуги,Інші витрати,253057,Львівська обласна організація,40014820,Львівська область,"Сплата комісії за переказ коштів з поточного рахунку до 17:00 за межі Банку за допомогою системи Клієнт-Банк по документу №93, від 02.11.2018. Без ПДВ",2600477437,current,5.00,"АТ ""АКБ ""Львів""",09801546,юридична особа
УГП,"Львівська область, Львів",84,2018-11-02,33755,"Заробітна плата, премії","Заробітна плата, лікарняні, вагітності, відрядження, компенсації",253001,Львівська обласна організація,40014820,Львівська область,Заробітна плата за 2 половину жовтня 2018 року,2600477437,current,3073.64,Щурко Іван Петрович,,фізична особа
УГП,"Хмельницька область, Шепетівка",84,2018-11-02,33756,"Заробітна плата, премії","Заробітна плата, лікарняні, вагітності, відрядження, компенсації",253000,Львівська обласна організація,40014820,Львівська область,Заробітна плата за 2 половину жовтня 2018 року,2600477437,current,1756.36,Ложкіна Марина Миколаївна,,фізична особа
УГП,"Львівська область, Яворівський район, Новояворівськ",53,2018-11-02,93,Витрати на розміщення зовнішньої реклами,Зовнішня реклама,252999,Львівська обласна організація,40014820,Львівська область,"Оплата за розміщення рекл на бігбордах за період 01.11.2018-30.11.2018, згідно рах.№30/10-1 від 30.10.2018р., без ПДВ",2600477437,current,3000.00,Пекар Володимир Васильович,,фізична особа
УГП,"Львівська область, Львів, проїзд Крива Липа, 6",79,2018-11-02,315,"Оренда будинків і приміщень та експлуатаційні витрати (прибирання, страхування орендованих будинків, охорона, сигналізація, ремонт, вивіз сміття, тощо)",Оренда нерухомості,252683,Центральний офіс,39481037,Україна,"Попередня оплата за оренду офісного приміщення у листопаді 2018р., згід.рахунку №13/11 від 01.11.18р., зг.договору орен.нежит.прим.№01/2018 від 10.09.18,без ПДВ",2600671275,current,8535.00,"Львівське регіональне добровільне обʼєднання ""Нова Хвиля""",20846223,юридична особа
УГП,"Львівська область, Львів, вулиця Конотопська, 6",63,2018-11-02,313,Податок на доходи,Податкові платежі,252681,Центральний офіс,39481037,Україна,"*;101;39481037; податок на доходи фізичних осіб із орендної плати за листопад 2018р.зг.рах.№7 від 01.11.18, дог.орен.№1806-01 від 12.06.18, 18% - 3816,00 грн.;;",2600671275,current,3816.00,УДКСУ у Франківському районі м. Львова,37965138,юридична особа
УГП,"Львівська область, Львів, вулиця Конотопська, 6",61,2018-11-02,312,Військовий збір,Податкові платежі,252680,Центральний офіс,39481037,Україна,"*;101;39481037; утриманий військовий збір із орендної плати за листопад 2018р. зг.рах.№7 від 01.11.18,дог.ор.прим.№1806-01 від 12.06.18, 1,5% - 318,00 грн.;;;",2600671275,current,318.00,УДКСУ у Франківському районі м. Львова,37965138,юридична особа
УГП,"Львівська область, Львів, вулиця Сербська, 1",70,2018-11-02,34771,Банківські послуги,Інші витрати,252679,Центральний офіс,39481037,Україна,"Комісія за pозрахункове обслуговування Клієнтів по системі ""Клієнт-Банк"" за період 01.10.18-31.10.18 зг. договору. №N40.00.002175/РКО вiд 10.12.2014",2600671275,current,50.00,"АТ ""АКБ ""Львів""",09801546,юридична особа
УГП,"Львівська область, Львів, вулиця Сербська, 1",70,2018-11-02,33118,Банківські послуги,Інші витрати,252678,Центральний офіс,39481037,Україна,"Сплата комісії за переказ коштів з поточного рахунку до 17:00 за межі Банку за допомогою системи Клієнт-Банк по документу №315, від 02.11.2018. Без ПДВ",2600671275,current,5.00,"АТ ""АКБ ""Львів""",09801546,юридична особа
УГП,"Львівська область, Львів, вулиця Сербська, 1",70,2018-11-02,32922,Банківські послуги,Інші витрати,252677,Центральний офіс,39481037,Україна,"Сплата комісії за переказ коштів з поточного рахунку до 17:00 за межі Банку за допомогою системи Клієнт-Банк по документу №314, від 02.11.2018. Без ПДВ",2600671275,current,5.00,"АТ ""АКБ ""Львів""",09801546,юридична особа
УГП,"Львівська область, Львів, вулиця Сербська, 1",70,2018-11-02,32897,Банківські послуги,Інші витрати,252676,Центральний офіс,39481037,Україна,"Сплата комісії за переказ коштів з поточного рахунку до 17:00 за межі Банку за допомогою системи Клієнт-Банк по документу №313, від 02.11.2018. Без ПДВ",2600671275,current,5.00,"АТ ""АКБ ""Львів""",09801546,юридична особа
УГП,"Львівська область, Львів, вулиця Сербська, 1",70,2018-11-02,32877,Банківські послуги,Інші витрати,252675,Центральний офіс,39481037,Україна,"Сплата комісії за переказ коштів з поточного рахунку до 17:00 за межі Банку за допомогою системи Клієнт-Банк по документу №312, від 02.11.2018. Без ПДВ",2600671275,current,5.00,"АТ ""АКБ ""Львів""",09801546,юридична особа
УГП,"Львівська область, Львів, вулиця Сербська, 1",70,2018-11-02,33183,Банківські послуги,Інші витрати,252674,Центральний офіс,39481037,Україна,"Сплата комісії за переказ коштів з поточного рахунку до 17:00 в межах системи Банку за допомогою системи Клієнт-Банк по документу №316, від 02.11.2018. Без ПДВ",2600671275,current,3.00,"АТ ""АКБ ""Львів""",09801546,юридична особа
УГП,Київ,79,2018-11-02,314,"Оренда будинків і приміщень та експлуатаційні витрати (прибирання, страхування орендованих будинків, охорона, сигналізація, ремонт, вивіз сміття, тощо)",Оренда нерухомості,252563,Центральний офіс,39481037,Україна,"Оплата аван.оренд.плата за листопад 2018.зг.рах.№7 від 01.11.18,дог.№1806-1 від12.06.18 без ПДВ",2600671275,current,17066.00,Іванов Юрій Миколайович,,фізична особа
УГП,"Тернопільська область, Тернопіль, проспект Степана Бандери, 38",70,2018-11-01,AS8avpyrap,Банківські послуги,Інші витрати,253243,Тернопільська обласна організація,40011526,Тернопільська область,"Комiсiя за обслуговування рахунку за жовтень 2018 р. згiдно договору банкiвського рахунку вiд 21.09.2015, без ПДВ",26006055117228,current,100.00,"ПАТ КБ ""Приватбанк""",14360570,юридична особа
УГП,"Київ, вулиця Іллінська, 8",79,2018-11-01,91,"Оренда будинків і приміщень та експлуатаційні витрати (прибирання, страхування орендованих будинків, охорона, сигналізація, ремонт, вивіз сміття, тощо)",Оренда нерухомості,253056,Львівська обласна організація,40014820,Львівська область,"Оплата за послуги страхування відпов.перед орендодавцем зг. дог. .№319767вто8згла від 29.10.2018р., зг. рах. №23/10 від 29.10.2018р., без ПДВ",2600477437,current,600.00,"ПАТ ""СТРАХОВА КОМПАНІЯ ""АХА СТРАХУВАННЯ""",20474912,юридична особа
УГП,"Львівська область, Львів, вулиця Сербська, 1",70,2018-11-01,18017,Банківські послуги,Інші витрати,253055,Львівська обласна організація,40014820,Львівська область,"Сплата комісії за переказ коштів з поточного рахунку до 17:00 за межі Банку за допомогою системи Клієнт-Банк по документу №92, від 01.11.2018. Без ПДВ",2600477437,current,5.00,"АТ ""АКБ ""Львів""",09801546,юридична особа
УГП,"Львівська область, Львів, вулиця Сербська, 1",70,2018-11-01,15059,Банківські послуги,Інші витрати,253054,Львівська обласна організація,40014820,Львівська область,"Сплата комісії за переказ коштів з поточного рахунку до 17:00 за межі Банку за допомогою системи Клієнт-Банк по документу №91, від 01.11.2018. Без ПДВ",2600477437,current,5.00,"АТ ""АКБ ""Львів""",09801546,юридична особа
УГП,"Львівська область, Яворівський район, Новояворівськ",53,2018-11-01,92,Витрати на розміщення зовнішньої реклами,Зовнішня реклама,252998,Львівська обласна організація,40014820,Львівська область,"Оплата за розміщення рекл на бігбордах за період 01.11.2018-30.11.2018, згідно рах.№30/10-1 від 30.10.2018р., без ПДВ",2600477437,current,3000.00,Пекар Володимир Васильович,,фізична особа
УГП,"Івано-Франківська область, Івано-Франківськ, вулиця Січових стрільців, 15",70,2018-11-01,AS8avlofmp,Банківські послуги,Інші витрати,252922,Івано-Франківська обласна організація,40026836,Івано-Франківська область,"Комiсiя за обслуговування рахунку за жовтень 2018 р. згiдно договору банкiвського рахунку вiд 29.09.2015, без ПДВ",26005052517967,current,100.00,"ПАТ КБ ""Приватбанк""",14360570,юридична особа
УГП,"Львівська область, Львів, вулиця Стрийська, 35",62,2018-11-01,311,Сплата ЄСВ,Податкові платежі,252673,Центральний офіс,39481037,Україна,"*;101;39481037; 22,0% нарах. єдиного внеску на зароб. плату за 2 пол.жовтня 2018р. та відпуск. за листопад 2018р. - 4327,30 грн.;;;",2600671275,current,4327.30,Залізнична ОДПІ ГУ ДФС у Львівській області,39554382,юридична особа
УГП,"Львівська область, Львів, вулиця Конотопська, 6",63,2018-11-01,310,Податок на доходи,Податкові платежі,252672,Центральний офіс,39481037,Україна,"*;101;39481037; податок на доходи фізичних осіб із зароб.плати за 2 пол. жовтня 2018р. та відпуск. за листопад 2018р., 18% - 3540,51 грн.;;;",2600671275,current,3540.51,УДКСУ у Франківському районі м. Львова,37965138,юридична особа
УГП,"Львівська область, Львів, вулиця Конотопська, 6",61,2018-11-01,309,Військовий збір,Податкові платежі,252671,Центральний офіс,39481037,Україна,*;101;39481037; утриманий військовий збір із заробітної плати за 2 пол.;жовтня 2018р. та відпуск. за листопад 2018р.,2600671275,current,295.04,УДКСУ у Франківському районі м. Львова,37965138,юридична особа
УГП,"Львівська область, Львів, вулиця Сербська, 1",70,2018-11-01,17685,Банківські послуги,Інші витрати,252670,Центральний офіс,39481037,Україна,"Сплата комісії за зарахуванню коштів на рахунки фізичних осіб підприємства по зарплатному проекту по документу №17684, від 01.11.2018. Без ПДВ",2600671275,current,95.00,"АТ ""АКБ ""Львів""",09801546,юридична особа
УГП,"Львівська область, Львів, вулиця Сербська, 1",70,2018-11-01,15946,Банківські послуги,Інші витрати,252669,Центральний офіс,39481037,Україна,"Сплата комісії за переказ коштів з поточного рахунку до 17:00 за межі Банку за допомогою системи Клієнт-Банк по документу №311, від 01.11.2018. Без ПДВ",2600671275,current,5.00,"АТ ""АКБ ""Львів""",09801546,юридична особа
УГП,"Львівська область, Львів, вулиця Сербська, 1",70,2018-11-01,15927,Банківські послуги,Інші витрати,252668,Центральний офіс,39481037,Україна,"Сплата комісії за переказ коштів з поточного рахунку до 17:00 за межі Банку за допомогою системи Клієнт-Банк по документу №310, від 01.11.2018. Без ПДВ",2600671275,current,5.00,"АТ ""АКБ ""Львів""",09801546,юридична особа
УГП,"Львівська область, Львів, вулиця Сербська, 1",70,2018-11-01,15913,Банківські послуги,Інші витрати,252667,Центральний офіс,39481037,Україна,"Сплата комісії за переказ коштів з поточного рахунку до 17:00 за межі Банку за допомогою системи Клієнт-Банк по документу №309, від 01.11.2018. Без ПДВ",2600671275,current,5.00,"АТ ""АКБ ""Львів""",09801546,юридична особа
УГП,"Львівська область, Львів",84,2018-11-01,17687,"Заробітна плата, премії","Заробітна плата, лікарняні, вагітності, відрядження, компенсації",252562,Центральний офіс,39481037,Україна,Заробітна плата за 2 половину жовтня 2018 року та відпускні за листопад 2018 року,2600671275,current,5778.79,Лозинський Роман Михайлович,,фізична особа
УГП,"Львівська область, Львів",84,2018-11-01,17686,"Заробітна плата, премії","Заробітна плата, лікарняні, вагітності, відрядження, компенсації",252561,Центральний офіс,39481037,Україна,Заробітна плата за 2 половину жовтня 2018 року та відпускні за листопад 2018 року,2600671275,current,4654.36,Панкевич Богдан Романович,,фізична особа
УГП,Тернопільська область,84,2018-11-01,17688,"Заробітна плата, премії","Заробітна плата, лікарняні, вагітності, відрядження, компенсації",252560,Центральний офіс,39481037,Україна,Заробітна плата за 2 половину жовтня 2018 року та відпускні за листопад 2018 року,2600671275,current,3556.64,Яремчук Ірина Романівна,,фізична особа
УГП,"Львівська область, Львів",84,2018-11-01,17689,"Заробітна плата, премії","Заробітна плата, лікарняні, вагітності, відрядження, компенсації",252559,Центральний офіс,39481037,Україна,Заробітна плата за 2 половину жовтня 2018 року та відпускні за листопад 2018 року,2600671275,current,1844.19,Герич Ганна Вікторівна,,фізична особа
УГП,"Львівська область, Львів, вулиця Сербська, 1",70,2018-10-31,560813,Банківські послуги,Інші витрати,253052,Львівська обласна організація,40014820,Львівська область,Комісія за ведення функціонуючого рахунку за період 01.10.18-31.10.18 зг. договору. №N40.00.002425/РКО вiд 17.09.2015,2600477437,current,100.00,"АТ ""АКБ ""Львів""",09801546,юридична особа
УГП,"Львівська область, Львів, вулиця Сербська, 1",70,2018-10-31,543837,Банківські послуги,Інші витрати,253051,Львівська обласна організація,40014820,Львівська область,"Сплата комісії за переказ коштів з поточного рахунку до 17:00 в межах системи Банку за допомогою системи Клієнт-Банк по документу №90, від 31.10.2018. Без ПДВ",2600477437,current,3.00,"АТ ""АКБ ""Львів""",09801546,юридична особа
УГП,"Львівська область, Львів, вулиця Гуцульська, 9",53,2018-10-31,308,Витрати на розміщення зовнішньої реклами,Зовнішня реклама,252666,Центральний офіс,39481037,Україна,"Оплата за розміщення зовн.реклами з 01.10.18 по 31.10.18 згід.рах.-факт.№СФ-000708 від 31.10.2018р., згідно договору від 30.07.2018р., в т.ч. ПДВ 1767.50 грн.",2600671275,current,10605.00,"ТОВ ’Телерадіокомпанія ""Львівська хвиля""",13824151,юридична особа
УГП,"Львівська область, Львів, вулиця Кондукторська, 16",79,2018-10-31,307,"Оренда будинків і приміщень та експлуатаційні витрати (прибирання, страхування орендованих будинків, охорона, сигналізація, ремонт, вивіз сміття, тощо)",Оренда нерухомості,252665,Центральний офіс,39481037,Україна,"Оплата за послуги центр.охорони обʼєкта за жовтень 2018р., згідно договору № ЦС 040117 від 17.01.2017р.,зг.рахунку №СФ-0000849 від 31.10.2018р., без ПДВ",2600671275,current,400.00,"ПП ""Приватна безпека""",33562906,юридична особа
УГП,"Львівська область, Львів, вулиця Сербська, 1",70,2018-10-31,,Банківські послуги,Інші витрати,252664,Центральний офіс,39481037,Україна,"Комісія за ведення функціонуючого рахунку за період 01,10.18-31.10.18 зг. договору №N40.00.002175/РКО від 10.12.2014.",2600671275,current,100.00,"АТ ""АКБ ""Львів""",09801546,юридична особа
УГП,"Львівська область, Львів, вулиця Сербська, 1",70,2018-10-31,543149,Банківські послуги,Інші витрати,252663,Центральний офіс,39481037,Україна,"Сплата комісії за переказ коштів з поточного рахунку до 17:00 за межі Банку за допомогою системи Клієнт-Банк по документу №307, від 31.10.2018. Без ПДВ",2600671275,current,5.00,"АТ ""АКБ ""Львів""",09801546,юридична особа
УГП,"Львівська область, Львів, вулиця Сербська, 1",70,2018-10-31,543901,Банківські послуги,Інші витрати,252662,Центральний офіс,39481037,Україна,"Сплата комісії за переказ коштів з поточного рахунку до 17:00 в межах системи Банку за допомогою системи Клієнт-Банк по документу №308, від 31.10.2018. Без ПДВ",2600671275,current,3.00,"АТ ""АКБ ""Львів""",09801546,юридична особа
УГП,"Тернопільська область, Тернопіль, вулиця Листопадова, 3",60,2018-10-30,278,Інші податки,Податкові платежі,253242,Тернопільська обласна організація,40011526,Тернопільська область,*;101;40011526;22010300; Адмiнiстративний збiр за проведення державної реєстрацiї юридичних осiб-пiдприємцiв та громадських формувань.;;;,26006055117228,current,530.00,УДКСУ у м. Тернопіль,37977726,юридична особа
УГП,"Тернопільська область, Тернопіль, проспект Степана Бандери, 38",70,2018-10-30,AUO1HPRV6Y,Банківські послуги,Інші витрати,253241,Тернопільська обласна організація,40011526,Тернопільська область,"Комiсiя за виконання платежiв в нацiональнiй валютi, згiдно з вiдкритою офертою банку N б/н вiд 21.09.2015 та тарифiв банку, без ПДВ",26006055117228,current,3.00,"ПАТ КБ ""Приватбанк""",14360570,юридична особа
